Body Name,Service Area,Expenses Type,Invoice Payment Date,Transaction Number,Net Amount,Supplier Name
Manchester City Council,Hospitality + Trading Services,External repairs and maintenance for buildings,03.04.2017,5100913049,"4,324.81",Manchester Working Ltd
Manchester City Council,Hospitality + Trading Services,Hire of Machinery,03.04.2017,5100913116,"3,219.31",F.R.Sharrock Ltd
Manchester City Council,Hospitality + Trading Services,Machinery and equipment repairs,03.04.2017,5100913115,542.29,F.R.Sharrock Ltd
Manchester City Council,Adult Social Care,Third party payments to other Local Authorities,03.04.2017,5100913037,"20,353.06",Manor Academy
Manchester City Council,Adult Social Care,Payment of School Budget Share,03.04.2017,5100913046,"13,466.66",Meade Hill School
Manchester City Council,Adult Social Care,Transport Coach Hire,03.04.2017,5100913101,"2,461.00",Redacted Personal Information
Manchester City Council,Adult Social Care,Transport Coach Hire,03.04.2017,5100913082,"2,415.00",Mallons Minibus Travel
Manchester City Council,Adult Social Care,Payments for services,03.04.2017,5100913029,"1,040.00",Redacted Personal Information
Manchester City Council,Adult Social Care,Payments for services,03.04.2017,5100913028,780.00,Redacted Personal Information
Manchester City Council,Adult Social Care,Foster Payments,03.04.2017,1905539691,690.00,Redacted Personal Information
Manchester City Council,Adult Social Care,Payments for services,03.04.2017,5100913026,592.00,Eam Home Care Ltd
Manchester City Council,Adult Social Care,Payments for services,03.04.2017,5100913027,592.00,Eam Home Care Ltd
Manchester City Council,Adult Social Care,Third party payments relating to Voluntary Organisations,03.04.2017,5100913073,578.06,Southway Housing Trust
Manchester City Council,Adult Social Care,Third party payments relating to Voluntary Organisations,03.04.2017,5100913074,578.06,Southway Housing Trust
Manchester City Council,Adult Social Care,Transport Coach Hire,03.04.2017,5100913096,"-2,461.00",Redacted Personal Information
Manchester City Council,Childrens Services,Works and associated costs for Land and Buildings,03.04.2017,1905539692,"59,500.00",H M Revenues and Customs
Manchester City Council,Corporate Services,Professional fees,03.04.2017,5100913105,"9,900.00",Nexus Real Estate
Manchester City Council,Housing General Fund,Building Works,03.04.2017,5100913097,"43,648.37",Southway Housing Trust
Manchester City Council,Chief Executives,Agency staff provision,03.04.2017,5100913062,"27,846.76",SRA Cover Staff Ltd
Manchester City Council,Chief Executives,Agency staff provision,03.04.2017,5100913094,"4,894.05",Sanctuary Social Care
Manchester City Council,Chief Executives,Advertising,03.04.2017,5100913043,"1,330.00",Haymarket Publishing Services Ltd
Manchester City Council,Chief Executives,Grant and subscriptions awarded,03.04.2017,5100913056,600.00,Dance Manchester
Manchester City Council,Chief Executives,Grant and subscriptions awarded,03.04.2017,5100913061,500.00,Manchester BME Network
Manchester City Council,Highways Services,Payments to Sub-Contractors,03.04.2017,5100913081,"20,837.50",Metronet UK
Manchester City Council,Highways Services,Building Materials for direct delivery,03.04.2017,5100913031,570.52,Aggregate Industries T/A Kennedy As
Manchester City Council,GMIST (Greater Mcr Integrated),Agency staff provision,03.04.2017,5100913077,"25,695.76",Salford City Council
Manchester City Council,GMIST (Greater Mcr Integrated),Agency staff provision,03.04.2017,5100913088,"17,824.52",Commission for the New Economy
Manchester City Council,GMIST (Greater Mcr Integrated),Agency staff provision,03.04.2017,5100913077,"12,150.65",Salford City Council
Manchester City Council,Manchester Leisure,Grant Payments,04.04.2017,1905535870,"8,462.00",Manchester Young Lives
Manchester City Council,Manchester Leisure,Training and Development,04.04.2017,5100913146,"2,400.00",Lois Burton Ltd
Manchester City Council,Manchester Leisure,Grant and subscriptions awarded,04.04.2017,5100913205,"2,000.00",Manchester Enterprise Academy
Manchester City Council,Manchester Leisure,Grant and subscriptions awarded,04.04.2017,5100913124,"2,000.00",Manchester Secondary PRU
Manchester City Council,Manchester Leisure,Grant and subscriptions awarded,04.04.2017,5100913294,"1,000.00",Congleton Museum
Manchester City Council,Manchester Leisure,Grant and subscriptions awarded,04.04.2017,5100913207,900.00,Levenshulme Youth Project
Manchester City Council,Manchester Leisure,Professional fees,04.04.2017,5100913149,774.20,Hemingways Marketing Services Ltd
Manchester City Council,Manchester Leisure,Grounds Maintenance Costs,04.04.2017,5100913218,709.04,Baker Ross Ltd
Manchester City Council,Manchester Leisure,Photocopying,04.04.2017,5100913317,587.40,J Hewit & Sons Ltd
Manchester City Council,Manchester Leisure,Equipment,04.04.2017,5100913307,516.25,A P Fitzpatrick
Manchester City Council,Manchester Leisure,Photocopying,04.04.2017,5100913303,-587.40,J Hewit & Sons Ltd
Manchester City Council,Hospitality + Trading Services,End of term vehicle lease payments,04.04.2017,5100913133,"4,255.00",S G Equipment Finance Ltd
Manchester City Council,Hospitality + Trading Services,Funeral and coroner related services,04.04.2017,5100913181,"4,067.50",G E Robinson & Co Ltd
Manchester City Council,Hospitality + Trading Services,Catering Provisions,04.04.2017,1905540050,950.01,Brake Bros Foodservice Ltd
Manchester City Council,Hospitality + Trading Services,Catering Provisions,04.04.2017,1905540055,941.88,Brake Bros Foodservice Ltd
Manchester City Council,Hospitality + Trading Services,Catering Provisions,04.04.2017,1905540126,811.37,Brake Bros Foodservice Ltd
Manchester City Council,Hospitality + Trading Services,Catering Provisions,04.04.2017,1905540064,742.29,Chicken Joes Limited
Manchester City Council,Hospitality + Trading Services,Catering Provisions,04.04.2017,1905540060,732.96,Brake Bros Foodservice Ltd
Manchester City Council,Hospitality + Trading Services,Catering Provisions,04.04.2017,1905540131,732.35,Brake Bros Foodservice Ltd
Manchester City Council,Hospitality + Trading Services,Catering Provisions,04.04.2017,1905540105,662.22,Brake Bros Foodservice Ltd
Manchester City Council,Hospitality + Trading Services,Catering Provisions,04.04.2017,1905540069,645.15,Brake Bros Foodservice Ltd
Manchester City Council,Hospitality + Trading Services,Catering Provisions,04.04.2017,1905540120,598.83,Brake Bros Foodservice Ltd
Manchester City Council,Hospitality + Trading Services,Catering Provisions,04.04.2017,1905540108,576.60,Brake Bros Foodservice Ltd
Manchester City Council,Hospitality + Trading Services,Catering Provisions,04.04.2017,1905540124,521.40,Chicken Joes Limited
Manchester City Council,Hospitality + Trading Services,Catering Provisions,04.04.2017,1905540054,-895.85,Brake Bros Foodservice Ltd
Manchester City Council,Adult Social Care,Rents,04.04.2017,5100913039,"12,727.00",Wythenshawe Community Housing Group
Manchester City Council,Adult Social Care,Third party payments relating to Voluntary Organisations,04.04.2017,5100913338,"10,000.00",Riverside ECHG
Manchester City Council,Adult Social Care,Payments for services,04.04.2017,5100913140,"6,015.64",Bridge House Independent School
Manchester City Council,Adult Social Care,Third party payments relating to Voluntary Organisations,04.04.2017,5100913339,"5,285.20",Riverside ECHG
Manchester City Council,Adult Social Care,Rents,04.04.2017,5100913032,"5,089.37",Wythenshawe Community Housing Group
Manchester City Council,Adult Social Care,Rents,04.04.2017,5100913033,"5,089.37",Wythenshawe Community Housing Group
Manchester City Council,Adult Social Care,Rents,04.04.2017,5100913036,"5,089.37",Wythenshawe Community Housing Group
Manchester City Council,Adult Social Care,Rents,04.04.2017,5100913038,"5,089.37",Wythenshawe Community Housing Group
Manchester City Council,Adult Social Care,Contract Cleaning External,04.04.2017,5100913321,"2,880.00",Tiddlywinks Day Nursery Ltd
Manchester City Council,Adult Social Care,Contract Cleaning External,04.04.2017,5100913324,"1,920.00",Tiddlywinks Day Nursery
Manchester City Council,Adult Social Care,Third party payments to Health Authority,04.04.2017,5100913158,"1,381.61",Central & NW London NHS Foundation
Manchester City Council,Adult Social Care,Third party payments relating to Voluntary Organisations,04.04.2017,5100913126,578.06,Southway Housing Trust
Manchester City Council,Adult Social Care,Third party payments relating to Voluntary Organisations,04.04.2017,5100913128,578.06,Southway Housing Trust
Manchester City Council,Adult Social Care,Third party payments relating to Voluntary Organisations,04.04.2017,5100913129,578.06,Southway Housing Trust
Manchester City Council,Adult Social Care,Training and Development,04.04.2017,5100913136,525.00,Irish World Heritage Centre
Manchester City Council,Corporate Services,Works and associated costs for Land and Buildings,04.04.2017,5100913284,"56,431.39",Manchester Working Ltd
Manchester City Council,Corporate Services,Works and associated costs for Land and Buildings,04.04.2017,5100913289,"22,702.63",Principal Agent Management Ltd
Manchester City Council,Corporate Services,Works and associated costs for Land and Buildings,04.04.2017,5100913282,"20,256.03",Morrison Facilities Services Ltd
Manchester City Council,Corporate Services,Grant and subscriptions awarded,04.04.2017,5100913143,"1,500.00",Cipfa
Manchester City Council,Corporate Services,Works and associated costs for Land and Buildings,04.04.2017,5100913288,"-22,702.63",Principal Agent Management Ltd
Manchester City Council,Corporate Services,Works and associated costs for Land and Buildings,04.04.2017,5100913295,"-22,702.63",Principal Agent Management Ltd
Manchester City Council,Housing General Fund,Building Works,04.04.2017,1905539706,"23,420.01",UPS Building & Maintenance Ltd
Manchester City Council,Housing General Fund,Building Works,04.04.2017,1905539710,"16,683.13",UPS Building & Maintenance Ltd
Manchester City Council,Housing General Fund,Building Works,04.04.2017,1905539701,"9,236.00",Pollock Lifts Ltd
Manchester City Council,Housing General Fund,Building Works,04.04.2017,1905539719,"7,635.19",UPS Building & Maintenance Ltd
Manchester City Council,Housing General Fund,Building Works,04.04.2017,1905539715,"4,674.76",UPS Building & Maintenance Ltd
Manchester City Council,Housing General Fund,Building Works,04.04.2017,1905539699,"4,590.00",Thyssenkrupp Encasa
Manchester City Council,Housing General Fund,Building Works,04.04.2017,1905539708,"4,502.00",Stannah Lift Services Ltd
Manchester City Council,Housing General Fund,Building Works,04.04.2017,1905539716,"4,338.21",UPS Building & Maintenance Ltd
Manchester City Council,Housing General Fund,Building Works,04.04.2017,1905539712,"4,335.00",Thyssenkrupp Encasa
Manchester City Council,Housing General Fund,Building Works,04.04.2017,1905539717,"4,247.00",Stannah Lift Services Ltd
Manchester City Council,Housing General Fund,Building Works,04.04.2017,1905539709,"4,175.00",Thyssenkrupp Encasa
Manchester City Council,Housing General Fund,Building Works,04.04.2017,1905539713,"4,057.00",UPS Building & Maintenance Ltd
Manchester City Council,Housing General Fund,Building Works,04.04.2017,1905539707,"4,051.00",Stannah Lift Services Ltd
Manchester City Council,Housing General Fund,Building Works,04.04.2017,1905539711,"4,019.02",Thyssenkrupp Encasa
Manchester City Council,Housing General Fund,Building Works,04.04.2017,1905539720,"2,746.00",Stannah Lift Services Ltd
Manchester City Council,Housing General Fund,Building Works,04.04.2017,1905539718,"2,398.00",Hoist & Shower Chair Company
Manchester City Council,Housing General Fund,Building Works,04.04.2017,1905539705,"2,243.00",Stannah Lift Services Ltd
Manchester City Council,Housing General Fund,Building Works,04.04.2017,1905539700,"2,143.00",Hoist & Shower Chair Company
Manchester City Council,Housing General Fund,Building Works,04.04.2017,1905539714,"1,202.30",UPS Building & Maintenance Ltd
Manchester City Council,Housing General Fund,Building Works,04.04.2017,1905539702,612.30,UPS Building & Maintenance Ltd
Manchester City Council,Housing General Fund,Building Works,04.04.2017,1905539721,500.00,Hoist & Shower Chair Company
Manchester City Council,Housing Revenue Account,Council Dwelling Adaptations,04.04.2017,5100913333,"21,698.66",B.A.A.S. Construction Ltd
Manchester City Council,Housing Revenue Account,Rents,04.04.2017,5100913132,"14,899.39",M J Mapp
Manchester City Council,Housing Revenue Account,Council Dwelling Adaptations,04.04.2017,5100913335,"12,859.93",Manchester Working Ltd
Manchester City Council,Chief Executives,Agency staff provision,04.04.2017,5100913162,"56,679.22",Cadence Resourcing Ltd
Manchester City Council,Chief Executives,Agency staff provision,04.04.2017,5100913302,"56,679.22",Cadence Resourcing Ltd
Manchester City Council,Chief Executives,Agency staff provision,04.04.2017,5100913166,"51,645.67",NES UK Limited
Manchester City Council,Chief Executives,Agency staff provision,04.04.2017,5100913316,"46,239.67",Michael Page International
Manchester City Council,Chief Executives,Agency staff provision,04.04.2017,5100913210,"30,170.18",Search Consultancy Ltd
Manchester City Council,Chief Executives,Agency staff provision,04.04.2017,5100913120,"21,050.00",Laudale Associates Limited
Manchester City Council,Chief Executives,Agency staff provision,04.04.2017,5100913069,"19,787.09",SRA Cover Staff Ltd
Manchester City Council,Chief Executives,Agency staff provision,04.04.2017,5100913075,"18,162.13",Reed Employment Plc
Manchester City Council,Chief Executives,Agency staff provision,04.04.2017,5100913301,"17,124.46",LAW Absolute
Manchester City Council,Chief Executives,Agency staff provision,04.04.2017,5100913164,"15,690.62",Liquid Personnel Ltd
Manchester City Council,Chief Executives,Agency staff provision,04.04.2017,5100913216,"15,061.71",LAW Absolute
Manchester City Council,Chief Executives,Agency staff provision,04.04.2017,5100913131,"14,500.00",Laudale Associates Limited
Manchester City Council,Chief Executives,Agency staff provision,04.04.2017,5100913048,"14,304.79",Barker Ross Health & Social Care
Manchester City Council,Chief Executives,Agency staff provision,04.04.2017,5100913055,"14,140.25",Triad Resourcing
Manchester City Council,Chief Executives,Agency staff provision,04.04.2017,5100913308,"13,496.95",Gian Healthcare Ltd
Manchester City Council,Chief Executives,Agency staff provision,04.04.2017,5100913217,"9,340.32",Gian Healthcare Ltd
Manchester City Council,Chief Executives,Agency staff provision,04.04.2017,5100913305,"7,120.80",Hamptons Resourcing Limited
Manchester City Council,Chief Executives,Agency staff provision,04.04.2017,5100913211,"4,066.87",Resolve Personnel Ltd
Manchester City Council,Chief Executives,Agency staff provision,04.04.2017,5100913213,"3,911.74",Rullion Resource Limited
Manchester City Council,Chief Executives,I T Provision,04.04.2017,5100913286,"2,564.58",Dell Corporation Ltd
Manchester City Council,Chief Executives,Agency staff provision,04.04.2017,5100913071,"2,057.10",Randstad Care
Manchester City Council,Chief Executives,Agency staff provision,04.04.2017,5100913311,"1,768.94",HR GO Recruitment Healthcare
Manchester City Council,Chief Executives,Agency staff provision,04.04.2017,5100913084,851.62,Kennoh Cleaning & Care
Manchester City Council,Chief Executives,Equipment,04.04.2017,5100913292,"-6,250.00",Idox Software Ltd
Manchester City Council,Chief Executives,Agency staff provision,04.04.2017,5100913304,"-9,340.32",Gian Healthcare Ltd
Manchester City Council,Chief Executives,Agency staff provision,04.04.2017,5100913298,"-15,061.71",LAW Absolute
Manchester City Council,Chief Executives,Agency staff provision,04.04.2017,5100913212,"-56,679.22",Cadence Resourcing Ltd
Manchester City Council,Regeneration Finance,I T Provision,04.04.2017,5100913293,"6,250.00",Idox Software Ltd
Manchester City Council,Manchester Leisure,Goods purchased for resale in Council outlets,05.04.2017,5100913197,"4,837.66",The School of Life
Manchester City Council,Manchester Leisure,Grant Payments,05.04.2017,5100913504,"2,000.00",Platt Claremont Residents Assoc
Manchester City Council,Manchester Leisure,Professional fees,05.04.2017,5100913462,"1,900.00",Manchester Rugby Union
Manchester City Council,Manchester Leisure,Grant and subscriptions awarded,05.04.2017,5100913351,995.00,The Factory Youth Zone
Manchester City Council,Manchester Leisure,Grant Payments,05.04.2017,5100913439,575.00,Harwell Document Restoration Servs
Manchester City Council,Hospitality + Trading Services,Vehicle Costs,05.04.2017,5100913190,507.45,Warrington Truck Parts Ltd
Manchester City Council,Adult Social Care,Transport Coach Hire,05.04.2017,5100913447,"26,783.00",Taxi Team Limited
Manchester City Council,Adult Social Care,Catering,05.04.2017,5100913291,"11,750.20",Spie Limited
Manchester City Council,Adult Social Care,Supporting People Payments,05.04.2017,5100913514,"5,000.00",The Depaul Trust
Manchester City Council,Adult Social Care,General Office expenses,05.04.2017,1905540167,"3,307.50",PSC Systems
Manchester City Council,Adult Social Care,Transport Coach Hire,05.04.2017,5100913502,"2,940.00",Choices Home 4 Children Ltd
Manchester City Council,Adult Social Care,Home Care ,05.04.2017,5100913390,"1,745.00",Longsight (Aisha) Nursery
Manchester City Council,Adult Social Care,Professional fees,05.04.2017,5100913490,"1,157.95",Redacted Personal Information
Manchester City Council,Adult Social Care,General Office expenses,05.04.2017,1905540168,"1,150.00",PSC Systems
Manchester City Council,Adult Social Care,Professional fees,05.04.2017,1905540133,585.00,Higher Mapping Solutions
Manchester City Council,Adult Social Care,Training and Development,05.04.2017,5100913484,556.00,Pearson Education Ltd
Manchester City Council,Corporate Services,Works and associated costs for Land and Buildings,05.04.2017,5100913297,"22,702.63",Principal Agent Management Ltd
Manchester City Council,Corporate Services,Tele Conferencing,05.04.2017,1700069922,-852.10,BT Conferencing Services
Manchester City Council,Housing Revenue Account,Council Dwelling Adaptations,05.04.2017,5100913457,"46,217.23",Manchester Working Ltd
Manchester City Council,Housing Revenue Account,Private Finance and Public Private partnership initiatives,05.04.2017,5100913464,"36,208.40",Manchester Energy Company Limited
Manchester City Council,Housing Revenue Account,Council Dwelling Adaptations,05.04.2017,5100913419,"9,697.99",Wrekin Windows
Manchester City Council,Housing Revenue Account,Council Dwelling Adaptations,05.04.2017,5100913445,"9,522.56",Wrekin Windows
Manchester City Council,Housing Revenue Account,Council Dwelling Adaptations,05.04.2017,5100913434,"7,688.13",Wrekin Windows
Manchester City Council,Housing Revenue Account,Council Dwelling Adaptations,05.04.2017,5100913499,"6,321.00",Hoist & Shower Chair Company
Manchester City Council,Housing Revenue Account,Council Dwelling Adaptations,05.04.2017,5100913443,"5,754.44",Wrekin Windows
Manchester City Council,Housing Revenue Account,Council Dwelling Adaptations,05.04.2017,5100913433,"5,529.35",Wrekin Windows
Manchester City Council,Housing Revenue Account,Council Dwelling Adaptations,05.04.2017,5100913440,"5,402.56",Wrekin Windows
Manchester City Council,Housing Revenue Account,Council Dwelling Adaptations,05.04.2017,5100913436,"5,024.91",Wrekin Windows
Manchester City Council,Housing Revenue Account,Council Dwelling Adaptations,05.04.2017,5100913420,"4,983.41",Wrekin Windows
Manchester City Council,Housing Revenue Account,Council Dwelling Adaptations,05.04.2017,5100913425,"4,767.31",Wrekin Windows
Manchester City Council,Housing Revenue Account,Council Dwelling Adaptations,05.04.2017,5100913442,"4,698.46",Wrekin Windows
Manchester City Council,Housing Revenue Account,Council Dwelling Adaptations,05.04.2017,5100913427,"4,687.14",Wrekin Windows
Manchester City Council,Housing Revenue Account,Council Dwelling Adaptations,05.04.2017,5100913429,"4,668.04",Wrekin Windows
Manchester City Council,Housing Revenue Account,Council Dwelling Adaptations,05.04.2017,5100913438,"4,548.50",Stannah Lift Services Ltd
Manchester City Council,Housing Revenue Account,Council Dwelling Adaptations,05.04.2017,5100913426,"4,310.35",Wrekin Windows
Manchester City Council,Housing Revenue Account,Council Dwelling Adaptations,05.04.2017,5100913435,"4,307.84",Wrekin Windows
Manchester City Council,Housing Revenue Account,Council Dwelling Adaptations,05.04.2017,5100913449,"4,162.20",Wrekin Windows
Manchester City Council,Housing Revenue Account,Council Dwelling Adaptations,05.04.2017,5100913428,"3,411.91",Wrekin Windows
Manchester City Council,Housing Revenue Account,Council Dwelling Adaptations,05.04.2017,5100913454,"3,339.99",Manchester Working Ltd
Manchester City Council,Housing Revenue Account,Council Dwelling Adaptations,05.04.2017,5100913431,"2,152.55",Wrekin Windows
Manchester City Council,Housing Revenue Account,Council Dwelling Adaptations,05.04.2017,5100913512,"2,096.11",Rexel UK Ltd
Manchester City Council,Housing Revenue Account,Council Dwelling Adaptations,05.04.2017,5100913505,"1,573.01",Wrekin Windows
Manchester City Council,Housing Revenue Account,Council Dwelling Adaptations,05.04.2017,5100913431,"1,386.84",Wrekin Windows
Manchester City Council,Housing Revenue Account,Council Dwelling Adaptations,05.04.2017,5100913498,"-6,321.00",Hoist & Shower Chair Company
Manchester City Council,Chief Executives,Works and associated costs for Land and Buildings,05.04.2017,5100913501,"13,905.00",Vectos (North) Limited
Manchester City Council,Chief Executives,Agency staff provision,05.04.2017,5100913410,"13,068.46",Reed Employment Plc
Manchester City Council,Chief Executives,Agency staff provision,05.04.2017,5100913486,"4,388.75",Sanctuary Social Care
Manchester City Council,Chief Executives,Advertising,05.04.2017,5100913472,877.50,TES Global Ltd
Manchester City Council,Chief Executives,Advertising,05.04.2017,5100913488,877.50,TES Global Ltd
Manchester City Council,Chief Executives,Advertising,05.04.2017,5100913497,877.50,TES Global Ltd
Manchester City Council,Chief Executives,Advertising,05.04.2017,5100913482,710.10,TES Global Ltd
Manchester City Council,Chief Executives,Advertising,05.04.2017,5100913483,710.10,TES Global Ltd
Manchester City Council,Chief Executives,Advertising,05.04.2017,5100913485,710.10,TES Global Ltd
Manchester City Council,Chief Executives,Advertising,05.04.2017,5100913491,710.10,TES Global Ltd
Manchester City Council,Chief Executives,Advertising,05.04.2017,5100913494,710.10,TES Global Ltd
Manchester City Council,Regeneration Finance,Window Cleaning,05.04.2017,5100913432,720.00,Lmj Contract Cleaning Ltd
Manchester City Council,Regeneration Finance,Sanitary/Medical Waste,05.04.2017,5100913362,699.02,Initial Medical Services
Manchester City Council,Regeneration Finance,Sanitary/Medical Waste,05.04.2017,5100913359,514.36,Initial Medical Services
Manchester City Council,Highways Services,Payments to Sub-Contractors,05.04.2017,5100913424,"13,500.00",Kenny Bros (Civil Eng) Ltd
Manchester City Council,Highways Services,Hire of Machinery,05.04.2017,5100913441,"11,192.00",Velocity UK Ltd
Manchester City Council,Highways Services,Payments to Sub-Contractors,05.04.2017,5100913422,"6,950.00",Kenny Bros (Civil Eng) Ltd
Manchester City Council,Highways Services,Payments to Sub-Contractors,05.04.2017,5100913423,"4,870.00",Kenny Bros (Civil Eng) Ltd
Manchester City Council,Highways Services,Building Materials for direct delivery,05.04.2017,5100913503,615.00,Viewprint
Manchester City Council,Insurance Fund,All Risks Insurance Premium,05.04.2017,5100913460,"132,633.75",Aon Artscope
Manchester City Council,GMIST (Greater Mcr Integrated),Grant and subscriptions awarded,05.04.2017,5100913382,"205,325.00",Halle Concerts Society
Manchester City Council,GMIST (Greater Mcr Integrated),Grant and subscriptions awarded,05.04.2017,5100913398,"110,825.00",People's History Museum
Manchester City Council,GMIST (Greater Mcr Integrated),Grant and subscriptions awarded,05.04.2017,5100913364,"85,000.00",Link4Life
Manchester City Council,GMIST (Greater Mcr Integrated),Grant and subscriptions awarded,05.04.2017,5100913400,"58,150.00",Royal Exchange Theatre Co Ltd
Manchester City Council,GMIST (Greater Mcr Integrated),Grant and subscriptions awarded,05.04.2017,5100913374,"57,100.00",GMCVO
Manchester City Council,GMIST (Greater Mcr Integrated),Grant and subscriptions awarded,05.04.2017,5100913401,"50,000.00",The Lowry Centre Ltd
Manchester City Council,GMIST (Greater Mcr Integrated),Grant and subscriptions awarded,05.04.2017,5100913379,"46,000.00",Greater Manchester Sports
Manchester City Council,GMIST (Greater Mcr Integrated),Grant and subscriptions awarded,05.04.2017,5100913395,"40,000.00",Manchester International Festival
Manchester City Council,GMIST (Greater Mcr Integrated),Grant and subscriptions awarded,05.04.2017,5100913375,"35,250.00",HOME
Manchester City Council,GMIST (Greater Mcr Integrated),Grant and subscriptions awarded,05.04.2017,5100913372,"27,075.00",Octagon Theatre Bolton
Manchester City Council,GMIST (Greater Mcr Integrated),Grant and subscriptions awarded,05.04.2017,5100913370,"25,675.00",Oldham Coliseum Theatre
Manchester City Council,GMIST (Greater Mcr Integrated),Grant and subscriptions awarded,05.04.2017,5100913394,"24,250.00",Contact Theatre Company
Manchester City Council,GMIST (Greater Mcr Integrated),Grant and subscriptions awarded,05.04.2017,5100913391,"13,700.00",Manchester Camerata
Manchester City Council,GMIST (Greater Mcr Integrated),Grant and subscriptions awarded,05.04.2017,5100913378,"13,625.00",Dance Manchester
Manchester City Council,GMIST (Greater Mcr Integrated),Grant and subscriptions awarded,05.04.2017,5100913403,"10,275.00",Water Adventure Centre
Manchester City Council,GMIST (Greater Mcr Integrated),Grant and subscriptions awarded,05.04.2017,5100913397,"8,242.75",PANDA - Performing Arts Network
Manchester City Council,GMIST (Greater Mcr Integrated),Grant and subscriptions awarded,05.04.2017,5100913389,"6,500.00",Manchester Digital Laboratory
Manchester City Council,GMIST (Greater Mcr Integrated),Grant and subscriptions awarded,05.04.2017,5100913399,"3,731.00",The Proud Trust
Manchester City Council,GMIST (Greater Mcr Integrated),Grant and subscriptions awarded,05.04.2017,5100913385,"1,475.00",M6 Theatre Company
Manchester City Council,Manchester Leisure,Refuse Collection,06.04.2017,5100913637,"49,025.30",Enterprise Manchester TRADE
Manchester City Council,Manchester Leisure,Refuse Collection,06.04.2017,5100913640,"42,261.01",Enterprise Manchester TRADE
Manchester City Council,Manchester Leisure,Refuse Collection,06.04.2017,5100913638,"21,622.89",Enterprise Manchester TRADE
Manchester City Council,Manchester Leisure,Payments for services,06.04.2017,5100913461,"6,750.00",Manchester Rugby Union
Manchester City Council,Manchester Leisure,Water Service Charges - Metered,06.04.2017,1905546397,"4,188.88",United Utilities Water Plc
Manchester City Council,Manchester Leisure,Cash Collection,06.04.2017,1905546242,"4,168.22",Redacted Personal Information
Manchester City Council,Manchester Leisure,Grant Payments,06.04.2017,5100913565,"4,000.00",NWFED
Manchester City Council,Manchester Leisure,Grant Payments,06.04.2017,5100913572,"1,075.00",Resolve Antisocial Behaviour
Manchester City Council,Manchester Leisure,Water Service Charges - Metered,06.04.2017,1905546331,810.46,United Utilities Water Plc
Manchester City Council,Manchester Leisure,Refuse Collection,06.04.2017,1905546184,751.68,Enterprise Manchester TRADE
Manchester City Council,Manchester Leisure,Expenditure re Internal Trading Ordered Externally,06.04.2017,5100913551,500.00,Friends of Alex Park Manchester
Manchester City Council,Manchester Leisure,Water Service Charges - Metered,06.04.2017,1700070343,"-2,414.26",United Utilities Water Plc
Manchester City Council,Hospitality + Trading Services,Catering Provisions,06.04.2017,1905546613,"76,565.92",Ralph Livesey Ltd
Manchester City Council,Hospitality + Trading Services,Insurance,06.04.2017,1905544484,"6,521.64",Zurich Municipal
Manchester City Council,Hospitality + Trading Services,Water Service Charges - Metered,06.04.2017,1905546350,"2,898.44",United Utilities Water Plc
Manchester City Council,Hospitality + Trading Services,"Clothes, Uniform and Laundry",06.04.2017,5100913661,"1,807.75",Image@Work Ltd
Manchester City Council,Hospitality + Trading Services,Water Service Charges - Metered,06.04.2017,1905546400,"1,610.02",United Utilities Water Plc
Manchester City Council,Hospitality + Trading Services,Catering Provisions,06.04.2017,1905546142,947.60,Chicken Joes Limited
Manchester City Council,Hospitality + Trading Services,Catering Provisions,06.04.2017,1905546108,662.45,Brake Bros Foodservice Ltd
Manchester City Council,Hospitality + Trading Services,Water Service Charges - Metered,06.04.2017,1905546369,519.09,United Utilities Water Plc
Manchester City Council,Adult Social Care,Third party payments to other Local Authorities,06.04.2017,5100913693,"19,740.32",Stockport Metropolitan Borough
Manchester City Council,Adult Social Care,Supporting People Payments,06.04.2017,5100913516,"11,666.66",The Depaul Trust
Manchester City Council,Adult Social Care,Grant and subscriptions awarded,06.04.2017,5100913583,"5,000.00",Career Connect
Manchester City Council,Adult Social Care,Payments for services,06.04.2017,5100913520,"4,140.00",Broadwood Residential Ltd
Manchester City Council,Adult Social Care,Carer Support Payments ,06.04.2017,1905546641,"3,750.00",Redacted Personal Information
Manchester City Council,Adult Social Care,Storage Costs,06.04.2017,5100913700,"3,334.26",PHS Records Management
Manchester City Council,Adult Social Care,Storage Costs,06.04.2017,5100913697,"3,125.70",PHS Records Management
Manchester City Council,Adult Social Care,Payments for services,06.04.2017,5100913522,"2,700.00",Broadwood Residential Ltd
Manchester City Council,Adult Social Care,Water Service Charges - Metered,06.04.2017,1905546324,"2,564.55",United Utilities Water Plc
Manchester City Council,Adult Social Care,Foster Payments,06.04.2017,1905546598,"1,960.00",Redacted Personal Information
Manchester City Council,Adult Social Care,Water Service Charges - Metered,06.04.2017,1905546398,"1,765.29",United Utilities Water Plc
Manchester City Council,Adult Social Care,Storage Costs,06.04.2017,5100913698,"1,757.18",PHS Records Management
Manchester City Council,Adult Social Care,Professional fees,06.04.2017,5100913658,"1,750.00",Caritas Recruitment
Manchester City Council,Adult Social Care,Water Service Charges - Unmetered,06.04.2017,1905546557,"1,504.41",United Utilities Water Plc
Manchester City Council,Adult Social Care,Foster Payments,06.04.2017,1905546602,"1,215.44",Redacted Personal Information
Manchester City Council,Adult Social Care,Electricity,06.04.2017,1905546561,"1,149.15",British Gas Plc
Manchester City Council,Adult Social Care,Water Service Charges - Unmetered,06.04.2017,1905546466,"1,073.81",United Utilities Water Plc
Manchester City Council,Adult Social Care,Third party payments relating to Voluntary Organisations,06.04.2017,5100913687,"1,062.08",MCCR
Manchester City Council,Adult Social Care,Water Service Charges - Unmetered,06.04.2017,1905546417,"1,052.55",United Utilities Water Plc
Manchester City Council,Adult Social Care,Hire of Premises,06.04.2017,5100913613,"1,050.00",Manchester United Football Club Pub
Manchester City Council,Adult Social Care,Hire of Premises,06.04.2017,5100913615,"1,050.00",Manchester United Football Club Pub
Manchester City Council,Adult Social Care,Foster Payments,06.04.2017,1905546263,"1,008.00",Redacted Personal Information
Manchester City Council,Adult Social Care,Water Service Charges - Unmetered,06.04.2017,1905546415,972.81,United Utilities Water Plc
Manchester City Council,Adult Social Care,Water Service Charges - Unmetered,06.04.2017,1905546550,972.81,United Utilities Water Plc
Manchester City Council,Adult Social Care,Water Service Charges - Unmetered,06.04.2017,1905546548,972.81,United Utilities Water Plc
Manchester City Council,Adult Social Care,Third party payments relating to Voluntary Organisations,06.04.2017,5100913688,947.00,MCCR
Manchester City Council,Adult Social Care,Water Service Charges - Unmetered,06.04.2017,1905546469,815.98,United Utilities Water Plc
Manchester City Council,Adult Social Care,Water Service Charges - Metered,06.04.2017,1905546334,747.26,United Utilities Water Plc
Manchester City Council,Adult Social Care,Water Service Charges - Metered,06.04.2017,1905546366,715.27,United Utilities Water Plc
Manchester City Council,Adult Social Care,Water Service Charges - Unmetered,06.04.2017,1905546463,714.98,United Utilities Water Plc
Manchester City Council,Adult Social Care,Water Service Charges - Unmetered,06.04.2017,1905546468,714.98,United Utilities Water Plc
Manchester City Council,Adult Social Care,Water Service Charges - Unmetered,06.04.2017,1905546465,709.66,United Utilities Water Plc
Manchester City Council,Adult Social Care,Professional fees,06.04.2017,5100913655,700.00,Caritas Recruitment
Manchester City Council,Adult Social Care,Water Service Charges - Metered,06.04.2017,1905546372,671.19,United Utilities Water Plc
Manchester City Council,Adult Social Care,Water Service Charges - Unmetered,06.04.2017,1905546464,669.79,United Utilities Water Plc
Manchester City Council,Adult Social Care,Training and Development,06.04.2017,5100913209,660.00,Ferret Information Systems Ltd
Manchester City Council,Adult Social Care,Water Service Charges - Unmetered,06.04.2017,1905546474,659.16,United Utilities Water Plc
Manchester City Council,Adult Social Care,Water Service Charges - Unmetered,06.04.2017,1905546473,659.16,United Utilities Water Plc
Manchester City Council,Adult Social Care,Water Service Charges - Unmetered,06.04.2017,1905546450,645.87,United Utilities Water Plc
Manchester City Council,Adult Social Care,Water Service Charges - Metered,06.04.2017,1905546356,625.28,United Utilities Water Plc
Manchester City Council,Adult Social Care,Water Service Charges - Metered,06.04.2017,1905546311,606.42,United Utilities Water Plc
Manchester City Council,Adult Social Care,Water Service Charges - Unmetered,06.04.2017,1905546471,600.69,United Utilities Water Plc
Manchester City Council,Adult Social Care,Water Service Charges - Unmetered,06.04.2017,1905546470,600.69,United Utilities Water Plc
Manchester City Council,Adult Social Care,Water Service Charges - Unmetered,06.04.2017,1905546552,600.69,United Utilities Water Plc
Manchester City Council,Adult Social Care,Foster Payments,06.04.2017,1905546287,561.32,Redacted Personal Information
Manchester City Council,Adult Social Care,Foster Payments,06.04.2017,1905546488,556.00,Redacted Personal Information
Manchester City Council,Adult Social Care,Water Service Charges - Metered,06.04.2017,1905546379,540.10,United Utilities Water Plc
Manchester City Council,Adult Social Care,Water Service Charges - Unmetered,06.04.2017,1905546485,536.89,United Utilities Water Plc
Manchester City Council,Adult Social Care,Water Service Charges - Unmetered,06.04.2017,1905546554,523.60,United Utilities Water Plc
Manchester City Council,Adult Social Care,Electricity,06.04.2017,1905546560,519.26,British Gas Plc
Manchester City Council,Adult Social Care,Water Service Charges - Unmetered,06.04.2017,1905546551,512.97,United Utilities Water Plc
Manchester City Council,Adult Social Care,Foster Payments,06.04.2017,1905546599,506.52,Redacted Personal Information
Manchester City Council,Adult Social Care,Professional fees,06.04.2017,1700070336,-756.00,Edenfield Centre
Manchester City Council,Adult Social Care,Hire of Premises,06.04.2017,5100913616,"-1,050.00",Manchester United Football Club Pub
Manchester City Council,Adult Social Care,Hire of Premises,06.04.2017,5100913617,"-1,050.00",Manchester United Football Club Pub
Manchester City Council,Adult Social Care,Rents,06.04.2017,5100913725,"-4,725.00",Commercial Real Estates Management
Manchester City Council,Corporate Services,Transport Taxis,06.04.2017,1905546654,"10,000.00",Street Cars
Manchester City Council,Corporate Services,Works and associated costs for Land and Buildings,06.04.2017,5100913208,"10,000.00",AECOM Limited
Manchester City Council,Corporate Services,Transport Taxis,06.04.2017,1905546653,"9,162.90",Street Cars
Manchester City Council,Corporate Services,Transport Taxis,06.04.2017,1905546652,"5,000.00",Street Cars
Manchester City Council,Corporate Services,Charges for Services,06.04.2017,1905545897,"3,000.00",St Anthony's RC Primary School Acad
Manchester City Council,Corporate Services,Works and associated costs for Land and Buildings,06.04.2017,5100913704,"2,621.98",AECOM Limited
Manchester City Council,Corporate Services,Hire of Premises,06.04.2017,5100913673,"1,378.33",Quaker Trading Ltd
Manchester City Council,Corporate Services,Water Service Charges - Unmetered,06.04.2017,1905546484,"1,371.51",United Utilities Water Plc
Manchester City Council,Corporate Services,Water Service Charges - Metered,06.04.2017,1905546312,"1,166.89",United Utilities Water Plc
Manchester City Council,Corporate Services,Travel Season Ticket Loan Scheme,06.04.2017,5100913300,747.00,Transport for Greater Manchester
Manchester City Council,Corporate Services,Works and associated costs for Land and Buildings,06.04.2017,5100913674,"-10,000.00",AECOM Limited
Manchester City Council,Housing General Fund,Building Works,06.04.2017,5100913578,"76,408.10",Wythenshawe Community Housing Group
Manchester City Council,Housing General Fund,Surplus property Acquisitions,06.04.2017,1905546622,"30,000.00",Marsh Bolton Ltd t/a Cohens Chemist
Manchester City Council,Housing General Fund,Professional fees,06.04.2017,5100913648,"13,000.00",Manchester Care & Repair Ltd
Manchester City Council,Housing Revenue Account,Council Dwelling Adaptations,06.04.2017,5100913549,"45,295.56",Manchester Working Ltd
Manchester City Council,Housing Revenue Account,Council Dwelling Adaptations,06.04.2017,5100913567,"14,890.99",SIG Roofing Supplies
Manchester City Council,Housing Revenue Account,Council Dwelling Adaptations,06.04.2017,5100913681,"6,321.00",Hoist & Shower Chair Company
Manchester City Council,Housing Revenue Account,Council Dwelling Adaptations,06.04.2017,5100913558,"5,239.26",Manchester Working Ltd
Manchester City Council,Housing Revenue Account,Council Dwelling Adaptations,06.04.2017,5100913564,"5,160.83",SIG Roofing Supplies
Manchester City Council,Housing Revenue Account,Council Dwelling Adaptations,06.04.2017,5100913534,"4,484.23",Manchester Working Ltd
Manchester City Council,Housing Revenue Account,Council Dwelling Adaptations,06.04.2017,5100913548,"4,159.86",SIG Roofing Supplies
Manchester City Council,Housing Revenue Account,Council Dwelling Adaptations,06.04.2017,5100913571,"2,513.95",Canopies UK
Manchester City Council,Housing Revenue Account,Council Dwelling Adaptations,06.04.2017,5100913582,"1,526.05",Pts Plumbing Trade Supplies
Manchester City Council,Housing Revenue Account,Council Dwelling Adaptations,06.04.2017,5100913629,"1,453.57",Pts Plumbing Trade Supplies
Manchester City Council,Housing Revenue Account,Electricity,06.04.2017,1905546406,"1,045.66",Scottish & Southern Energy Plc
Manchester City Council,Housing Revenue Account,Council Dwelling Adaptations,06.04.2017,5100913586,"1,017.36",Rexel UK Ltd
Manchester City Council,Housing Revenue Account,Council Dwelling Adaptations,06.04.2017,5100913591,891.70,SIG Roofing Supplies
Manchester City Council,Housing Revenue Account,Council Dwelling Adaptations,06.04.2017,5100913555,858.00,IG Doors Ltd
Manchester City Council,Housing Revenue Account,Council Dwelling Adaptations,06.04.2017,5100913547,753.41,Vista Panels Ltd
Manchester City Council,Housing Revenue Account,Council Dwelling Adaptations,06.04.2017,5100913633,726.29,Wrekin Windows
Manchester City Council,Housing Revenue Account,Council Dwelling Adaptations,06.04.2017,5100913579,678.34,Pts Plumbing Trade Supplies
Manchester City Council,Housing Revenue Account,Council Dwelling Adaptations,06.04.2017,5100913575,656.80,IG Doors Ltd
Manchester City Council,Housing Revenue Account,Council Dwelling Adaptations,06.04.2017,5100913680,"-6,321.00",Hoist & Shower Chair Company
Manchester City Council,Chief Executives,Grant and subscriptions awarded,06.04.2017,5100913560,"137,500.00",National Football Museum
Manchester City Council,Chief Executives,Agency staff provision,06.04.2017,5100913694,"45,060.93",Hays Personnel
Manchester City Council,Chief Executives,Advertising,06.04.2017,5100913518,"10,500.00",Trinity Mirror NW2 Ltd
Manchester City Council,Chief Executives,Works and associated costs for Land and Buildings,06.04.2017,5100913704,"9,622.07",AECOM Limited
Manchester City Council,Chief Executives,Furniture,06.04.2017,5100913240,"6,384.14",Egan Reid Stationery Co Ltd
Manchester City Council,Chief Executives,Works and associated costs for Land and Buildings,06.04.2017,5100913704,"5,053.72",AECOM Limited
Manchester City Council,Chief Executives,Agency staff provision,06.04.2017,5100913219,"5,048.37",Semester Recruitment Ltd
Manchester City Council,Chief Executives,Professional fees,06.04.2017,5100913653,"3,050.00",Springbank Flowers
Manchester City Council,Chief Executives,I T Provision,06.04.2017,5100913696,"2,000.00",Xpress Software Solutions Ltd
Manchester City Council,Chief Executives,Printing,06.04.2017,5100913542,887.00,Wallace Printers Ltd
Manchester City Council,Chief Executives,Agency staff provision,06.04.2017,5100913274,731.70,Semester Recruitment Ltd
Manchester City Council,Regeneration Finance,Rents,06.04.2017,1905539619,"45,977.75",CBRE Ltd
Manchester City Council,Regeneration Finance,Internal Repairs and Maintenance for buildings,06.04.2017,5100913536,"30,983.51",Manchester Working Ltd
Manchester City Council,Regeneration Finance,Internal Repairs and Maintenance for buildings,06.04.2017,5100913531,"22,224.72",Manchester Working Ltd
Manchester City Council,Regeneration Finance,Water Service Charges - Metered,06.04.2017,1905546346,"5,003.24",United Utilities Water Plc
Manchester City Council,Regeneration Finance,Water Service Charges - Metered,06.04.2017,1905546390,"4,952.54",United Utilities Water Plc
Manchester City Council,Regeneration Finance,Water Service Charges - Metered,06.04.2017,1905546367,"4,390.27",United Utilities Water Plc
Manchester City Council,Regeneration Finance,Water Service Charges - Metered,06.04.2017,1905546347,"3,371.45",United Utilities Water Plc
Manchester City Council,Regeneration Finance,Water Service Charges - Metered,06.04.2017,1905546341,"2,010.56",United Utilities Water Plc
Manchester City Council,Regeneration Finance,Water Service Charges - Metered,06.04.2017,1905546348,"2,005.48",United Utilities Water Plc
Manchester City Council,Regeneration Finance,Water Service Charges - Metered,06.04.2017,1905546391,"1,667.14",United Utilities Water Plc
Manchester City Council,Regeneration Finance,Water Service Charges - Metered,06.04.2017,1905546321,"1,617.41",United Utilities Water Plc
Manchester City Council,Regeneration Finance,Water Service Charges - Metered,06.04.2017,1905546368,"1,435.50",United Utilities Water Plc
Manchester City Council,Regeneration Finance,Water Service Charges - Metered,06.04.2017,1905546313,"1,291.35",United Utilities Water Plc
Manchester City Council,Regeneration Finance,Water Service Charges - Metered,06.04.2017,1905546384,"1,213.50",United Utilities Water Plc
Manchester City Council,Regeneration Finance,Water Service Charges - Metered,06.04.2017,1905546361,"1,096.55",United Utilities Water Plc
Manchester City Council,Regeneration Finance,Water Service Charges - Unmetered,06.04.2017,1905546460,919.65,United Utilities Water Plc
Manchester City Council,Regeneration Finance,Water Service Charges - Metered,06.04.2017,1905546320,901.01,United Utilities Water Plc
Manchester City Council,Regeneration Finance,Water Service Charges - Metered,06.04.2017,1905546365,866.28,United Utilities Water Plc
Manchester City Council,Regeneration Finance,Water Service Charges - Metered,06.04.2017,1905546393,823.78,United Utilities Water Plc
Manchester City Council,Regeneration Finance,Water Service Charges - Metered,06.04.2017,1905546374,769.12,United Utilities Water Plc
Manchester City Council,Regeneration Finance,Water Service Charges - Metered,06.04.2017,1905546358,722.66,United Utilities Water Plc
Manchester City Council,Regeneration Finance,Cleaning Equipment and Materials,06.04.2017,5100913224,584.20,Alliance Disposables Ltd
Manchester City Council,Regeneration Finance,Stationery,06.04.2017,5100913267,576.84,Banner Group Limited
Manchester City Council,Regeneration Finance,Water Service Charges - Metered,06.04.2017,1905546333,566.47,United Utilities Water Plc
Manchester City Council,Regeneration Finance,Water Service Charges - Metered,06.04.2017,1905546387,544.01,United Utilities Water Plc
Manchester City Council,Regeneration Finance,Water Service Charges - Metered,06.04.2017,1905546381,503.10,United Utilities Water Plc
Manchester City Council,Regeneration Finance,Water Service Charges - Metered,06.04.2017,1700070339,-600.85,United Utilities Water Plc
Manchester City Council,Regeneration Finance,Water Service Charges - Metered,06.04.2017,1700070342,-937.20,United Utilities Water Plc
Manchester City Council,Highways Services,Electricity,06.04.2017,1905546407,"307,282.58",Scottish & Southern Energy Plc
Manchester City Council,Highways Services,External repairs and maintenance for buildings,06.04.2017,5100913336,"2,900.00",H W Martin (Traffic Management) Ltd
Manchester City Council,Highways Services,Electricity,06.04.2017,1905546408,"2,465.75",Scottish & Southern Energy Plc
Manchester City Council,Highways Services,Electricity,06.04.2017,1905546405,851.32,Scottish & Southern Energy Plc
Manchester City Council,Highways Services,Payments to Sub-Contractors,06.04.2017,5100913603,"-3,543.50",Groundwork Landscapes Ltd
Manchester City Council,Insurance Fund,Marine Insurance Premium,06.04.2017,1905546624,"5,882.37",Zurich Insurance
Manchester City Council,Manchester Leisure,Third party payments relating to Voluntary Organisations,07.04.2017,5100913650,"16,534.50",Career Connect
Manchester City Council,Manchester Leisure,Labour Charges,07.04.2017,5100913877,"13,167.93",Trafford M B C
Manchester City Council,Manchester Leisure,Grounds Maintenance Costs,07.04.2017,5100913524,"6,749.36",Continental Landscapes Limited
Manchester City Council,Manchester Leisure,Grant and subscriptions awarded,07.04.2017,5100913157,"6,000.00",Bolton Mbc
Manchester City Council,Manchester Leisure,Special Events,07.04.2017,5100913455,"1,450.00",Ramora Ltd
Manchester City Council,Manchester Leisure,Building Materials for direct delivery,07.04.2017,5100913467,900.00,The Fountain Company Ltd
Manchester City Council,Manchester Leisure,Building Materials for direct delivery,07.04.2017,5100913465,-900.00,The Fountain Company Ltd
Manchester City Council,Adult Social Care,Training and Development,07.04.2017,5100913767,"77,561.00",One Education Ltd
Manchester City Council,Adult Social Care,Third party payments to other Local Authorities,07.04.2017,5100913717,"16,218.99",Stockport Metropolitan Borough
Manchester City Council,Adult Social Care,Rents,07.04.2017,5100913910,"6,925.36",Adactus Housing Group Ltd
Manchester City Council,Adult Social Care,Professional fees,07.04.2017,5100913722,"6,804.00",EC Safeguarding Consultancy Ltd
Manchester City Council,Adult Social Care,Rents,07.04.2017,5100913910,"6,535.36",Adactus Housing Group Ltd
Manchester City Council,Adult Social Care,Rents,07.04.2017,5100913732,"4,725.00",Commercial Real Estates Management
Manchester City Council,Adult Social Care,Training and Development,07.04.2017,5100913706,"2,148.75",Pearson Education Ltd
Manchester City Council,Adult Social Care,Security,07.04.2017,5100913764,"1,694.60",Manchester Mental Health & Social C
Manchester City Council,Adult Social Care,Third party payments to Health Authority,07.04.2017,1905546644,"1,224.08",Spectrum Community Health CIC
Manchester City Council,Adult Social Care,Supported Accommodation,07.04.2017,1905547302,561.24,Redacted Personal Information
Manchester City Council,Childrens Services,Works and associated costs for Land and Buildings,07.04.2017,5100913707,"5,500.00",Atkins Limited
Manchester City Council,Childrens Services,Building Works,07.04.2017,5100913724,"1,950.00",United Learning Trust
Manchester City Council,Corporate Services,Long Term Debtors,07.04.2017,5100913950,"213,192.25",Nook & Key Ltd
Manchester City Council,Corporate Services,Professional fees,07.04.2017,5100913874,"72,861.09",Wigan Metropolitan Borough Council
Manchester City Council,Corporate Services,Works and associated costs for Land and Buildings,07.04.2017,5100913796,"35,000.00",Manchester Working Ltd
Manchester City Council,Corporate Services,Works and associated costs for Land and Buildings,07.04.2017,5100913805,"20,256.03",Morrison Facilities Services Ltd
Manchester City Council,Corporate Services,External repairs and maintenance for buildings,07.04.2017,5100913782,"16,996.29",Manchester Working Ltd
Manchester City Council,Corporate Services,Works and associated costs for Land and Buildings,07.04.2017,5100913806,"12,259.39",Morrison Facilities Services Ltd
Manchester City Council,Corporate Services,Grant and subscriptions awarded,07.04.2017,5100913906,"3,950.00",CIPFA Business Ltd
Manchester City Council,Corporate Services,"Clothes, Uniform and Laundry",07.04.2017,5100913369,"3,707.30",Slater Menswear
Manchester City Council,Corporate Services,Professional fees,07.04.2017,5100913874,"2,119.93",Wigan Metropolitan Borough Council
Manchester City Council,Corporate Services,External repairs and maintenance for buildings,07.04.2017,5100913783,"1,990.66",Manchester Working Ltd
Manchester City Council,Corporate Services,Postage,07.04.2017,5100913593,"1,142.45",Royal Mail Group Plc
Manchester City Council,Corporate Services,Catering,07.04.2017,5100913925,937.80,Manchester Central
Manchester City Council,Corporate Services,Works and associated costs for Land and Buildings,07.04.2017,5100913803,"-20,256.03",Morrison Facilities Services Ltd
Manchester City Council,Housing General Fund,Building Works,07.04.2017,1905546700,"16,148.00",Pollock Lifts Ltd
Manchester City Council,Housing General Fund,Building Works,07.04.2017,1905546692,"9,673.87",Kier Services Ltd - Maint West
Manchester City Council,Housing General Fund,Building Works,07.04.2017,1905546661,"8,307.20",UPS Building & Maintenance Ltd
Manchester City Council,Housing General Fund,Building Works,07.04.2017,1905546699,"7,108.70",UPS Building & Maintenance Ltd
Manchester City Council,Housing General Fund,Building Works,07.04.2017,1905546660,"6,913.30",UPS Building & Maintenance Ltd
Manchester City Council,Housing General Fund,Building Works,07.04.2017,1905546677,"5,001.00",Thyssenkrupp Encasa
Manchester City Council,Housing General Fund,Building Works,07.04.2017,1905546687,"4,752.11",UPS Building & Maintenance Ltd
Manchester City Council,Housing General Fund,Building Works,07.04.2017,1905546689,"4,731.41",UPS Building & Maintenance Ltd
Manchester City Council,Housing General Fund,Building Works,07.04.2017,1905546679,"4,465.00",Stannah Lift Services Ltd
Manchester City Council,Housing General Fund,Building Works,07.04.2017,1905546691,"4,356.00",Stannah Lift Services Ltd
Manchester City Council,Housing General Fund,Building Works,07.04.2017,1905546683,"4,337.32",UPS Building & Maintenance Ltd
Manchester City Council,Housing General Fund,Building Works,07.04.2017,1905546698,"4,012.00",Stannah Lift Services Ltd
Manchester City Council,Housing General Fund,Building Works,07.04.2017,1905546684,"2,804.98",UPS Building & Maintenance Ltd
Manchester City Council,Housing General Fund,Building Works,07.04.2017,1905546686,"2,320.00",UPS Building & Maintenance Ltd
Manchester City Council,Housing General Fund,Building Works,07.04.2017,1905546690,"2,236.70",UPS Building & Maintenance Ltd
Manchester City Council,Housing General Fund,Building Works,07.04.2017,1905546697,"2,218.00",Stannah Lift Services Ltd
Manchester City Council,Housing General Fund,Building Works,07.04.2017,1905546693,"2,173.00",Stannah Lift Services Ltd
Manchester City Council,Housing General Fund,Building Works,07.04.2017,1905546685,"1,977.56",UPS Building & Maintenance Ltd
Manchester City Council,Housing General Fund,Building Works,07.04.2017,1700070346,-849.00,Kier Services Ltd - Maint West
Manchester City Council,Housing Revenue Account,Council Dwelling Adaptations,07.04.2017,5100913740,"29,098.41",Manchester Working Ltd
Manchester City Council,Housing Revenue Account,Council Dwelling Adaptations,07.04.2017,5100913742,"18,712.50",Manchester Working Ltd
Manchester City Council,Housing Revenue Account,Council Dwelling Adaptations,07.04.2017,5100913744,"5,832.45",SIG Roofing Supplies
Manchester City Council,Housing Revenue Account,Council Dwelling Adaptations,07.04.2017,5100913751,"5,305.03",SIG Roofing Supplies
Manchester City Council,Housing Revenue Account,Council Dwelling Adaptations,07.04.2017,5100913563,"5,122.44",SIG Roofing Supplies
Manchester City Council,Housing Revenue Account,Council Dwelling Adaptations,07.04.2017,5100913557,"4,504.52",SIG Roofing Supplies
Manchester City Council,Housing Revenue Account,Council Dwelling Adaptations,07.04.2017,5100913739,"4,227.49",Manchester Working Ltd
Manchester City Council,Housing Revenue Account,Council Dwelling Adaptations,07.04.2017,5100913559,"4,159.86",SIG Roofing Supplies
Manchester City Council,Housing Revenue Account,Council Dwelling Adaptations,07.04.2017,5100913752,"2,148.80",SIG Roofing Supplies
Manchester City Council,Chief Executives,Professional fees,07.04.2017,5100913874,"19,469.79",Wigan Metropolitan Borough Council
Manchester City Council,Chief Executives,Grant Payments,07.04.2017,5100913878,"5,000.00",All Arts & Media Ltd
Manchester City Council,Chief Executives,Printing,07.04.2017,5100913758,930.00,Silk Group Ltd
Manchester City Council,Chief Executives,Catering,07.04.2017,5100913842,659.60,Manchester Central
Manchester City Council,Chief Executives,Grant Payments,07.04.2017,5100913871,"-5,000.00",All Arts & Media Ltd
Manchester City Council,Regeneration Finance,Subsistence and Conference Expenses,07.04.2017,5100913876,"600,000.00",Marketing Manchester
Manchester City Council,Regeneration Finance,External repairs and maintenance for buildings,07.04.2017,5100913793,"11,644.06",Manchester Working Ltd
Manchester City Council,Regeneration Finance,Refuse Collection,07.04.2017,5100913573,"6,520.60",Redgate Holdings Ltd
Manchester City Council,Regeneration Finance,Equipment,07.04.2017,5100913907,"1,553.50",Siemens Financial Services Ltd
Manchester City Council,Regeneration Finance,"Clothes, Uniform and Laundry",07.04.2017,5100913353,"1,087.95",Slater Menswear
Manchester City Council,Regeneration Finance,Cleaning Equipment,07.04.2017,5100913749,632.00,Power Care
Manchester City Council,Regeneration Finance,Refuse Collection,07.04.2017,5100913748,567.00,SAICA Natur
Manchester City Council,Regeneration Finance,Refuse Collection,07.04.2017,5100913791,-567.00,SAICA Natur
Manchester City Council,Regeneration Finance,Refuse Collection,07.04.2017,5100913570,"-6,520.60",Redgate Holdings Ltd
Manchester City Council,Highways Services,Payments to Sub-Contractors,07.04.2017,5100913718,"4,698.31",Kenny Bros (Civil Eng) Ltd
Manchester City Council,Highways Services,Payments to Sub-Contractors,07.04.2017,5100913880,"2,310.00",Kenny Bros (Civil Eng) Ltd
Manchester City Council,Highways Services,Payments to Sub-Contractors,07.04.2017,5100913881,"2,180.70",Kenny Bros (Civil Eng) Ltd
Manchester City Council,Highways Services,Hire of Machinery,07.04.2017,5100913788,"2,147.81",One Stop Hire Limited
Manchester City Council,Highways Services,Hire of Machinery,07.04.2017,5100913788,"2,147.80",One Stop Hire Limited
Manchester City Council,Highways Services,Payments to Sub-Contractors,07.04.2017,5100913882,"1,940.00",Kenny Bros (Civil Eng) Ltd
Manchester City Council,Manchester Leisure,Refuse Collection,10.04.2017,5100913025,"154,000.00",Biffa Municipal Limited
Manchester City Council,Manchester Leisure,Special Events,10.04.2017,5100914020,"10,917.50",Walk The Plank Ltd
Manchester City Council,Manchester Leisure,Professional fees,10.04.2017,5100914013,"8,000.00",Manchester Secondary PRU
Manchester City Council,Manchester Leisure,Library Materials Acquisition,10.04.2017,1905548173,"4,270.30",OverDrive Inc
Manchester City Council,Manchester Leisure,Grant and subscriptions awarded,10.04.2017,5100914021,"4,000.00",Senhouse Roman Museum
Manchester City Council,Manchester Leisure,External repairs and maintenance for buildings,10.04.2017,5100913517,"2,750.00",Keebuilders Uk Ltd
Manchester City Council,Manchester Leisure,External repairs and maintenance for buildings,10.04.2017,5100913779,"2,708.41",T/A Dyno-Drain Serv
Manchester City Council,Manchester Leisure,Payments to Sub-Contractors,10.04.2017,5100913895,"1,930.00",Continental Landscapes Limited
Manchester City Council,Manchester Leisure,Catering,10.04.2017,5100913933,"1,650.00",Eat Pennines Ltd
Manchester City Council,Manchester Leisure,Payments to Sub-Contractors,10.04.2017,5100913713,"1,200.00",Public Sector Software Ltd
Manchester City Council,Manchester Leisure,Special Events,10.04.2017,1905547300,955.00,Worcestershire Medal Service
Manchester City Council,Manchester Leisure,Hire of Premises,10.04.2017,5100913592,700.00,The Factory Youth Zone
Manchester City Council,Manchester Leisure,External repairs and maintenance for buildings,10.04.2017,5100913921,598.00,Ashlea Ltd
Manchester City Council,Manchester Leisure,Professional fees,10.04.2017,1905546821,504.00,Elite Film & Media
Manchester City Council,Manchester Leisure,Grant Payments,10.04.2017,1905547304,500.00,Hillside Tenants & Res Assoc
Manchester City Council,Libraries and Theatres,Vehicle Plant Furniture and Equipment,10.04.2017,5100913963,"3,560.90",Xerox Global Outsourcing
Manchester City Council,Hospitality + Trading Services,Hire of Machinery,10.04.2017,5100913915,"2,495.81",One Stop Hire Limited
Manchester City Council,Hospitality + Trading Services,Rents,10.04.2017,1905546751,"1,749.88",St Modwen Corporate Services Ltd
Manchester City Council,Hospitality + Trading Services,Vehicle Hire Costs,10.04.2017,5100913703,"1,700.00",Peter Douglass Platforms
Manchester City Council,Hospitality + Trading Services,Vehicle Hire Costs,10.04.2017,5100913705,"1,380.00",Peter Douglass Platforms
Manchester City Council,Hospitality + Trading Services,Goods purchased for resale in Council outlets,10.04.2017,5100913798,"1,230.00",Thomas Group (Marble & Granite) Ltd
Manchester City Council,Hospitality + Trading Services,Hire of Machinery,10.04.2017,5100914016,920.00,Kensite Services Ltd
Manchester City Council,Hospitality + Trading Services,Vehicle Hire Costs,10.04.2017,5100913630,869.20,Fleet Dynamic Consultancy Ltd
Manchester City Council,Hospitality + Trading Services,I T Provision,10.04.2017,5100913708,762.50,Blackstone Computer Services Ltd
Manchester City Council,Hospitality + Trading Services,Hire of Machinery,10.04.2017,5100914018,736.00,Kensite Services Ltd
Manchester City Council,Hospitality + Trading Services,Hire of Machinery,10.04.2017,5100914015,575.00,Kensite Services Ltd
Manchester City Council,Adult Social Care,Third party payments relating to Voluntary Organisations,10.04.2017,5100913710,"100,000.00",Wythenshawe Community Housing Group
Manchester City Council,Adult Social Care,Bed and Breakfast Accommodation Expenditure,10.04.2017,5100913960,"67,946.29",Accommodation Links Ltd
Manchester City Council,Adult Social Care,Third party payments relating to Voluntary Organisations,10.04.2017,5100913456,"38,641.00",Coram Voice
Manchester City Council,Adult Social Care,Bed and Breakfast Accommodation Expenditure,10.04.2017,5100913944,"16,964.00",Redacted Personal Information
Manchester City Council,Adult Social Care,Bed and Breakfast Accommodation Expenditure,10.04.2017,5100913970,"8,500.00",Redacted Personal Information
Manchester City Council,Adult Social Care,Bed and Breakfast Accommodation Expenditure,10.04.2017,5100913965,"8,060.00",Redacted Personal Information
Manchester City Council,Adult Social Care,Grant and subscriptions awarded,10.04.2017,5100913756,"7,550.10",Oldham Borough Council
Manchester City Council,Adult Social Care,Bed and Breakfast Accommodation Expenditure,10.04.2017,5100914014,"7,238.00",Redacted Personal Information
Manchester City Council,Adult Social Care,External repairs and maintenance for buildings,10.04.2017,5100913948,"6,665.20",Torus Property Solutions
Manchester City Council,Adult Social Care,Payments for services,10.04.2017,5100913807,"5,462.96",The Together Trust
Manchester City Council,Adult Social Care,Payments for services,10.04.2017,5100913808,"5,462.96",The Together Trust
Manchester City Council,Adult Social Care,Payments for services,10.04.2017,5100913809,"5,462.96",The Together Trust
Manchester City Council,Adult Social Care,Payments for services,10.04.2017,5100913175,"5,190.00",UTC@MediaCityUK
Manchester City Council,Adult Social Care,Transport Coach Hire,10.04.2017,5100913999,"4,963.20",Lancashire County Council
Manchester City Council,Adult Social Care,Contract Cleaning External,10.04.2017,5100913328,"4,800.00",Tiddlywinks Nursery-Clayton No.4 Ac
Manchester City Council,Adult Social Care,Third party payments to other Local Authorities,10.04.2017,5100913735,"4,152.00",Salford City Council
Manchester City Council,Adult Social Care,Third party payments to other Local Authorities,10.04.2017,5100913729,"2,150.00",Salford City Council
Manchester City Council,Adult Social Care,Equipment,10.04.2017,5100913959,"1,995.00",After Adoption
Manchester City Council,Adult Social Care,Licences Purchase,10.04.2017,5100913413,"1,394.42",The Performing Right Society
Manchester City Council,Adult Social Care,Licences Purchase,10.04.2017,5100913413,"1,376.07",The Performing Right Society
Manchester City Council,Adult Social Care,Third party payments relating to Voluntary Organisations,10.04.2017,5100913967,"1,133.75",Royal Oak Community Centre
Manchester City Council,Adult Social Care,Expenditure re Internal Trading Ordered Externally,10.04.2017,5100913540,800.00,Chancellors Hotel & Conf Centre
Manchester City Council,Adult Social Care,Professional fees,10.04.2017,1905546650,750.00,Stephensons Solicitors
Manchester City Council,Adult Social Care,Grounds Maintenance Costs,10.04.2017,5100913326,728.50,Tiddlywinks Nursery-Clayton No.4 Ac
Manchester City Council,Adult Social Care,Third party payments relating to Voluntary Organisations,10.04.2017,5100913971,564.75,TiddlyWinks Creche Provisions
Manchester City Council,Adult Social Care,Licences Purchase,10.04.2017,5100913413,528.68,The Performing Right Society
Manchester City Council,Adult Social Care,Licences Purchase,10.04.2017,5100913413,-888.79,The Performing Right Society
Manchester City Council,Adult Social Care,Payments for services,10.04.2017,5100913810,"-13,009.38",The Together Trust
Manchester City Council,Childrens Services,Building Works,10.04.2017,5100913642,"71,368.58",The Dean Trust
Manchester City Council,Corporate Services,Travel,10.04.2017,1905545864,"23,356.85",Trainline.com Limited
Manchester City Council,Corporate Services,Works and associated costs for Land and Buildings,10.04.2017,5100913784,"7,644.33",Manchester Working Ltd
Manchester City Council,Corporate Services,Works and associated costs for Land and Buildings,10.04.2017,5100913794,"5,049.23",Manchester Working Ltd
Manchester City Council,Corporate Services,Discounted Car Parking,10.04.2017,1905547342,"3,843.00",National Car Parks Ltd Season Ticke
Manchester City Council,Corporate Services,Training and Development,10.04.2017,5100913168,"1,297.00",BPP Professional Education
Manchester City Council,Corporate Services,Expenditure re Internal Trading Ordered Externally,10.04.2017,5100913712,"1,211.91",Warrington Borough Council
Manchester City Council,Corporate Services,CRB Fees,10.04.2017,5100913287,"1,156.50",United Medicare Ltd
Manchester City Council,Housing General Fund,Building Works,10.04.2017,1905546659,"17,791.34",UPS Building & Maintenance Ltd
Manchester City Council,Housing General Fund,Building Works,10.04.2017,1905546681,"10,493.80",UPS Building & Maintenance Ltd
Manchester City Council,Housing General Fund,Building Works,10.04.2017,1905546674,"8,923.10",UPS Building & Maintenance Ltd
Manchester City Council,Housing General Fund,Building Works,10.04.2017,1905546666,"7,973.32",UPS Building & Maintenance Ltd
Manchester City Council,Housing General Fund,Building Works,10.04.2017,1905546656,"7,847.65",UPS Building & Maintenance Ltd
Manchester City Council,Housing General Fund,Building Works,10.04.2017,1905546663,"7,662.34",UPS Building & Maintenance Ltd
Manchester City Council,Housing General Fund,Building Works,10.04.2017,1905546682,"6,733.97",UPS Building & Maintenance Ltd
Manchester City Council,Housing General Fund,Building Works,10.04.2017,1905546657,"6,672.66",UPS Building & Maintenance Ltd
Manchester City Council,Housing General Fund,Building Works,10.04.2017,1905546688,"6,456.42",UPS Building & Maintenance Ltd
Manchester City Council,Housing General Fund,Building Works,10.04.2017,1905546680,"5,468.00",Stannah Lift Services Ltd
Manchester City Council,Housing General Fund,Building Works,10.04.2017,1905546668,"4,324.93",UPS Building & Maintenance Ltd
Manchester City Council,Housing General Fund,Building Works,10.04.2017,1905546662,"4,282.20",UPS Building & Maintenance Ltd
Manchester City Council,Housing General Fund,Building Works,10.04.2017,1905546673,"4,241.26",UPS Building & Maintenance Ltd
Manchester City Council,Housing General Fund,Building Works,10.04.2017,1905546670,"4,080.96",UPS Building & Maintenance Ltd
Manchester City Council,Housing General Fund,Building Works,10.04.2017,1905546665,"4,006.20",UPS Building & Maintenance Ltd
Manchester City Council,Housing General Fund,Building Works,10.04.2017,1905546671,"3,987.76",UPS Building & Maintenance Ltd
Manchester City Council,Housing General Fund,Building Works,10.04.2017,1905546672,"3,879.08",UPS Building & Maintenance Ltd
Manchester City Council,Housing General Fund,Building Works,10.04.2017,1905546658,"3,842.13",UPS Building & Maintenance Ltd
Manchester City Council,Housing General Fund,Building Works,10.04.2017,1905546669,"3,805.90",UPS Building & Maintenance Ltd
Manchester City Council,Housing General Fund,Building Works,10.04.2017,1905546667,"3,414.66",UPS Building & Maintenance Ltd
Manchester City Council,Housing Revenue Account,Council Dwelling Adaptations,10.04.2017,5100913743,"30,093.50",SIG Roofing Supplies
Manchester City Council,Housing Revenue Account,Council Dwelling Adaptations,10.04.2017,5100913743,"16,216.84",SIG Roofing Supplies
Manchester City Council,Chief Executives,Third party payments relating to Voluntary Organisations,10.04.2017,5100913103,"114,032.83",HOME
Manchester City Council,Chief Executives,Licences Purchase,10.04.2017,5100913024,"29,870.40",Experian Qas Ltd
Manchester City Council,Chief Executives,Licences Purchase,10.04.2017,5100913598,"8,445.22",Softcat
Manchester City Council,Chief Executives,Works and associated costs for Land and Buildings,10.04.2017,5100913770,"2,500.00",WSP UK Ltd
Manchester City Council,Chief Executives,Printing,10.04.2017,5100913879,"1,880.00",Browns Digital Ltd
Manchester City Council,Chief Executives,Printing,10.04.2017,5100913182,"1,622.00",NB Colour Print Limited
Manchester City Council,Chief Executives,Advertising,10.04.2017,5100913975,"1,500.00",Elonex Digital Malls
Manchester City Council,Chief Executives,Funeral and coroner related services,10.04.2017,5100913935,"1,336.50",Middleton Funeralcare
Manchester City Council,Chief Executives,Printing,10.04.2017,5100913951,"1,193.00",Allied Publicity Serv.(Manchester)
Manchester City Council,Chief Executives,Printing,10.04.2017,5100913760,975.00,Silk Group Ltd
Manchester City Council,Chief Executives,Vehicle Plant Furniture and Equipment,10.04.2017,5100913085,802.80,FTS Facilities
Manchester City Council,Chief Executives,Funeral and coroner related services,10.04.2017,5100913937,742.50,Middleton Funeralcare
Manchester City Council,Chief Executives,Paper & Envelopes,10.04.2017,5100913119,729.30,Premier Paper Group Ltd
Manchester City Council,Chief Executives,Printing,10.04.2017,5100913186,667.00,NB Colour Print Limited
Manchester City Council,Regeneration Finance,Payments for services,10.04.2017,5100913345,"7,168.73",Victoria Baths Trust
Manchester City Council,Regeneration Finance,External repairs and maintenance for buildings,10.04.2017,5100913919,"6,800.07",Manchester Working Ltd
Manchester City Council,Regeneration Finance,Travel,10.04.2017,5100914017,"6,117.13",Manchester International Festival
Manchester City Council,Regeneration Finance,I T Provision,10.04.2017,5100913721,"4,442.44",Computacenter (UK) Ltd
Manchester City Council,Regeneration Finance,External repairs and maintenance for buildings,10.04.2017,5100913919,"3,119.00",Manchester Working Ltd
Manchester City Council,Regeneration Finance,Internal Repairs and Maintenance for buildings,10.04.2017,5100913601,"1,755.00",Skyline Ltd
Manchester City Council,Regeneration Finance,Refuse Collection,10.04.2017,5100913792,567.00,SAICA Natur
Manchester City Council,Regeneration Finance,Legal Fees,10.04.2017,5100913887,500.00,Redacted Personal Information
Manchester City Council,Highways Services,Professional fees,10.04.2017,5100913928,"12,492.70",Mott Macdonald Uk Limited
Manchester City Council,Highways Services,Professional fees,10.04.2017,5100913110,"9,547.20",Turner & Townsend Cost
Manchester City Council,Highways Services,Professional fees,10.04.2017,5100913108,"6,938.84",Turner & Townsend Cost
Manchester City Council,Highways Services,Professional fees,10.04.2017,5100913114,"5,501.13",Turner & Townsend Cost
Manchester City Council,Highways Services,Payments to Sub-Contractors,10.04.2017,5100913802,"4,250.00",Northern Marking Limited
Manchester City Council,Highways Services,Payments to Sub-Contractors,10.04.2017,5100913800,"2,497.61",Northern Marking Limited
Manchester City Council,Highways Services,Tipping Charges - Tonnage,10.04.2017,5100913989,"1,860.00",J.Hopkins (Contractors) Ltd.
Manchester City Council,Highways Services,Payments to Sub-Contractors,10.04.2017,5100913801,"1,350.00",Northern Marking Limited
Manchester City Council,Highways Services,Payments to Sub-Contractors,10.04.2017,5100913797,"1,002.50",Northern Marking Limited
Manchester City Council,Highways Services,Tipping Charges - Tonnage,10.04.2017,5100913986,943.20,J.Hopkins (Contractors) Ltd.
Manchester City Council,GMIST (Greater Mcr Integrated),Agency staff provision,10.04.2017,5100913611,"47,172.80",Stockport Metropolitan Borough
Manchester City Council,Manchester Leisure,Labour Charges,11.04.2017,5100914069,"11,763.35",Bury M.B.C.
Manchester City Council,Manchester Leisure,Grant and subscriptions awarded,11.04.2017,5100914041,750.00,Age Concern Manchester
Manchester City Council,Hospitality + Trading Services,Vehicle Fuel Costs,11.04.2017,5100913964,"13,914.00",Carlton Fuels Ltd
Manchester City Council,Hospitality + Trading Services,Vehicle contract hire and leases,11.04.2017,5100914076,"2,112.50",S G Equipment Finance Ltd
Manchester City Council,Hospitality + Trading Services,Catering Provisions,11.04.2017,1905552386,"1,064.03",Brake Bros Foodservice Ltd
Manchester City Council,Hospitality + Trading Services,Vehicle contract hire and leases,11.04.2017,5100914077,780.00,S G Equipment Finance Ltd
Manchester City Council,Hospitality + Trading Services,Subsistence and Conference Expenses,11.04.2017,5100914187,555.00,Dewberry Redpoint Ltd
Manchester City Council,Environment and Operations,Construction Works,11.04.2017,5100914177,"18,758.00",Utilities Design & Planning Ltd
Manchester City Council,Environment and Operations,Construction Works,11.04.2017,5100914185,"13,048.00",Utilities Design & Planning Ltd
Manchester City Council,Environment and Operations,Construction Works,11.04.2017,5100914184,"10,805.00",Utilities Design & Planning Ltd
Manchester City Council,Adult Social Care,Third party payments relating to Voluntary Organisations,11.04.2017,5100914074,"83,333.00",Riverside ECHG
Manchester City Council,Adult Social Care,Bed and Breakfast Accommodation Expenditure,11.04.2017,5100914050,"68,762.86",Accommodation Links Ltd
Manchester City Council,Adult Social Care,Rents,11.04.2017,5100914052,"57,735.53",Mack Residential Letting Ltd
Manchester City Council,Adult Social Care,Payments for services,11.04.2017,5100914300,"47,867.41",Cambian Care Services
Manchester City Council,Adult Social Care,Payments for services,11.04.2017,5100914075,"46,473.34",Cambian Care Services
Manchester City Council,Adult Social Care,Payments for services,11.04.2017,5100914294,"46,473.34",Cambian Care Services
Manchester City Council,Adult Social Care,Payments for services,11.04.2017,5100914297,"41,975.92",Cambian Care Services
Manchester City Council,Adult Social Care,I T Provision,11.04.2017,5100914291,"33,476.90",CareerVision Ltd
Manchester City Council,Adult Social Care,Bed and Breakfast Accommodation Expenditure,11.04.2017,5100913955,"31,062.78",Cromwood Ltd
Manchester City Council,Adult Social Care,Transport Coach Hire,11.04.2017,5100914032,"14,287.65",MCR Blackcab Ltd
Manchester City Council,Adult Social Care,Transport Coach Hire,11.04.2017,5100914028,"12,049.06",MCR Blackcab Ltd
Manchester City Council,Adult Social Care,I T Provision,11.04.2017,5100914225,"11,550.00",Icom Works Limited
Manchester City Council,Adult Social Care,External repairs and maintenance for buildings,11.04.2017,5100914194,"6,760.03",Manchester Working Ltd
Manchester City Council,Adult Social Care,Grant Payments,11.04.2017,5100913676,"4,678.16",The Fostering Network
Manchester City Council,Adult Social Care,Transport Coach Hire,11.04.2017,5100914035,"3,306.45",MCR Blackcab Ltd
Manchester City Council,Adult Social Care,Payments for services,11.04.2017,5100914212,"3,230.80",The Together Trust
Manchester City Council,Adult Social Care,Third party payments to other Local Authorities,11.04.2017,5100914068,"3,150.00",Cheadle Royal Healthcare
Manchester City Council,Adult Social Care,Third party payments relating to Voluntary Organisations,11.04.2017,5100914283,"3,074.25",LMCP Care Link
Manchester City Council,Adult Social Care,Payments for services,11.04.2017,5100914214,"2,291.20",The Together Trust
Manchester City Council,Adult Social Care,Third party payments relating to Voluntary Organisations,11.04.2017,5100914238,"2,281.00",LMCP Care Link
Manchester City Council,Adult Social Care,Transport Coach Hire,11.04.2017,5100914036,"2,147.73",MCR Blackcab Ltd
Manchester City Council,Adult Social Care,Payments for services,11.04.2017,5100914296,"2,094.00",Preventx Limited
Manchester City Council,Adult Social Care,Transport Coach Hire,11.04.2017,5100914034,"1,714.88",MCR Blackcab Ltd
Manchester City Council,Adult Social Care,Payments for services,11.04.2017,5100914207,"1,570.24",The Together Trust
Manchester City Council,Adult Social Care,Payments for services,11.04.2017,5100914210,"1,570.24",The Together Trust
Manchester City Council,Adult Social Care,Professional fees,11.04.2017,5100913525,"1,500.00",Ekos Consulting (Uk) Ltd
Manchester City Council,Adult Social Care,Third party payments relating to Voluntary Organisations,11.04.2017,5100914239,"1,430.00",LMCP Care Link
Manchester City Council,Adult Social Care,Expenditure re Internal Trading Ordered Externally,11.04.2017,5100914246,"1,359.20",Ag + Photography
Manchester City Council,Adult Social Care,Payments for services,11.04.2017,5100914215,"1,144.83",The Together Trust
Manchester City Council,Adult Social Care,Payments for services,11.04.2017,5100914221,763.22,The Together Trust
Manchester City Council,Adult Social Care,Legal Fees,11.04.2017,5100914263,750.00,Redacted Personal Information
Manchester City Council,Adult Social Care,Third party payments to Health Authority,11.04.2017,1905548062,736.00,Bolton NHS FT
Manchester City Council,Adult Social Care,Third party payments relating to Voluntary Organisations,11.04.2017,5100913734,666.50,The Generation Project
Manchester City Council,Adult Social Care,Payments for services,11.04.2017,5100914222,613.20,The Together Trust
Manchester City Council,Adult Social Care,Payments for services,11.04.2017,5100914219,533.12,The Together Trust
Manchester City Council,Adult Social Care,Professional fees,11.04.2017,5100914203,505.40,Alere Toxicology Plc
Manchester City Council,Adult Social Care,I T Provision,11.04.2017,5100914288,"-11,550.00",Icom Works Limited
Manchester City Council,Childrens Services,Building Works,11.04.2017,5100914261,"104,721.39",Manchester Health Academy
Manchester City Council,Corporate Services,Storage Costs,11.04.2017,5100913966,"5,059.02",Box-It (NW)
Manchester City Council,Corporate Services,Professional fees,11.04.2017,5100914268,"2,600.00",Lambert Smith Hampton
Manchester City Council,Corporate Services,Training and Development,11.04.2017,5100914180,"2,045.00",Cipfa
Manchester City Council,Corporate Services,Grant Payments,11.04.2017,5100914200,"1,790.00",Compliance365
Manchester City Council,Corporate Services,Training and Development,11.04.2017,5100914179,"1,655.00",Cipfa
Manchester City Council,Corporate Services,Travel Season Ticket Loan Scheme,11.04.2017,5100913931,550.00,Stagecoach Manchester
Manchester City Council,Corporate Services,Travel Season Ticket Loan Scheme,11.04.2017,5100913931,550.00,Stagecoach Manchester
Manchester City Council,Corporate Services,Travel Season Ticket Loan Scheme,11.04.2017,5100913931,550.00,Stagecoach Manchester
Manchester City Council,Corporate Services,Travel Season Ticket Loan Scheme,11.04.2017,5100913931,550.00,Stagecoach Manchester
Manchester City Council,Corporate Services,Travel Season Ticket Loan Scheme,11.04.2017,5100913931,550.00,Stagecoach Manchester
Manchester City Council,Corporate Services,Travel Season Ticket Loan Scheme,11.04.2017,5100913931,550.00,Stagecoach Manchester
Manchester City Council,Corporate Services,Professional fees,11.04.2017,5100913165,520.00,Faithful & Gould Ltd
Manchester City Council,Housing Revenue Account,Northwards Repairs Fee,11.04.2017,5100914090,"1,693,333.33",Northwards Housing Limited
Manchester City Council,Housing Revenue Account,Council Dwelling Adaptations,11.04.2017,5100914053,"27,075.78",Manchester Working Ltd
Manchester City Council,Housing Revenue Account,Council Dwelling Adaptations,11.04.2017,5100914236,"4,171.00",Thyssenkrupp Encasa
Manchester City Council,Housing Revenue Account,Peaks & Plains Management Fee,11.04.2017,5100914084,"3,254.01",Cheshire Peaks & Plains
Manchester City Council,Housing Revenue Account,Peaks & Plains Management Fee,11.04.2017,5100914085,938.97,Cheshire Peaks & Plains
Manchester City Council,Chief Executives,I T Provision,11.04.2017,1905546627,"9,104.98",Vodafone (Ex C&W)
Manchester City Council,Chief Executives,I T Provision,11.04.2017,5100914072,"7,225.00",Access Intelligence Media and Comms
Manchester City Council,Chief Executives,I T Provision,11.04.2017,1905546626,"6,059.01",Vodafone (Ex C&W)
Manchester City Council,Chief Executives,Training and Development,11.04.2017,5100914266,"6,025.00",North West Employers Ltd
Manchester City Council,Chief Executives,Training and Development,11.04.2017,5100914269,"6,025.00",North West Employers Ltd
Manchester City Council,Chief Executives,Training and Development,11.04.2017,5100914270,"6,025.00",North West Employers Ltd
Manchester City Council,Chief Executives,Building Works,11.04.2017,5100914192,"3,346.00",Cheshire Contracts
Manchester City Council,Chief Executives,Training and Development,11.04.2017,5100914272,"2,062.50",North West Employers Ltd
Manchester City Council,Chief Executives,Funeral and coroner related services,11.04.2017,1905546189,"1,494.33",Redacted Personal Information
Manchester City Council,Chief Executives,Funeral and coroner related services,11.04.2017,1905546619,"1,458.13",Redacted Personal Information
Manchester City Council,Chief Executives,Funeral and coroner related services,11.04.2017,1905546620,"1,394.69",Redacted Personal Information
Manchester City Council,Chief Executives,Funeral and coroner related services,11.04.2017,1905546192,"1,361.25",Wordwave International Ltd T/A DTI
Manchester City Council,Chief Executives,Licences Purchase,11.04.2017,5100914281,"1,320.00",Virtual College Ltd
Manchester City Council,Chief Executives,Equipment,11.04.2017,5100914045,"1,298.32",Xerox (Uk) Ltd
Manchester City Council,Chief Executives,Advertising,11.04.2017,5100914265,"1,224.00",Best Asian Media Ltd
Manchester City Council,Chief Executives,Hire of Equipment,11.04.2017,5100914202,841.00,Xerox (Uk) Ltd
Manchester City Council,Chief Executives,Funeral and coroner related services,11.04.2017,1905546196,751.00,Redacted Personal Information
Manchester City Council,Chief Executives,Stationery,11.04.2017,5100914160,655.10,Banner Group Limited
Manchester City Council,Chief Executives,Professional fees,11.04.2017,5100913656,625.00,Manchester Bike Hire
Manchester City Council,Chief Executives,Grant Payments,11.04.2017,5100914037,"-7,500.00",Contact Theatre Company
Manchester City Council,Regeneration Finance,External repairs and maintenance for buildings,11.04.2017,5100914253,"32,726.09",Manchester Working Ltd
Manchester City Council,Regeneration Finance,Professional fees,11.04.2017,5100914181,"8,000.00",Sport Science Solutions Ltd
Manchester City Council,Regeneration Finance,Rents,11.04.2017,1905544472,"2,118.00",Manchester Airport Plc
Manchester City Council,Regeneration Finance,Refuse Collection,11.04.2017,5100913930,718.20,SAICA Natur
Manchester City Council,Regeneration Finance,Refuse Collection,11.04.2017,5100914264,718.20,SAICA Natur
Manchester City Council,Regeneration Finance,Refuse Collection,11.04.2017,5100914259,-718.20,SAICA Natur
Manchester City Council,Highways Services,Hire of Equipment,11.04.2017,5100913865,"13,810.61",Parkeon Ltd
Manchester City Council,Highways Services,External repairs and maintenance for buildings,11.04.2017,5100913337,"3,335.00",H W Martin (Traffic Management) Ltd
Manchester City Council,Highways Services,Payments to Sub-Contractors,11.04.2017,5100913911,550.00,Utilities Design & Planning Ltd
Manchester City Council,GMIST (Greater Mcr Integrated),Payments for services,11.04.2017,5100913762,"72,800.00",Oldham Borough Council
Manchester City Council,GMIST (Greater Mcr Integrated),Professional fees,11.04.2017,5100913087,"30,000.00",Commission for the New Economy
Manchester City Council,GMIST (Greater Mcr Integrated),Professional fees,11.04.2017,5100913086,"6,000.00",Commission for the New Economy
Manchester City Council,GMIST (Greater Mcr Integrated),Subsistence and Conference Expenses,11.04.2017,5100913193,"3,700.00",University Of Manchester
Manchester City Council,Hospitality + Trading Services,Goods purchased for resale in Council outlets,12.04.2017,5100914356,881.90,Treasured Memories Ltd
Manchester City Council,Adult Social Care,Transport Coach Hire,12.04.2017,5100914483,"40,000.00",Mantax Radio Taxis Ltd
Manchester City Council,Adult Social Care,Bed and Breakfast Accommodation Expenditure,12.04.2017,5100914452,"12,280.22",G & A Taylor Hotels Ltd
Manchester City Council,Adult Social Care,Transport Coach Hire,12.04.2017,5100914481,"12,163.76",Mantax Radio Taxis Ltd
Manchester City Council,Adult Social Care,Bed and Breakfast Accommodation Expenditure,12.04.2017,5100914441,"11,563.56",G & A Taylor Hotels Ltd
Manchester City Council,Adult Social Care,Bed and Breakfast Accommodation Expenditure,12.04.2017,5100914463,"9,320.00",Redacted Personal Information
Manchester City Council,Adult Social Care,Bed and Breakfast Accommodation Expenditure,12.04.2017,5100914466,"9,060.00",Redacted Personal Information
Manchester City Council,Adult Social Care,Equipment,12.04.2017,5100914442,"8,468.00",Medela UK Ltd
Manchester City Council,Adult Social Care,Rents,12.04.2017,5100914345,"4,715.69",Riverside ECHG
Manchester City Council,Adult Social Care,Rents,12.04.2017,5100914346,"4,715.69",Riverside ECHG
Manchester City Council,Adult Social Care,Rents,12.04.2017,5100914343,"2,416.78",Riverside ECHG
Manchester City Council,Adult Social Care,Rents,12.04.2017,5100914344,"2,416.78",Riverside ECHG
Manchester City Council,Adult Social Care,Hire of Premises,12.04.2017,5100914363,"2,100.00",Manchester United Football Club Pub
Manchester City Council,Adult Social Care,Personal needs of client,12.04.2017,5100914444,"1,922.75",James Leckey Design Ltd
Manchester City Council,Adult Social Care,Payments for services,12.04.2017,1905546628,"1,500.00",Sunny Brow Nursery School
Manchester City Council,Adult Social Care,Building Materials for direct delivery,12.04.2017,5100914211,"1,120.00",Illingworth Ingham (M/cR)
Manchester City Council,Adult Social Care,Home Care ,12.04.2017,5100914497,"1,107.84",Brighter Beginnings (Newton Heath)
Manchester City Council,Adult Social Care,Hire of Premises,12.04.2017,5100914360,"1,050.00",Manchester United Football Club Pub
Manchester City Council,Adult Social Care,Hire of Premises,12.04.2017,5100914361,"1,050.00",Manchester United Football Club Pub
Manchester City Council,Adult Social Care,Travel,12.04.2017,1905547305,912.40,R.S.P. Ltd Br Business Systems Ltd
Manchester City Council,Adult Social Care,Home Care ,12.04.2017,5100914498,803.00,Brighter Beginnings (Newton Heath)
Manchester City Council,Adult Social Care,Travel,12.04.2017,5100914375,788.20,R.S.P. Ltd Br Business Systems Ltd
Manchester City Council,Adult Social Care,Expenditure re Internal Trading Ordered Externally,12.04.2017,5100914310,724.80,Greater Manchester Police Sports &
Manchester City Council,Adult Social Care,Travel,12.04.2017,1905547305,711.00,R.S.P. Ltd Br Business Systems Ltd
Manchester City Council,Adult Social Care,Licences Purchase,12.04.2017,5100914189,630.00,Ncc Services Limited
Manchester City Council,Adult Social Care,Landline Telephone Charges,12.04.2017,1905278168,607.21,Bt Featurenet Billing
Manchester City Council,Adult Social Care,Home Care ,12.04.2017,5100914477,512.00,Buttercup Corner Day Nursery
Manchester City Council,Adult Social Care,Subsistence and Conference Expenses,12.04.2017,5100914489,500.00,All Arts & Media Ltd
Manchester City Council,Corporate Services,CRB Fees,12.04.2017,5100914393,"27,560.00",Disclosure & Barring Service
Manchester City Council,Corporate Services,Rents,12.04.2017,5100914070,"12,254.98",Regus Management (UK) Ltd
Manchester City Council,Corporate Services,Works and associated costs for Land and Buildings,12.04.2017,5100914040,"4,344.09",Manchester Working Ltd
Manchester City Council,Corporate Services,Grant Payments,12.04.2017,5100914455,"2,130.00",Compliance365
Manchester City Council,Corporate Services,Grant Payments,12.04.2017,5100914454,510.00,Compliance365
Manchester City Council,Chief Executives,ICT Support & Maintenance,12.04.2017,5100914306,"34,809.86",Logicalis UK Ltd
Manchester City Council,Chief Executives,ICT Support & Maintenance,12.04.2017,5100914307,"11,707.83",Logicalis UK Ltd
Manchester City Council,Chief Executives,Grant and subscriptions awarded,12.04.2017,5100914479,"3,820.00",Millenium Quarter Trust Admin Acct
Manchester City Council,Chief Executives,Data Links,12.04.2017,5100914427,"2,733.00",The Loop t/a Gamma Telecom Ltd
Manchester City Council,Chief Executives,Printing,12.04.2017,5100914057,700.00,Deanprint Limited
Manchester City Council,Chief Executives,Printing,12.04.2017,5100914092,542.00,S F Taylor Positive Print Solutions
Manchester City Council,Regeneration Finance,Security,12.04.2017,5100914475,"375,098.67",Group 4 Total Security Ltd T/A G4S
Manchester City Council,Regeneration Finance,External repairs and maintenance for buildings,12.04.2017,5100914332,"32,172.26",Manchester Working Ltd
Manchester City Council,Regeneration Finance,External repairs and maintenance for buildings,12.04.2017,5100914333,"28,367.74",Manchester Working Ltd
Manchester City Council,Regeneration Finance,External repairs and maintenance for buildings,12.04.2017,5100913870,"21,210.27",Manchester Working Ltd
Manchester City Council,Regeneration Finance,External repairs and maintenance for buildings,12.04.2017,5100914331,"1,002.86",Manchester Working Ltd
Manchester City Council,General Fund,Levies,12.04.2017,1905552685,"67,082.58",Manchester Port Health Authority
Manchester City Council,Hospitality + Trading Services,Electricity,13.04.2017,1905554270,"24,549.97",Npower
Manchester City Council,Hospitality + Trading Services,Electricity,13.04.2017,1905554278,"13,201.92",Npower
Manchester City Council,Hospitality + Trading Services,Legal Fees,13.04.2017,1905553647,"11,981.90",Leigh Day Solicitors
Manchester City Council,Hospitality + Trading Services,Electricity,13.04.2017,1905554279,"5,345.58",Npower
Manchester City Council,Hospitality + Trading Services,Electricity,13.04.2017,1905554273,"3,027.14",Npower
Manchester City Council,Hospitality + Trading Services,Electricity,13.04.2017,1905554268,"2,001.82",Npower
Manchester City Council,Hospitality + Trading Services,Electricity,13.04.2017,1905554277,"1,397.67",Npower
Manchester City Council,Hospitality + Trading Services,General Office expenses,13.04.2017,1905552689,888.74,Gala Graphics Ltd
Manchester City Council,Hospitality + Trading Services,Vehicle Repairs,13.04.2017,5100913776,643.00,Winners Contract Hire Ltd
Manchester City Council,Hospitality + Trading Services,Vehicle Repairs,13.04.2017,5100913774,556.41,Winners Contract Hire Ltd
Manchester City Council,Adult Social Care,Grant and subscriptions awarded,13.04.2017,5100913392,"9,712.75",42nd Street
Manchester City Council,Adult Social Care,Third party payments relating to Voluntary Organisations,13.04.2017,5100914369,"5,172.50",Music Stuff
Manchester City Council,Adult Social Care,Home Care ,13.04.2017,5100914487,"4,413.75",Wythenshawe Community Initiative
Manchester City Council,Adult Social Care,Transport Coach Hire,13.04.2017,5100913151,"2,530.00",DMC Travel
Manchester City Council,Adult Social Care,Third party payments relating to Voluntary Organisations,13.04.2017,5100913651,"2,523.16",St Lukes Art Project
Manchester City Council,Adult Social Care,Transport Coach Hire,13.04.2017,5100913150,"2,254.00",DMC Travel
Manchester City Council,Adult Social Care,Compensation Payments,13.04.2017,1905553645,"2,100.00",Thompsons Solicitors
Manchester City Council,Adult Social Care,Transport Coach Hire,13.04.2017,5100913152,"1,495.00",DMC Travel
Manchester City Council,Adult Social Care,I T Provision,13.04.2017,5100913546,"1,152.00",Reason Digital Ltd
Manchester City Council,Adult Social Care,Professional fees,13.04.2017,1905546833,"1,042.55",AGF Law Services Limited
Manchester City Council,Adult Social Care,I T Provision,13.04.2017,5100913609,934.72,Computacenter (UK) Ltd
Manchester City Council,Adult Social Care,Travel,13.04.2017,1905496099,830.90,R.S.P. Ltd Br Business Systems Ltd
Manchester City Council,Adult Social Care,Travel,13.04.2017,1905496099,760.75,R.S.P. Ltd Br Business Systems Ltd
Manchester City Council,Adult Social Care,Rents,13.04.2017,1905544480,750.00,Landmark Property Management
Manchester City Council,Adult Social Care,Legal Fees,13.04.2017,1905553648,720.00,Thompons Solicitors
Manchester City Council,Adult Social Care,Travel,13.04.2017,1905496099,711.60,R.S.P. Ltd Br Business Systems Ltd
Manchester City Council,Adult Social Care,Gas,13.04.2017,1905554302,504.87,British Gas Plc
Manchester City Council,Adult Social Care,Grant and subscriptions awarded,13.04.2017,5100914594,"-9,712.75",42nd Street
Manchester City Council,Corporate Services,External repairs and maintenance for buildings,13.04.2017,5100913720,"18,392.46",Cruden Group Ltd
Manchester City Council,Corporate Services,Transport Taxis,13.04.2017,1905554467,"11,387.59",Mantax Radio Taxis Ltd
Manchester City Council,Corporate Services,Transport Taxis,13.04.2017,1905553923,"3,873.20",Manchester Cars
Manchester City Council,Corporate Services,Electricity,13.04.2017,1905554262,"2,950.36",Npower
Manchester City Council,Corporate Services,Postage,13.04.2017,5100913869,"1,175.63",Royal Mail Group Plc
Manchester City Council,Housing General Fund,Building Works,13.04.2017,5100914299,"36,232.40",Wythenshawe Community Housing Group
Manchester City Council,Housing Revenue Account,Professional fees,13.04.2017,5100914303,"11,640.00",Roger Hannah & Co
Manchester City Council,Chief Executives,Legal Fees,13.04.2017,5100913215,"50,000.00",Salford City Council
Manchester City Council,Chief Executives,Works and associated costs for Land and Buildings,13.04.2017,5100914585,"45,418.00",Laing O'Rourke Construction Ltd
Manchester City Council,Chief Executives,Agency staff provision,13.04.2017,5100913667,"31,727.35",Eden Brown Synergy
Manchester City Council,Chief Executives,Agency staff provision,13.04.2017,5100913668,"31,710.48",Eden Brown Synergy
Manchester City Council,Chief Executives,Works and associated costs for Land and Buildings,13.04.2017,5100914585,"13,443.00",Laing O'Rourke Construction Ltd
Manchester City Council,Chief Executives,Agency staff provision,13.04.2017,5100914617,"5,430.06",Resolve Personnel Ltd
Manchester City Council,Chief Executives,Works and associated costs for Land and Buildings,13.04.2017,5100913709,"1,000.00",Turner & Townsend Cost
Manchester City Council,Chief Executives,Works and associated costs for Land and Buildings,13.04.2017,5100913709,"1,000.00",Turner & Townsend Cost
Manchester City Council,Chief Executives,Postage,13.04.2017,5100913958,697.20,Royal Mail Group Plc
Manchester City Council,Regeneration Finance,Professional fees,13.04.2017,1905554474,"70,000.00",Manchester Creative Digital Assets
Manchester City Council,Regeneration Finance,Electricity,13.04.2017,1905554271,"21,477.15",Npower
Manchester City Council,Regeneration Finance,Electricity,13.04.2017,1905554264,"16,011.92",Npower
Manchester City Council,Regeneration Finance,Electricity,13.04.2017,1905554283,"15,030.48",Npower
Manchester City Council,Regeneration Finance,Electricity,13.04.2017,1905554261,"13,929.11",Npower
Manchester City Council,Regeneration Finance,Electricity,13.04.2017,1905554282,"13,398.60",Npower
Manchester City Council,Regeneration Finance,Electricity,13.04.2017,1905554269,"13,259.05",Npower
Manchester City Council,Regeneration Finance,Electricity,13.04.2017,1905554260,"11,111.98",Npower
Manchester City Council,Regeneration Finance,Electricity,13.04.2017,1905554265,"10,611.75",Npower
Manchester City Council,Regeneration Finance,Electricity,13.04.2017,1905554263,"6,183.31",Npower
Manchester City Council,Regeneration Finance,Electricity,13.04.2017,1905554276,"5,796.23",Npower
Manchester City Council,Regeneration Finance,Electricity,13.04.2017,1905554285,"5,025.49",Npower
Manchester City Council,Regeneration Finance,Electricity,13.04.2017,1905554266,"3,992.73",Npower
Manchester City Council,Regeneration Finance,Electricity,13.04.2017,1905554259,"3,508.60",Npower
Manchester City Council,Regeneration Finance,Electricity,13.04.2017,1905554256,"2,215.25",Npower
Manchester City Council,Regeneration Finance,Electricity,13.04.2017,1905554258,"1,998.34",Npower
Manchester City Council,Regeneration Finance,Electricity,13.04.2017,1905554254,"1,977.58",Npower
Manchester City Council,Regeneration Finance,Electricity,13.04.2017,1905554286,"1,810.00",Npower
Manchester City Council,Regeneration Finance,Electricity,13.04.2017,1905554255,"1,780.56",Npower
Manchester City Council,Regeneration Finance,Electricity,13.04.2017,1905554281,"1,764.25",Npower
Manchester City Council,Regeneration Finance,Electricity,13.04.2017,1905554267,"1,552.22",Npower
Manchester City Council,Regeneration Finance,Electricity,13.04.2017,1905554280,"1,513.29",Npower
Manchester City Council,Regeneration Finance,Electricity,13.04.2017,1905554274,"1,481.18",Npower
Manchester City Council,Regeneration Finance,Gas,13.04.2017,1905554297,"1,107.20",Total Gas & Power
Manchester City Council,Regeneration Finance,Electricity,13.04.2017,1905554284,"1,088.55",Npower
Manchester City Council,Regeneration Finance,Legal Fees,13.04.2017,1905548156,"1,072.80",The Coal Authority
Manchester City Council,Regeneration Finance,I T Provision,13.04.2017,5100913607,522.64,Computacenter (UK) Ltd
Manchester City Council,Regeneration Finance,External repairs and maintenance for buildings,13.04.2017,5100914366,-625.00,Skyline Ltd
Manchester City Council,Highways Services,Building Materials for direct delivery,13.04.2017,5100914584,"1,395.14",TARMAC
Manchester City Council,Highways Services,Hire of Machinery,13.04.2017,5100914596,"1,103.75",R & M Developments Ltd
Manchester City Council,Highways Services,Hire of Machinery,13.04.2017,5100914599,"1,103.75",R & M Developments Ltd
Manchester City Council,Highways Services,Building Materials for direct delivery,13.04.2017,5100914564,"1,080.15",Aggregate Industries T/A Kennedy As
Manchester City Council,Highways Services,Hire of Machinery,13.04.2017,5100914600,"1,051.55",R & M Developments Ltd
Manchester City Council,Highways Services,Hire of Machinery,13.04.2017,5100914587,"1,038.50",R & M Developments Ltd
Manchester City Council,Highways Services,Hire of Machinery,13.04.2017,5100914593,"1,038.50",R & M Developments Ltd
Manchester City Council,Highways Services,Hire of Machinery,13.04.2017,5100914601,"1,012.50",R & M Developments Ltd
Manchester City Council,Highways Services,Building Materials for direct delivery,13.04.2017,5100914575,"1,000.52",TARMAC
Manchester City Council,Highways Services,Building Materials for direct delivery,13.04.2017,5100913780,900.00,Colas Limited
Manchester City Council,Highways Services,Building Materials for direct delivery,13.04.2017,5100914578,887.02,TARMAC
Manchester City Council,Highways Services,Building Materials for direct delivery,13.04.2017,5100914563,864.95,TARMAC
Manchester City Council,Highways Services,Building Materials for direct delivery,13.04.2017,5100914577,801.55,TARMAC
Manchester City Council,Highways Services,Hire of Machinery,13.04.2017,5100914586,790.49,R & M Developments Ltd
Manchester City Council,Highways Services,Building Materials for direct delivery,13.04.2017,5100914567,786.46,TARMAC
Manchester City Council,Highways Services,Hire of Machinery,13.04.2017,5100914588,777.17,R & M Developments Ltd
Manchester City Council,Highways Services,Building Materials for direct delivery,13.04.2017,5100914571,684.99,TARMAC
Manchester City Council,Highways Services,Building Materials for direct delivery,13.04.2017,5100914561,683.06,TARMAC
Manchester City Council,Highways Services,Building Materials for direct delivery,13.04.2017,5100914565,681.42,TARMAC
Manchester City Council,Highways Services,Building Materials for direct delivery,13.04.2017,5100914579,671.45,TARMAC
Manchester City Council,Highways Services,Electricity,13.04.2017,1905554257,596.22,Npower
Manchester City Council,Highways Services,Building Materials for direct delivery,13.04.2017,5100914562,570.83,TARMAC
Manchester City Council,Highways Services,Building Materials for direct delivery,13.04.2017,5100914573,532.13,TARMAC
Manchester City Council,Highways Services,Building Materials for direct delivery,13.04.2017,5100914560,510.26,TARMAC
Manchester City Council,Highways Services,Electricity,13.04.2017,1700070394,"-2,106.71",Npower
Manchester City Council,GMIST (Greater Mcr Integrated),Legal Fees,13.04.2017,1905554486,"1,000.00",Clyde & Co LLP
Manchester City Council,Manchester Leisure,Professional fees,18.04.2017,5100914337,"39,299.75",Eastlands Trust Limited
Manchester City Council,Manchester Leisure,Construction Works,18.04.2017,5100914854,"18,914.00",Groundwork Landscapes Ltd
Manchester City Council,Manchester Leisure,Grant and subscriptions awarded,18.04.2017,5100914868,"16,062.50",Sanctuary Housing Association
Manchester City Council,Manchester Leisure,Labour Charges,18.04.2017,5100914838,"13,148.46",Trafford M B C
Manchester City Council,Manchester Leisure,Works and associated costs for Land and Buildings,18.04.2017,5100914726,"7,322.00",Keepmoat Regeneration (Bramall) Ltd
Manchester City Council,Manchester Leisure,Professional fees,18.04.2017,5100914338,"6,250.00",Eastlands Trust Limited
Manchester City Council,Manchester Leisure,Goods purchased for resale in Council outlets,18.04.2017,1905555652,"6,029.00",NO-MAD
Manchester City Council,Manchester Leisure,Furniture,18.04.2017,5100914702,"5,980.00",Wild in Art Limited
Manchester City Council,Manchester Leisure,Professional fees,18.04.2017,5100914394,"5,000.00",University Of Manchester
Manchester City Council,Manchester Leisure,Goods purchased for resale in Council outlets,18.04.2017,1905555657,"2,516.64",STUDIO CHINAR
Manchester City Council,Manchester Leisure,External repairs and maintenance for buildings,18.04.2017,5100914910,"2,321.47",Manchester Working Ltd
Manchester City Council,Manchester Leisure,Goods purchased for resale in Council outlets,18.04.2017,1905555653,"2,059.00",STUDIO COPPRE PVT LTD
Manchester City Council,Manchester Leisure,Payments to Sub-Contractors,18.04.2017,5100914935,"1,958.00",Rigby Taylor Ltd
Manchester City Council,Manchester Leisure,Payments to Sub-Contractors,18.04.2017,5100914940,"1,958.00",Rigby Taylor Ltd
Manchester City Council,Manchester Leisure,Payments to Sub-Contractors,18.04.2017,5100914943,"1,958.00",Rigby Taylor Ltd
Manchester City Council,Manchester Leisure,Cleaning Equipment and Materials,18.04.2017,5100914428,"1,683.00",Earth Anchors Ltd
Manchester City Council,Manchester Leisure,Equipment,18.04.2017,5100914641,"1,575.00",ECL Plastics Ltd
Manchester City Council,Manchester Leisure,Professional fees,18.04.2017,5100914676,"1,500.00",International Sport Group Limited
Manchester City Council,Manchester Leisure,Building Materials for direct delivery,18.04.2017,5100914791,"1,107.72",Chambers & Perkins
Manchester City Council,Manchester Leisure,Professional fees,18.04.2017,5100914839,675.00,Redacted Personal Information
Manchester City Council,Manchester Leisure,Professional fees,18.04.2017,5100914840,540.00,Redacted Personal Information
Manchester City Council,Manchester Leisure,Grant and subscriptions awarded,18.04.2017,5100914936,500.00,The Co-operative Heritage Trust
Manchester City Council,Libraries and Theatres,Vehicle Plant Furniture and Equipment,18.04.2017,5100914702,"5,970.00",Wild in Art Limited
Manchester City Council,Libraries and Theatres,Vehicle Plant Furniture and Equipment,18.04.2017,5100914696,595.00,Opening The Book Furniture Ltd
Manchester City Council,Hospitality + Trading Services,Vehicle Repairs,18.04.2017,5100915021,"10,442.27",Manchester Van Hire Ltd
Manchester City Council,Hospitality + Trading Services,I T Provision,18.04.2017,5100913769,"6,630.00",KPR Midlink Ltd
Manchester City Council,Hospitality + Trading Services,Funeral and coroner related services,18.04.2017,5100914334,"4,918.86",G E Robinson & Co Ltd
Manchester City Council,Hospitality + Trading Services,External repairs and maintenance for buildings,18.04.2017,5100914882,"1,360.00",Electricity NW Construction & Maint
Manchester City Council,Hospitality + Trading Services,Licences Purchase,18.04.2017,5100913769,"1,000.00",KPR Midlink Ltd
Manchester City Council,Hospitality + Trading Services,Catering Provisions,18.04.2017,1905555478,850.48,Brake Bros Foodservice Ltd
Manchester City Council,Hospitality + Trading Services,Vehicle Repairs,18.04.2017,5100914729,835.04,Specialist Vehicle rental
Manchester City Council,Hospitality + Trading Services,Catering Provisions,18.04.2017,1905555537,768.89,Brake Bros Foodservice Ltd
Manchester City Council,Hospitality + Trading Services,Funeral and coroner related services,18.04.2017,5100914213,640.00,Albert Jones Memorials
Manchester City Council,Hospitality + Trading Services,Catering Provisions,18.04.2017,1905555535,625.99,Brake Bros Foodservice Ltd
Manchester City Council,Hospitality + Trading Services,Catering Provisions,18.04.2017,1905555509,595.47,Brake Bros Foodservice Ltd
Manchester City Council,Hospitality + Trading Services,Catering Provisions,18.04.2017,1905555511,589.22,Brake Bros Foodservice Ltd
Manchester City Council,Hospitality + Trading Services,Catering Provisions,18.04.2017,1905555492,585.32,Brake Bros Foodservice Ltd
Manchester City Council,Hospitality + Trading Services,Legal Fees,18.04.2017,5100914926,550.00,Redacted Personal Information
Manchester City Council,Hospitality + Trading Services,Catering Provisions,18.04.2017,1905555486,522.30,Brake Bros Foodservice Ltd
Manchester City Council,Environment and Operations,Construction Works,18.04.2017,5100914392,"12,067.93",Henry Boot Construction (Uk) Ltd
Manchester City Council,Adult Social Care,Third party payments to other Local Authorities,18.04.2017,5100914918,"19,936.75",Priestnall School
Manchester City Council,Adult Social Care,Bed and Breakfast Accommodation Expenditure,18.04.2017,5100914461,"16,886.00",Redacted Personal Information
Manchester City Council,Adult Social Care,Transport Coach Hire,18.04.2017,5100914724,"11,103.00",Parkway Cabs & Cars
Manchester City Council,Adult Social Care,Bed and Breakfast Accommodation Expenditure,18.04.2017,5100914039,"8,512.00",Redacted Personal Information
Manchester City Council,Adult Social Care,Third party payments to other Local Authorities,18.04.2017,5100914852,"8,508.00",Tameside Metropolitan Bouough
Manchester City Council,Adult Social Care,I T Provision,18.04.2017,5100914723,"6,550.00",Experian Limited
Manchester City Council,Adult Social Care,Third party payments relating to Voluntary Organisations,18.04.2017,5100914848,"4,152.00",Street League
Manchester City Council,Adult Social Care,Third party payments relating to Voluntary Organisations,18.04.2017,5100914876,"3,548.50",Irwell Valley Housing Association
Manchester City Council,Adult Social Care,Third party payments relating to Voluntary Organisations,18.04.2017,5100914907,"2,304.00",Wai Yin Society
Manchester City Council,Adult Social Care,Transport Coach Hire,18.04.2017,5100913859,"2,205.00",Cresta Car Hire
Manchester City Council,Adult Social Care,Transport Coach Hire,18.04.2017,5100913867,"1,639.90",Cresta Car Hire
Manchester City Council,Adult Social Care,Transport Coach Hire,18.04.2017,5100913896,"1,485.00",Cresta Car Hire
Manchester City Council,Adult Social Care,Transport Coach Hire,18.04.2017,5100913856,"1,380.00",Cresta Car Hire
Manchester City Council,Adult Social Care,Transport Coach Hire,18.04.2017,5100913890,"1,127.00",Cresta Car Hire
Manchester City Council,Adult Social Care,Home Care ,18.04.2017,5100914862,"1,086.25",Precious Kids Day Nursery
Manchester City Council,Adult Social Care,Transport Coach Hire,18.04.2017,5100913857,"1,000.50",Cresta Car Hire
Manchester City Council,Adult Social Care,Transport Coach Hire,18.04.2017,5100913894,993.00,Cresta Car Hire
Manchester City Council,Adult Social Care,Transport Coach Hire,18.04.2017,5100913892,912.00,Cresta Car Hire
Manchester City Council,Adult Social Care,Rents,18.04.2017,1905555462,880.00,Redacted Personal Information
Manchester City Council,Adult Social Care,Third party payments relating to Voluntary Organisations,18.04.2017,5100914282,851.18,The Edward Mayes Trust
Manchester City Council,Adult Social Care,Transport Coach Hire,18.04.2017,5100913899,828.00,Cresta Car Hire
Manchester City Council,Adult Social Care,Home Care ,18.04.2017,5100914836,816.00,Kidz Matter Ltd
Manchester City Council,Adult Social Care,Transport Coach Hire,18.04.2017,5100913898,779.00,Cresta Car Hire
Manchester City Council,Adult Social Care,Rents,18.04.2017,1905547307,770.00,Kaye Mackenzie Property Management
Manchester City Council,Adult Social Care,Transport Coach Hire,18.04.2017,5100913893,760.50,Cresta Car Hire
Manchester City Council,Adult Social Care,Third party payments relating to Voluntary Organisations,18.04.2017,5100914881,760.15,Irwell Valley Housing Association
Manchester City Council,Adult Social Care,Payments for services,18.04.2017,5100914948,750.00,Action For Children
Manchester City Council,Adult Social Care,Rents,18.04.2017,1905548143,750.00,Manchester Letting
Manchester City Council,Adult Social Care,Third party payments to Health Authority,18.04.2017,1905554482,651.00,Royal Free London NHS FT
Manchester City Council,Adult Social Care,Catering,18.04.2017,5100914811,591.95,Greater Manchester Police Sports &
Manchester City Council,Adult Social Care,Third party payments relating to Voluntary Organisations,18.04.2017,5100914354,578.15,Southway Housing Trust
Manchester City Council,Adult Social Care,Training and Development,18.04.2017,5100914890,550.00,Council For Awards In Children'S Ca
Manchester City Council,Adult Social Care,Furniture,18.04.2017,5100914118,545.00,Egan Reid Stationery Co Ltd
Manchester City Council,Adult Social Care,Training and Development,18.04.2017,5100914891,500.00,Council For Awards In Children'S Ca
Manchester City Council,Adult Social Care,Internal Repairs and Maintenance for buildings,18.04.2017,1905548145,500.00,Redacted Personal Information
Manchester City Council,Childrens Services,Building Works,18.04.2017,5100914877,"809,464.00",Manchester Enterprise Academy
Manchester City Council,Childrens Services,Works and associated costs for Land and Buildings,18.04.2017,5100914945,"20,941.47",F Parkinson Limited
Manchester City Council,Corporate Services,Works and associated costs for Land and Buildings,18.04.2017,5100914182,"70,063.32",Cruden Group Ltd
Manchester City Council,Corporate Services,I T Provision,18.04.2017,5100914622,"10,000.00",Capita Business Services Ltd
Manchester City Council,Corporate Services,Furniture,18.04.2017,5100914094,770.00,Egan Reid Stationery Co Ltd
Manchester City Council,Corporate Services,Travel Season Ticket Loan Scheme,18.04.2017,5100914698,570.00,Stagecoach Manchester
Manchester City Council,Housing Revenue Account,Council Dwelling Adaptations,18.04.2017,5100914888,"42,607.89",Northwards Housing Limited
Manchester City Council,Housing Revenue Account,Council Dwelling Fees,18.04.2017,5100914825,"22,402.19",Northwards Housing Limited
Manchester City Council,Housing Revenue Account,Council Dwelling Adaptations,18.04.2017,5100914886,"13,030.80",Northwards Housing Limited
Manchester City Council,Housing Revenue Account,Council Dwelling Adaptations,18.04.2017,5100914822,"11,136.80",Northwards Housing Limited
Manchester City Council,Housing Revenue Account,Council Dwelling Fees,18.04.2017,5100914826,"8,926.00",Northwards Housing Limited
Manchester City Council,Housing Revenue Account,Council Dwelling Fees,18.04.2017,5100914825,"8,377.15",Northwards Housing Limited
Manchester City Council,Housing Revenue Account,Council Dwelling Fees,18.04.2017,5100914828,"6,580.00",Northwards Housing Limited
Manchester City Council,Housing Revenue Account,Peaks & Plains Management Fee,18.04.2017,5100914526,"5,863.24",Cheshire Peaks & Plains
Manchester City Council,Housing Revenue Account,Council Dwelling Fees,18.04.2017,5100914832,"2,811.13",Northwards Housing Limited
Manchester City Council,Housing Revenue Account,I T Provision,18.04.2017,5100914900,"2,655.00",Aareon UK Ltd
Manchester City Council,Housing Revenue Account,I T Provision,18.04.2017,5100914896,"1,770.00",Aareon UK Ltd
Manchester City Council,Housing Revenue Account,I T Provision,18.04.2017,5100914908,"1,770.00",Aareon UK Ltd
Manchester City Council,Housing Revenue Account,Council Dwelling Fees,18.04.2017,5100914830,"1,012.00",Northwards Housing Limited
Manchester City Council,Housing Revenue Account,I T Provision,18.04.2017,5100914899,885.00,Aareon UK Ltd
Manchester City Council,Housing Revenue Account,I T Provision,18.04.2017,5100914909,885.00,Aareon UK Ltd
Manchester City Council,Housing Revenue Account,Council Dwelling Adaptations,18.04.2017,5100914471,781.10,IG Doors Ltd
Manchester City Council,Housing Revenue Account,I T Provision,18.04.2017,5100914895,750.00,Aareon UK Ltd
Manchester City Council,Housing Revenue Account,Council Dwelling Adaptations,18.04.2017,5100914305,"-58,700.00",Northwards Housing Limited
Manchester City Council,Chief Executives,Agency staff provision,18.04.2017,5100914388,"8,782.06",P S Recruitment Specialists Ltd
Manchester City Council,Chief Executives,Agency staff provision,18.04.2017,5100913855,"5,486.10",Semester Recruitment Ltd
Manchester City Council,Chief Executives,Agency staff provision,18.04.2017,5100914730,"5,421.77",Semester Recruitment Ltd
Manchester City Council,Chief Executives,Agency staff provision,18.04.2017,5100913811,"2,035.87",Semester Recruitment Ltd
Manchester City Council,Chief Executives,Works and associated costs for Land and Buildings,18.04.2017,5100914846,"2,005.50",Gillespies LLP
Manchester City Council,Chief Executives,Works and associated costs for Land and Buildings,18.04.2017,5100914849,"2,005.50",Gillespies LLP
Manchester City Council,Chief Executives,Legal Fees,18.04.2017,5100914060,"1,750.00",No 5 Chambers Ltd
Manchester City Council,Chief Executives,Payments to Sub-Contractors,18.04.2017,5100914301,"1,559.10",Redacted Personal Information
Manchester City Council,Chief Executives,Stationery,18.04.2017,5100914757,"1,373.40",Banner Group Limited
Manchester City Council,Chief Executives,Payments to Sub-Contractors,18.04.2017,5100914273,"1,204.50",Redacted Personal Information
Manchester City Council,Chief Executives,Printing,18.04.2017,5100914756,"1,172.00",Astra Signs
Manchester City Council,Chief Executives,Funeral and coroner related services,18.04.2017,1905555463,"1,158.78",Redacted Personal Information
Manchester City Council,Chief Executives,Subsistence and Conference Expenses,18.04.2017,5100914865,855.90,North West Employers Ltd
Manchester City Council,Chief Executives,Paper & Envelopes,18.04.2017,5100914071,644.82,Premier Paper Group Ltd
Manchester City Council,Chief Executives,Payments to Sub-Contractors,18.04.2017,5100914274,632.12,Redacted Personal Information
Manchester City Council,Chief Executives,Printing,18.04.2017,5100914762,565.00,Astra Signs
Manchester City Council,Chief Executives,Subsistence and Conference Expenses,18.04.2017,5100914855,529.16,Review Travel Ltd
Manchester City Council,Chief Executives,Printing,18.04.2017,5100914292,523.00,Contact Photographic Services Ltd
Manchester City Council,Chief Executives,Works and associated costs for Land and Buildings,18.04.2017,5100914847,"-2,005.50",Gillespies LLP
Manchester City Council,Regeneration Finance,Professional fees,18.04.2017,5100914851,"51,182.64",Jacobs UK Ltd
Manchester City Council,Regeneration Finance,Postage,18.04.2017,5100914707,"6,000.00",Neopost Ltd (Credifon)
Manchester City Council,Regeneration Finance,Hire of Machinery,18.04.2017,5100914893,690.00,GHL Liftrucks Ltd
Manchester City Council,Regeneration Finance,External repairs and maintenance for buildings,18.04.2017,5100914051,685.00,Skyline Ltd
Manchester City Council,Highways Services,Payments to Sub-Contractors,18.04.2017,5100914861,"55,505.19",J.Hopkins (Contractors) Ltd.
Manchester City Council,Highways Services,Payments to Sub-Contractors,18.04.2017,5100914853,"17,441.35",J.Hopkins (Contractors) Ltd.
Manchester City Council,Highways Services,Equipment,18.04.2017,5100914632,"12,729.75",Biffa Municipal Limited
Manchester City Council,Highways Services,Professional fees,18.04.2017,5100914312,"8,239.23",Wilde Consultants Ltd
Manchester City Council,Highways Services,Professional fees,18.04.2017,5100914318,"7,235.61",Wilde Consultants Ltd
Manchester City Council,Highways Services,Equipment,18.04.2017,5100914634,"6,814.50",Biffa Municipal Limited
Manchester City Council,Highways Services,Equipment,18.04.2017,5100914629,"6,624.75",Biffa Municipal Limited
Manchester City Council,Highways Services,Equipment,18.04.2017,5100914627,"6,510.75",Biffa Municipal Limited
Manchester City Council,Highways Services,Professional fees,18.04.2017,5100914313,"5,203.00",Wilde Consultants Ltd
Manchester City Council,Highways Services,Legal Fees,18.04.2017,1905546649,"4,840.00",Gorvins
Manchester City Council,Highways Services,Professional fees,18.04.2017,5100914320,"4,740.00",Wilde Consultants Ltd
Manchester City Council,Highways Services,Professional fees,18.04.2017,5100914316,"4,727.52",Wilde Consultants Ltd
Manchester City Council,Highways Services,Payments to Sub-Contractors,18.04.2017,5100914645,"4,570.00",Kenny Bros (Civil Eng) Ltd
Manchester City Council,Highways Services,Payments to Sub-Contractors,18.04.2017,5100914636,"3,390.00",Kenny Bros (Civil Eng) Ltd
Manchester City Council,Highways Services,Legal Fees,18.04.2017,1905546647,"2,651.80",Gorvins
Manchester City Council,Highways Services,Cleaning Equipment,18.04.2017,5100914023,"2,620.00",Halcyon Conservation Ltd
Manchester City Council,Highways Services,Building Materials for direct delivery,18.04.2017,5100914165,"1,228.37",William Smith Sons (Barnard Castle)
Manchester City Council,Highways Services,I T Provision,18.04.2017,5100914938,945.00,Rushton Electronic Solutions Ltd
Manchester City Council,Highways Services,Cleaning Equipment,18.04.2017,5100914023,680.00,Halcyon Conservation Ltd
Manchester City Council,Insurance Fund,Insurance,18.04.2017,1905553652,"5,668.10",Leigh Day Solicitors
Manchester City Council,Insurance Fund,Insurance,18.04.2017,1905546646,"4,199.50",Clyde & Co Claims LLP
Manchester City Council,Insurance Fund,Insurance,18.04.2017,1905553620,"1,627.50",Clyde & Co Claims LLP
Manchester City Council,GMIST (Greater Mcr Integrated),Professional fees,18.04.2017,5100914284,"2,400.00",Ove Arup & Partners Ltd
Manchester City Council,Manchester Leisure,Third party payments relating to Voluntary Organisations,19.04.2017,5100914988,"69,460.30",The Manchester College
Manchester City Council,Manchester Leisure,Refuse Collection,19.04.2017,5100914815,"40,538.85",Redgate Holdings Ltd
Manchester City Council,Manchester Leisure,Grant and subscriptions awarded,19.04.2017,5100913412,"35,854.00",Cheshire & Greater Manchester
Manchester City Council,Manchester Leisure,Tipping Charges - Skips,19.04.2017,5100914829,"21,985.00",Redgate Holdings Ltd
Manchester City Council,Manchester Leisure,Recycling Facilities,19.04.2017,5100914823,"12,858.56",Redgate Holdings Ltd
Manchester City Council,Manchester Leisure,Liquid Container Recycling,19.04.2017,5100914827,"12,488.38",Redgate Holdings Ltd
Manchester City Council,Manchester Leisure,Grounds Maintenance Costs,19.04.2017,5100914725,"6,816.23",Redgate Holdings Ltd
Manchester City Council,Manchester Leisure,Equipment,19.04.2017,5100914293,"5,481.00",Cromwell polythene limited
Manchester City Council,Manchester Leisure,Recycling Facilities,19.04.2017,5100914821,"4,760.30",Redgate Holdings Ltd
Manchester City Council,Manchester Leisure,Grounds Maintenance Costs,19.04.2017,5100914831,"4,262.59",Redgate Holdings Ltd
Manchester City Council,Manchester Leisure,Professional fees,19.04.2017,5100914980,"3,000.00",Spectrum Photograpic
Manchester City Council,Manchester Leisure,Grant and subscriptions awarded,19.04.2017,5100914972,"2,340.00",Jacobs UK Ltd
Manchester City Council,Manchester Leisure,Cleaning Equipment and Materials,19.04.2017,5100914813,"2,274.24",Redgate Holdings Ltd
Manchester City Council,Manchester Leisure,Disposables,19.04.2017,5100914728,"1,568.60",Redgate Holdings Ltd
Manchester City Council,Manchester Leisure,Professional fees,19.04.2017,5100914980,"1,144.70",Spectrum Photograpic
Manchester City Council,Manchester Leisure,Professional fees,19.04.2017,5100914995,533.00,Transport for Greater Manchester
Manchester City Council,Adult Social Care,Professional fees,19.04.2017,5100915118,"49,078.00",One Education Ltd
Manchester City Council,Adult Social Care,Transport Coach Hire,19.04.2017,5100914863,"18,305.00",JCT Travel Ltd
Manchester City Council,Adult Social Care,Equipment,19.04.2017,5100913683,"12,989.16",Independent Life Solutions
Manchester City Council,Adult Social Care,Third party payments relating to Voluntary Organisations,19.04.2017,5100914480,"9,846.90",Gaddum Centre
Manchester City Council,Adult Social Care,Third party payments to other Local Authorities,19.04.2017,5100915090,"9,234.10",Stockport Metropolitan Borough
Manchester City Council,Adult Social Care,Third party payments relating to Voluntary Organisations,19.04.2017,5100914916,"8,162.00",Greater Manchester Immigration Aid
Manchester City Council,Adult Social Care,Third party payments to other Local Authorities,19.04.2017,5100915088,"7,824.60",Bury M.B.C.
Manchester City Council,Adult Social Care,Third party payments to other Local Authorities,19.04.2017,5100915092,"7,635.85",Bolton Mbc
Manchester City Council,Adult Social Care,Equipment,19.04.2017,5100913684,"6,000.00",Independent Life Solutions
Manchester City Council,Adult Social Care,Third party payments to other Local Authorities,19.04.2017,5100915109,"5,462.10",New Charter Housing Trust Ltd
Manchester City Council,Adult Social Care,Third party payments to other Local Authorities,19.04.2017,5100915114,"4,773.00",Oldham Borough Council
Manchester City Council,Adult Social Care,Third party payments relating to Voluntary Organisations,19.04.2017,5100915112,"4,433.75",Wythenshawe Forum Trust Ltd
Manchester City Council,Adult Social Care,Hire of Premises,19.04.2017,5100914286,"2,560.00",Grove Village Residents association
Manchester City Council,Adult Social Care,Third party payments relating to Voluntary Organisations,19.04.2017,5100914817,"2,385.00",Connect Support Ltd
Manchester City Council,Adult Social Care,Payments for services,19.04.2017,5100914961,"2,188.00",Redacted Personal Information
Manchester City Council,Adult Social Care,Third party payments relating to Voluntary Organisations,19.04.2017,5100915105,"1,888.00",Youth Project @ Apostles &
Manchester City Council,Adult Social Care,Third party payments relating to Voluntary Organisations,19.04.2017,5100915107,"1,888.00",Youth Project @ Apostles &
Manchester City Council,Adult Social Care,Subsistence and Conference Expenses,19.04.2017,5100914999,"1,205.00",Inclusive Choice
Manchester City Council,Adult Social Care,Landline Telephone Charges,19.04.2017,1905555647,"1,137.00",Bt Payphones
Manchester City Council,Adult Social Care,Third party payments relating to Voluntary Organisations,19.04.2017,5100914858,925.00,Moodswings Network
Manchester City Council,Adult Social Care,Hire of Premises,19.04.2017,5100914960,864.50,Irish World Heritage Centre
Manchester City Council,Adult Social Care,Training and Development,19.04.2017,5100915057,806.20,Pearson Education Ltd
Manchester City Council,Adult Social Care,Expenditure re Internal Trading Ordered Externally,19.04.2017,5100915062,724.80,Greater Manchester Police Sports &
Manchester City Council,Adult Social Care,Professional fees,19.04.2017,5100914972,600.00,Jacobs UK Ltd
Manchester City Council,Adult Social Care,Professional fees,19.04.2017,1905555541,600.00,GLP Solicitors
Manchester City Council,Adult Social Care,Signers/Interpreters Fees,19.04.2017,5100915038,580.80,Language Line Ltd
Manchester City Council,Adult Social Care,Third party payments relating to Voluntary Organisations,19.04.2017,5100914889,"-9,846.90",Gaddum Centre
Manchester City Council,Childrens Services,Works and associated costs for Land and Buildings,19.04.2017,5100915049,"1,945,781.37",Laing O'Rourke Construction Ltd
Manchester City Council,Corporate Services,Publications,19.04.2017,5100914977,"5,890.00",CIPFA Business Ltd
Manchester City Council,Corporate Services,Travel Season Ticket Loan Scheme,19.04.2017,5100915005,900.00,Transport for Greater Manchester
Manchester City Council,Corporate Services,Travel Season Ticket Loan Scheme,19.04.2017,5100915005,900.00,Transport for Greater Manchester
Manchester City Council,Corporate Services,Travel Season Ticket Loan Scheme,19.04.2017,5100915017,900.00,Transport for Greater Manchester
Manchester City Council,Corporate Services,Travel Season Ticket Loan Scheme,19.04.2017,5100915024,900.00,Transport for Greater Manchester
Manchester City Council,Corporate Services,Travel Season Ticket Loan Scheme,19.04.2017,5100915024,900.00,Transport for Greater Manchester
Manchester City Council,Corporate Services,Grant Payments,19.04.2017,5100914958,840.00,digitalenergy Ltd
Manchester City Council,Corporate Services,Travel Season Ticket Loan Scheme,19.04.2017,5100915002,747.00,Transport for Greater Manchester
Manchester City Council,Corporate Services,Travel Season Ticket Loan Scheme,19.04.2017,5100915002,747.00,Transport for Greater Manchester
Manchester City Council,Corporate Services,Travel Season Ticket Loan Scheme,19.04.2017,5100915004,747.00,Transport for Greater Manchester
Manchester City Council,Corporate Services,Travel Season Ticket Loan Scheme,19.04.2017,5100915004,747.00,Transport for Greater Manchester
Manchester City Council,Corporate Services,Travel Season Ticket Loan Scheme,19.04.2017,5100915005,747.00,Transport for Greater Manchester
Manchester City Council,Corporate Services,Travel Season Ticket Loan Scheme,19.04.2017,5100915007,747.00,Transport for Greater Manchester
Manchester City Council,Corporate Services,Travel Season Ticket Loan Scheme,19.04.2017,5100915007,747.00,Transport for Greater Manchester
Manchester City Council,Corporate Services,Travel Season Ticket Loan Scheme,19.04.2017,5100915017,747.00,Transport for Greater Manchester
Manchester City Council,Corporate Services,Travel Season Ticket Loan Scheme,19.04.2017,5100915004,646.00,Transport for Greater Manchester
Manchester City Council,Corporate Services,Travel Season Ticket Loan Scheme,19.04.2017,5100915004,646.00,Transport for Greater Manchester
Manchester City Council,Corporate Services,Travel Season Ticket Loan Scheme,19.04.2017,5100915004,646.00,Transport for Greater Manchester
Manchester City Council,Corporate Services,Travel Season Ticket Loan Scheme,19.04.2017,5100915004,646.00,Transport for Greater Manchester
Manchester City Council,Corporate Services,Travel Season Ticket Loan Scheme,19.04.2017,5100915004,646.00,Transport for Greater Manchester
Manchester City Council,Corporate Services,Travel Season Ticket Loan Scheme,19.04.2017,5100915004,646.00,Transport for Greater Manchester
Manchester City Council,Corporate Services,Travel Season Ticket Loan Scheme,19.04.2017,5100915005,646.00,Transport for Greater Manchester
Manchester City Council,Corporate Services,Travel Season Ticket Loan Scheme,19.04.2017,5100915005,646.00,Transport for Greater Manchester
Manchester City Council,Corporate Services,Travel Season Ticket Loan Scheme,19.04.2017,5100915005,646.00,Transport for Greater Manchester
Manchester City Council,Corporate Services,Travel Season Ticket Loan Scheme,19.04.2017,5100915006,646.00,Transport for Greater Manchester
Manchester City Council,Corporate Services,Travel Season Ticket Loan Scheme,19.04.2017,5100915006,646.00,Transport for Greater Manchester
Manchester City Council,Corporate Services,Travel Season Ticket Loan Scheme,19.04.2017,5100915014,522.00,Transport for Greater Manchester
Manchester City Council,Corporate Services,Travel Season Ticket Loan Scheme,19.04.2017,5100915024,522.00,Transport for Greater Manchester
Manchester City Council,Housing General Fund,Works and associated costs for Land and Buildings,19.04.2017,1905560324,"29,562.00",H M Revenues and Customs
Manchester City Council,Housing General Fund,Professional fees,19.04.2017,5100914972,"1,500.00",Jacobs UK Ltd
Manchester City Council,Housing General Fund,Works and associated costs for Land and Buildings,19.04.2017,5100914972,532.50,Jacobs UK Ltd
Manchester City Council,Housing Revenue Account,Professional fees,19.04.2017,5100914972,"6,480.00",Jacobs UK Ltd
Manchester City Council,Housing Revenue Account,Council Dwelling Fees,19.04.2017,5100914833,"1,321.00",Northwards Housing Limited
Manchester City Council,Housing Revenue Account,Landline Telephone Charges,19.04.2017,1905555645,607.00,Bt Payphones
Manchester City Council,Chief Executives,Vehicle Plant Furniture and Equipment,19.04.2017,5100915045,"7,761.29",The Loop t/a Gamma Telecom Ltd
Manchester City Council,Chief Executives,Data Links,19.04.2017,5100914919,"7,761.29",The Loop t/a Gamma Telecom Ltd
Manchester City Council,Chief Executives,Hire of Equipment,19.04.2017,5100915113,"7,068.00",Pakflatt (UK) Ltd
Manchester City Council,Chief Executives,Data Links,19.04.2017,5100915079,"2,285.00",The Co-operative Business Telecoms
Manchester City Council,Chief Executives,Agency staff provision,19.04.2017,5100914604,845.41,Bennett Staff Bureau
Manchester City Council,Chief Executives,Agency staff provision,19.04.2017,5100914623,821.49,Network Ventures Ltd T/A Topcare
Manchester City Council,Chief Executives,Payments to Sub-Contractors,19.04.2017,1905553623,543.53,Redacted Personal Information
Manchester City Council,Chief Executives,Data Links,19.04.2017,5100915044,"-7,761.29",The Loop t/a Gamma Telecom Ltd
Manchester City Council,Regeneration Finance,Professional fees,19.04.2017,5100914972,"13,401.74",Jacobs UK Ltd
Manchester City Council,Regeneration Finance,Professional fees,19.04.2017,5100914972,"10,000.00",Jacobs UK Ltd
Manchester City Council,Regeneration Finance,Professional fees,19.04.2017,5100914972,"8,000.00",Jacobs UK Ltd
Manchester City Council,Regeneration Finance,Printing,19.04.2017,5100915101,"7,425.15",VIP-System Ltd
Manchester City Council,Regeneration Finance,Taxi Vehicle Materials,19.04.2017,5100915033,"3,466.78",New Auto Ltd T/A Mogo (Uk)
Manchester City Council,Regeneration Finance,Professional fees,19.04.2017,5100914972,"2,701.60",Jacobs UK Ltd
Manchester City Council,Regeneration Finance,Professional fees,19.04.2017,5100914972,"1,536.40",Jacobs UK Ltd
Manchester City Council,Regeneration Finance,Storage Costs,19.04.2017,5100914864,"1,288.29",Data Space Limited
Manchester City Council,Regeneration Finance,Contract Cleaning External,19.04.2017,5100914857,857.25,M & M Cleaning Services Ltd
Manchester City Council,Regeneration Finance,External repairs and maintenance for buildings,19.04.2017,5100915001,685.00,Skyline Ltd
Manchester City Council,Regeneration Finance,Professional fees,19.04.2017,5100914972,663.45,Jacobs UK Ltd
Manchester City Council,Regeneration Finance,Grounds Maintenance Costs,19.04.2017,5100914844,600.00,Arboricultural Services Treework
Manchester City Council,Highways Services,Payments to Sub-Contractors,19.04.2017,5100913675,"8,400.00",Amey Highways Lighting (Manchester)
Manchester City Council,Highways Services,Data Registration Fee,19.04.2017,1905554476,"3,176.00",HMCS Traffic EC
Manchester City Council,Highways Services,Building Materials for direct delivery,19.04.2017,5100915103,"2,940.00",Hitex Traffic safety Ltd
Manchester City Council,Highways Services,Legal Fees,19.04.2017,1905548162,665.00,Department For Work & Pensions
Manchester City Council,General Fund,Levies,19.04.2017,1905552686,"1,998,502.40",GMCA
Manchester City Council,GMIST (Greater Mcr Integrated),I T Provision,19.04.2017,5100915211,"-4,296.00",CDR Group
Manchester City Council,Manchester Leisure,Professional fees,20.04.2017,5100914414,"8,799.00",GL Events UK Ltd
Manchester City Council,Manchester Leisure,Electricity,20.04.2017,5100915309,"3,754.61",Wythenshawe Forum Trust Ltd
Manchester City Council,Manchester Leisure,Equipment,20.04.2017,5100913652,"2,119.00",Solon Security Ltd
Manchester City Council,Manchester Leisure,Grant Payments,20.04.2017,5100915030,"1,733.00",Ricardo-AEA Limited
Manchester City Council,Manchester Leisure,Electricity,20.04.2017,1905560935,"1,558.81",Scottish & Southern Energy Plc
Manchester City Council,Manchester Leisure,Equipment,20.04.2017,5100915343,"1,542.00",Projectorpoint
Manchester City Council,Manchester Leisure,Gas,20.04.2017,5100915309,962.57,Wythenshawe Forum Trust Ltd
Manchester City Council,Manchester Leisure,Goods purchased for resale in Council outlets,20.04.2017,5100915151,960.47,M/Cr & Lancashire Family History So
Manchester City Council,Manchester Leisure,Electricity,20.04.2017,1905560945,691.06,Scottish & Southern Energy Plc
Manchester City Council,Manchester Leisure,External repairs and maintenance for buildings,20.04.2017,5100915143,603.86,Manchester Working Ltd
Manchester City Council,Manchester Leisure,Payments to Sub-Contractors,20.04.2017,5100914382,568.20,Osborne Richardson
Manchester City Council,Manchester Leisure,Electricity,20.04.2017,1905560634,523.61,Scottish & Southern Energy Plc
Manchester City Council,Hospitality + Trading Services,Electricity,20.04.2017,1905560939,"3,607.20",Scottish & Southern Energy Plc
Manchester City Council,Hospitality + Trading Services,Legal Fees,20.04.2017,1905548159,"1,050.00",Pragma Asbestos Ltd
Manchester City Council,Hospitality + Trading Services,Hire of Machinery,20.04.2017,5100915288,900.00,SGM (Uk) Limited
Manchester City Council,Environment and Operations,Construction Works,20.04.2017,5100915217,"25,910.62",Dowhigh Ltd
Manchester City Council,Adult Social Care,Licences Purchase,20.04.2017,5100913763,"172,001.34",Capita Business Services Ltd
Manchester City Council,Adult Social Care,Third party payments relating to Voluntary Organisations,20.04.2017,5100915135,"42,961.00",Gaddum Centre
Manchester City Council,Adult Social Care,Professional fees,20.04.2017,5100915121,"29,727.00",One Education Ltd
Manchester City Council,Adult Social Care,Carer Support Payments ,20.04.2017,5100915300,"25,811.38",Carewest Limited
Manchester City Council,Adult Social Care,Supported Accommodation,20.04.2017,5100913954,"24,375.00",Manchester Settlement
Manchester City Council,Adult Social Care,Grant and subscriptions awarded,20.04.2017,5100913723,"13,800.00",Path Yorkshire
Manchester City Council,Adult Social Care,Transport Coach Hire,20.04.2017,5100915278,"3,722.40",Lancashire County Council
Manchester City Council,Adult Social Care,Stationery,20.04.2017,5100913980,"2,594.40",Northgate Public Services (UK) Ltd
Manchester City Council,Adult Social Care,Stationery,20.04.2017,5100915223,"2,594.40",Northgate Public Services (UK) Ltd
Manchester City Council,Adult Social Care,Third party payments relating to Voluntary Organisations,20.04.2017,5100915205,"2,430.76",The Guinness Partnership Ltd
Manchester City Council,Adult Social Care,Third party payments relating to Voluntary Organisations,20.04.2017,5100915204,"1,496.42",The Guinness Partnership Ltd
Manchester City Council,Adult Social Care,Electricity,20.04.2017,1905560994,"1,323.64",Scottish & Southern Energy Plc
Manchester City Council,Adult Social Care,Third party payments relating to Voluntary Organisations,20.04.2017,5100915205,"1,319.82",The Guinness Partnership Ltd
Manchester City Council,Adult Social Care,Building Materials for direct delivery,20.04.2017,5100915335,"1,120.00",Illingworth Ingham (M/cR)
Manchester City Council,Adult Social Care,Electricity,20.04.2017,1905560934,"1,108.79",Scottish & Southern Energy Plc
Manchester City Council,Adult Social Care,Electricity,20.04.2017,1905560640,"1,106.06",Scottish & Southern Energy Plc
Manchester City Council,Adult Social Care,Home Care ,20.04.2017,5100915190,"1,082.00",Kiddi Days
Manchester City Council,Adult Social Care,Third party payments relating to Voluntary Organisations,20.04.2017,5100915187,"1,034.76",The Guinness Partnership Ltd
Manchester City Council,Adult Social Care,Third party payments relating to Voluntary Organisations,20.04.2017,5100915179,"1,034.68",The Guinness Partnership Ltd
Manchester City Council,Adult Social Care,Third party payments relating to Voluntary Organisations,20.04.2017,5100915201,"1,034.68",The Guinness Partnership Ltd
Manchester City Council,Adult Social Care,Third party payments relating to Voluntary Organisations,20.04.2017,5100915179,972.67,The Guinness Partnership Ltd
Manchester City Council,Adult Social Care,Third party payments relating to Voluntary Organisations,20.04.2017,5100915187,972.67,The Guinness Partnership Ltd
Manchester City Council,Adult Social Care,Third party payments relating to Voluntary Organisations,20.04.2017,5100915201,972.67,The Guinness Partnership Ltd
Manchester City Council,Adult Social Care,Third party payments relating to Voluntary Organisations,20.04.2017,5100915204,972.67,The Guinness Partnership Ltd
Manchester City Council,Adult Social Care,Electricity,20.04.2017,1905560633,971.63,Scottish & Southern Energy Plc
Manchester City Council,Adult Social Care,Electricity,20.04.2017,1905560960,926.31,Scottish & Southern Energy Plc
Manchester City Council,Adult Social Care,Electricity,20.04.2017,1905560965,886.42,Scottish & Southern Energy Plc
Manchester City Council,Adult Social Care,Third party payments relating to Voluntary Organisations,20.04.2017,5100915187,790.70,The Guinness Partnership Ltd
Manchester City Council,Adult Social Care,Third party payments relating to Voluntary Organisations,20.04.2017,5100915179,790.60,The Guinness Partnership Ltd
Manchester City Council,Adult Social Care,Third party payments relating to Voluntary Organisations,20.04.2017,5100915201,790.60,The Guinness Partnership Ltd
Manchester City Council,Adult Social Care,Third party payments relating to Voluntary Organisations,20.04.2017,5100915204,790.60,The Guinness Partnership Ltd
Manchester City Council,Adult Social Care,Electricity,20.04.2017,1905560627,788.10,Scottish & Southern Energy Plc
Manchester City Council,Adult Social Care,Third party payments relating to Voluntary Organisations,20.04.2017,5100915187,785.74,The Guinness Partnership Ltd
Manchester City Council,Adult Social Care,Third party payments relating to Voluntary Organisations,20.04.2017,5100915179,785.72,The Guinness Partnership Ltd
Manchester City Council,Adult Social Care,Third party payments relating to Voluntary Organisations,20.04.2017,5100915201,785.72,The Guinness Partnership Ltd
Manchester City Council,Adult Social Care,Third party payments relating to Voluntary Organisations,20.04.2017,5100915204,785.72,The Guinness Partnership Ltd
Manchester City Council,Adult Social Care,Third party payments relating to Voluntary Organisations,20.04.2017,5100915205,771.08,The Guinness Partnership Ltd
Manchester City Council,Adult Social Care,Home Care ,20.04.2017,5100915192,728.00,Kiddi Days
Manchester City Council,Adult Social Care,Electricity,20.04.2017,1905560612,711.62,Scottish & Southern Energy Plc
Manchester City Council,Adult Social Care,Third party payments relating to Voluntary Organisations,20.04.2017,5100915187,695.78,The Guinness Partnership Ltd
Manchester City Council,Adult Social Care,Third party payments relating to Voluntary Organisations,20.04.2017,5100915179,695.74,The Guinness Partnership Ltd
Manchester City Council,Adult Social Care,Third party payments relating to Voluntary Organisations,20.04.2017,5100915201,695.74,The Guinness Partnership Ltd
Manchester City Council,Adult Social Care,Electricity,20.04.2017,1905560992,660.74,Scottish & Southern Energy Plc
Manchester City Council,Adult Social Care,Electricity,20.04.2017,1905560723,641.46,Scottish & Southern Energy Plc
Manchester City Council,Adult Social Care,Electricity,20.04.2017,1905560748,637.48,Scottish & Southern Energy Plc
Manchester City Council,Adult Social Care,Electricity,20.04.2017,1905560933,617.02,Scottish & Southern Energy Plc
Manchester City Council,Adult Social Care,Electricity,20.04.2017,1905561002,616.63,Scottish & Southern Energy Plc
Manchester City Council,Adult Social Care,Electricity,20.04.2017,1905560947,610.31,Scottish & Southern Energy Plc
Manchester City Council,Adult Social Care,Electricity,20.04.2017,1905560915,597.93,Scottish & Southern Energy Plc
Manchester City Council,Adult Social Care,Electricity,20.04.2017,1905560921,581.72,Scottish & Southern Energy Plc
Manchester City Council,Adult Social Care,Postage,20.04.2017,5100914367,580.00,Anglia DNA Services Ltd
Manchester City Council,Adult Social Care,Home Care ,20.04.2017,5100915178,560.00,Happy Feet Day Nursery Limited
Manchester City Council,Adult Social Care,Electricity,20.04.2017,1905560789,547.68,Scottish & Southern Energy Plc
Manchester City Council,Adult Social Care,Electricity,20.04.2017,1905560802,521.69,Scottish & Southern Energy Plc
Manchester City Council,Adult Social Care,Home Care ,20.04.2017,5100915188,510.00,Kidz Matter Ltd
Manchester City Council,Adult Social Care,Third party payments relating to Voluntary Organisations,20.04.2017,5100915195,-695.78,The Guinness Partnership Ltd
Manchester City Council,Adult Social Care,Third party payments relating to Voluntary Organisations,20.04.2017,5100915195,-785.74,The Guinness Partnership Ltd
Manchester City Council,Adult Social Care,Third party payments relating to Voluntary Organisations,20.04.2017,5100915195,-790.70,The Guinness Partnership Ltd
Manchester City Council,Adult Social Care,Third party payments relating to Voluntary Organisations,20.04.2017,5100915195,-972.67,The Guinness Partnership Ltd
Manchester City Council,Adult Social Care,Third party payments relating to Voluntary Organisations,20.04.2017,5100915195,"-1,034.76",The Guinness Partnership Ltd
Manchester City Council,Adult Social Care,Stationery,20.04.2017,5100915222,"-2,594.40",Northgate Public Services (UK) Ltd
Manchester City Council,Childrens Services,Building Works,20.04.2017,5100914885,"108,345.11",United Learning Trust
Manchester City Council,Childrens Services,Building Works,20.04.2017,5100914819,"42,917.75",United Learning Trust
Manchester City Council,Childrens Services,Building Works,20.04.2017,5100914883,"34,530.40",United Learning Trust
Manchester City Council,Childrens Services,Building Works,20.04.2017,5100914901,"8,389.30",United Learning Trust
Manchester City Council,Corporate Services,Long Term Debtors,20.04.2017,5100915346,"753,348.74",LQ Developments Limited
Manchester City Council,Corporate Services,Long Term Debtors,20.04.2017,5100915312,"580,996.00",Pomona Phase One Ltd
Manchester City Council,Corporate Services,Works and associated costs for Land and Buildings,20.04.2017,5100914088,"95,782.00",Conlon Construction Ltd
Manchester City Council,Corporate Services,Heart of Manchester Bid,20.04.2017,5100913985,"40,000.00",Heart of Manchester BID Co Ltd
Manchester City Council,Corporate Services,Works and associated costs for Land and Buildings,20.04.2017,5100915227,"24,561.75",Transport for Greater Manchester
Manchester City Council,Corporate Services,Works and associated costs for Land and Buildings,20.04.2017,5100914164,"4,872.19",Conlon Construction Ltd
Manchester City Council,Corporate Services,Works and associated costs for Land and Buildings,20.04.2017,5100914164,"4,828.91",Conlon Construction Ltd
Manchester City Council,Corporate Services,Travel Season Ticket Loan Scheme,20.04.2017,5100915037,"2,908.00",Northern
Manchester City Council,Corporate Services,Electricity,20.04.2017,1905560953,"2,487.21",Scottish & Southern Energy Plc
Manchester City Council,Corporate Services,Travel Season Ticket Loan Scheme,20.04.2017,5100915037,"2,460.00",Northern
Manchester City Council,Corporate Services,Electricity,20.04.2017,1905560928,"2,392.19",Scottish & Southern Energy Plc
Manchester City Council,Corporate Services,Printing,20.04.2017,5100914866,"1,851.00",Mail Solutions
Manchester City Council,Corporate Services,Electricity,20.04.2017,1905560930,"1,655.80",Scottish & Southern Energy Plc
Manchester City Council,Corporate Services,Electricity,20.04.2017,1905560938,"1,474.61",Scottish & Southern Energy Plc
Manchester City Council,Corporate Services,Electricity,20.04.2017,1905560966,"1,443.18",Scottish & Southern Energy Plc
Manchester City Council,Corporate Services,Electricity,20.04.2017,1905560993,"1,426.44",Scottish & Southern Energy Plc
Manchester City Council,Corporate Services,Electricity,20.04.2017,1905560937,"1,398.34",Scottish & Southern Energy Plc
Manchester City Council,Corporate Services,Electricity,20.04.2017,1905561000,"1,322.66",Scottish & Southern Energy Plc
Manchester City Council,Corporate Services,Electricity,20.04.2017,1905560961,"1,207.10",Scottish & Southern Energy Plc
Manchester City Council,Corporate Services,Electricity,20.04.2017,1905560643,"1,180.02",Scottish & Southern Energy Plc
Manchester City Council,Corporate Services,Electricity,20.04.2017,1905560951,"1,162.13",Scottish & Southern Energy Plc
Manchester City Council,Corporate Services,Electricity,20.04.2017,1905560929,"1,158.63",Scottish & Southern Energy Plc
Manchester City Council,Corporate Services,Electricity,20.04.2017,1905560917,"1,103.61",Scottish & Southern Energy Plc
Manchester City Council,Corporate Services,Electricity,20.04.2017,1905560948,"1,086.97",Scottish & Southern Energy Plc
Manchester City Council,Corporate Services,Travel Season Ticket Loan Scheme,20.04.2017,5100915176,"1,075.40",Transport for Greater Manchester
Manchester City Council,Corporate Services,Electricity,20.04.2017,1905560926,"1,069.18",Scottish & Southern Energy Plc
Manchester City Council,Corporate Services,Electricity,20.04.2017,1905560610,"1,069.08",Scottish & Southern Energy Plc
Manchester City Council,Corporate Services,Electricity,20.04.2017,1905560611,982.88,Scottish & Southern Energy Plc
Manchester City Council,Corporate Services,Travel Season Ticket Loan Scheme,20.04.2017,5100915037,955.60,Northern
Manchester City Council,Corporate Services,Travel Season Ticket Loan Scheme,20.04.2017,5100915037,955.60,Northern
Manchester City Council,Corporate Services,Travel Season Ticket Loan Scheme,20.04.2017,5100915037,955.60,Northern
Manchester City Council,Corporate Services,Travel Season Ticket Loan Scheme,20.04.2017,5100915037,955.60,Northern
Manchester City Council,Corporate Services,Travel Season Ticket Loan Scheme,20.04.2017,5100915037,955.60,Northern
Manchester City Council,Corporate Services,Travel Season Ticket Loan Scheme,20.04.2017,5100915037,955.60,Northern
Manchester City Council,Corporate Services,Travel Season Ticket Loan Scheme,20.04.2017,5100915037,955.60,Northern
Manchester City Council,Corporate Services,Travel Season Ticket Loan Scheme,20.04.2017,5100915037,955.60,Northern
Manchester City Council,Corporate Services,Travel Season Ticket Loan Scheme,20.04.2017,5100915037,955.60,Northern
Manchester City Council,Corporate Services,Travel Season Ticket Loan Scheme,20.04.2017,5100915037,955.60,Northern
Manchester City Council,Corporate Services,Travel Season Ticket Loan Scheme,20.04.2017,5100915037,955.60,Northern
Manchester City Council,Corporate Services,I T Provision,20.04.2017,5100914952,950.00,Capita Business Services Ltd
Manchester City Council,Corporate Services,Travel Season Ticket Loan Scheme,20.04.2017,5100915037,868.00,Northern
Manchester City Council,Corporate Services,Travel Season Ticket Loan Scheme,20.04.2017,5100915037,856.00,Northern
Manchester City Council,Corporate Services,Electricity,20.04.2017,1905560925,837.06,Scottish & Southern Energy Plc
Manchester City Council,Corporate Services,Electricity,20.04.2017,1905560616,764.53,Scottish & Southern Energy Plc
Manchester City Council,Corporate Services,Travel Season Ticket Loan Scheme,20.04.2017,5100915176,747.00,Transport for Greater Manchester
Manchester City Council,Corporate Services,Travel Season Ticket Loan Scheme,20.04.2017,5100915037,676.00,Northern
Manchester City Council,Corporate Services,Travel Season Ticket Loan Scheme,20.04.2017,5100915037,676.00,Northern
Manchester City Council,Corporate Services,Travel Season Ticket Loan Scheme,20.04.2017,5100915176,646.00,Transport for Greater Manchester
Manchester City Council,Corporate Services,Travel Season Ticket Loan Scheme,20.04.2017,5100915176,646.00,Transport for Greater Manchester
Manchester City Council,Corporate Services,Electricity,20.04.2017,1905560596,557.33,Scottish & Southern Energy Plc
Manchester City Council,Corporate Services,Electricity,20.04.2017,1905560600,551.71,Scottish & Southern Energy Plc
Manchester City Council,Corporate Services,Electricity,20.04.2017,1905560927,534.84,Scottish & Southern Energy Plc
Manchester City Council,Corporate Services,Travel Season Ticket Loan Scheme,20.04.2017,5100915176,522.00,Transport for Greater Manchester
Manchester City Council,Corporate Services,Travel Season Ticket Loan Scheme,20.04.2017,5100915226,-676.00,Northern
Manchester City Council,Corporate Services,Electricity,20.04.2017,1700070425,"-1,055.85",Scottish & Southern Energy Plc
Manchester City Council,Corporate Services,Professional fees,20.04.2017,5100915348,"-2,600.00",Lambert Smith Hampton
Manchester City Council,Housing Revenue Account,Council Dwelling Fees,20.04.2017,5100915206,"147,851.97",Northwards Housing Limited
Manchester City Council,Housing Revenue Account,I T Provision,20.04.2017,5100915242,"15,192.00",Aareon UK Ltd
Manchester City Council,Housing Revenue Account,Council Dwelling Adaptations,20.04.2017,5100914468,"4,950.00",Omfax Systems Ltd
Manchester City Council,Housing Revenue Account,Council Dwelling Adaptations,20.04.2017,5100914473,"1,240.00",Omfax Systems Ltd
Manchester City Council,Chief Executives,Postage,20.04.2017,5100915236,"16,797.04",Royal Mail Group Plc
Manchester City Council,Chief Executives,Agency staff provision,20.04.2017,5100914347,"15,673.80",P S Recruitment Specialists Ltd
Manchester City Council,Chief Executives,Grant and subscriptions awarded,20.04.2017,1905561487,"13,506.36",Eurocities ASBL
Manchester City Council,Chief Executives,Professional fees,20.04.2017,5100915249,"7,500.00",Lord Mayor of M/cr Charity Appeal
Manchester City Council,Chief Executives,Training and Development,20.04.2017,5100913446,"5,080.00",North West Employers Ltd
Manchester City Council,Chief Executives,Telecoms Maintenance,20.04.2017,5100915032,"2,970.00",T.I.S. Limited
Manchester City Council,Chief Executives,Grant and subscriptions awarded,20.04.2017,1905561405,"2,175.60",SAFARI BOOKS ONLINE
Manchester City Council,Chief Executives,Printing,20.04.2017,5100913883,"1,968.00",Browns Digital Ltd
Manchester City Council,Chief Executives,Advertising,20.04.2017,5100915240,"1,125.00",TES Global Ltd
Manchester City Council,Chief Executives,Postage,20.04.2017,5100915250,"1,080.45",Royal Mail Group Plc
Manchester City Council,Chief Executives,Advertising,20.04.2017,5100915177,900.00,Guardian News and Media Limited
Manchester City Council,Chief Executives,Advertising,20.04.2017,5100915196,877.50,TES Global Ltd
Manchester City Council,Chief Executives,Advertising,20.04.2017,5100915197,877.50,TES Global Ltd
Manchester City Council,Chief Executives,Advertising,20.04.2017,5100915199,877.50,TES Global Ltd
Manchester City Council,Chief Executives,Advertising,20.04.2017,5100915200,877.50,TES Global Ltd
Manchester City Council,Chief Executives,Advertising,20.04.2017,5100915232,877.50,TES Global Ltd
Manchester City Council,Chief Executives,Advertising,20.04.2017,5100915234,877.50,TES Global Ltd
Manchester City Council,Chief Executives,Advertising,20.04.2017,5100915238,877.50,TES Global Ltd
Manchester City Council,Chief Executives,Advertising,20.04.2017,5100915193,710.10,TES Global Ltd
Manchester City Council,Chief Executives,Advertising,20.04.2017,1905561388,558.00,Facebook (CARD ONLY)
Manchester City Council,Chief Executives,Postage,20.04.2017,5100915244,544.78,Royal Mail Group Plc
Manchester City Council,Regeneration Finance,Professional fees,20.04.2017,5100914341,"32,509.00",The Carbon and Energy Fund Ltd
Manchester City Council,Regeneration Finance,Electricity,20.04.2017,1905560977,"3,694.35",Scottish & Southern Energy Plc
Manchester City Council,Regeneration Finance,Electricity,20.04.2017,1905560922,"2,011.05",Scottish & Southern Energy Plc
Manchester City Council,Regeneration Finance,Electricity,20.04.2017,1905560592,"1,975.78",Scottish & Southern Energy Plc
Manchester City Council,Regeneration Finance,Electricity,20.04.2017,1905560636,"1,872.16",Scottish & Southern Energy Plc
Manchester City Council,Regeneration Finance,Electricity,20.04.2017,1905560958,"1,830.54",Scottish & Southern Energy Plc
Manchester City Council,Regeneration Finance,Electricity,20.04.2017,1905560593,"1,771.92",Scottish & Southern Energy Plc
Manchester City Council,Regeneration Finance,Electricity,20.04.2017,1905560963,"1,725.72",Scottish & Southern Energy Plc
Manchester City Council,Regeneration Finance,Electricity,20.04.2017,1905560996,"1,593.36",Scottish & Southern Energy Plc
Manchester City Council,Regeneration Finance,Electricity,20.04.2017,1905560607,"1,463.60",Scottish & Southern Energy Plc
Manchester City Council,Regeneration Finance,Electricity,20.04.2017,1905560955,"1,225.72",Scottish & Southern Energy Plc
Manchester City Council,Regeneration Finance,Electricity,20.04.2017,1905560969,"1,195.70",Scottish & Southern Energy Plc
Manchester City Council,Regeneration Finance,Cleaning Equipment and Materials,20.04.2017,5100915263,"1,078.70",Alliance Disposables Ltd
Manchester City Council,Regeneration Finance,Electricity,20.04.2017,1905560918,"1,047.08",Scottish & Southern Energy Plc
Manchester City Council,Regeneration Finance,Electricity,20.04.2017,1905560603,"1,016.28",Scottish & Southern Energy Plc
Manchester City Council,Regeneration Finance,Professional fees,20.04.2017,5100914235,"1,000.00",Lambert Smith Hampton
Manchester City Council,Regeneration Finance,Electricity,20.04.2017,1905560647,829.69,Scottish & Southern Energy Plc
Manchester City Council,Regeneration Finance,Electricity,20.04.2017,1905560642,817.81,Scottish & Southern Energy Plc
Manchester City Council,Regeneration Finance,Electricity,20.04.2017,1905560631,785.74,Scottish & Southern Energy Plc
Manchester City Council,Regeneration Finance,Electricity,20.04.2017,1905560622,643.73,Scottish & Southern Energy Plc
Manchester City Council,Regeneration Finance,Electricity,20.04.2017,1905560964,616.92,Scottish & Southern Energy Plc
Manchester City Council,Regeneration Finance,Electricity,20.04.2017,1905560606,596.18,Scottish & Southern Energy Plc
Manchester City Council,Regeneration Finance,Electricity,20.04.2017,1905560645,591.52,Scottish & Southern Energy Plc
Manchester City Council,Regeneration Finance,Electricity,20.04.2017,1905560624,542.71,Scottish & Southern Energy Plc
Manchester City Council,Regeneration Finance,Electricity,20.04.2017,1905560957,512.76,Scottish & Southern Energy Plc
Manchester City Council,Regeneration Finance,I T Provision,20.04.2017,5100915245,500.00,Idox Software Ltd
Manchester City Council,Regeneration Finance,I T Provision,20.04.2017,5100915247,500.00,Idox Software Ltd
Manchester City Council,Regeneration Finance,Electricity,20.04.2017,1700070567,-556.63,Scottish & Southern Energy Plc
Manchester City Council,Regeneration Finance,Electricity,20.04.2017,1700070569,-573.30,Scottish & Southern Energy Plc
Manchester City Council,Regeneration Finance,Electricity,20.04.2017,1700070432,-582.44,Scottish & Southern Energy Plc
Manchester City Council,Regeneration Finance,Electricity,20.04.2017,1700070570,-605.14,Scottish & Southern Energy Plc
Manchester City Council,Regeneration Finance,Electricity,20.04.2017,1700070574,-831.88,Scottish & Southern Energy Plc
Manchester City Council,Regeneration Finance,Electricity,20.04.2017,1700070575,-831.99,Scottish & Southern Energy Plc
Manchester City Council,Regeneration Finance,Electricity,20.04.2017,1700070430,-835.32,Scottish & Southern Energy Plc
Manchester City Council,Regeneration Finance,Electricity,20.04.2017,1700070429,-836.72,Scottish & Southern Energy Plc
Manchester City Council,Regeneration Finance,Electricity,20.04.2017,1700070431,-842.06,Scottish & Southern Energy Plc
Manchester City Council,Regeneration Finance,Electricity,20.04.2017,1700070573,"-1,210.78",Scottish & Southern Energy Plc
Manchester City Council,Regeneration Finance,Electricity,20.04.2017,1700070423,"-1,943.38",Scottish & Southern Energy Plc
Manchester City Council,Regeneration Finance,Electricity,20.04.2017,1700070577,"-2,460.03",Scottish & Southern Energy Plc
Manchester City Council,Regeneration Finance,Electricity,20.04.2017,1700070576,"-2,488.07",Scottish & Southern Energy Plc
Manchester City Council,Regeneration Finance,Electricity,20.04.2017,1700070578,"-2,600.33",Scottish & Southern Energy Plc
Manchester City Council,Highways Services,Private Finance and Public Private partnership initiatives,20.04.2017,5100915099,"637,222.02",Amey Highways Lighting (Manchester)
Manchester City Council,Highways Services,Payments to Sub-Contractors,20.04.2017,5100914860,"30,683.89",J.Hopkins (Contractors) Ltd.
Manchester City Council,Highways Services,Payments to Sub-Contractors,20.04.2017,5100914912,"5,823.16",Rosgal Ltd
Manchester City Council,Highways Services,Payments to Sub-Contractors,20.04.2017,5100913799,"4,940.26",Northern Marking Limited
Manchester City Council,Highways Services,Grounds Maintenance Costs,20.04.2017,5100914335,"1,450.00",A T G Access Ltd
Manchester City Council,Highways Services,Building Materials for direct delivery,20.04.2017,5100914880,"1,375.00",Kloeckner Metals UK
Manchester City Council,Highways Services,Building Materials for direct delivery,20.04.2017,5100914880,"1,375.00",Kloeckner Metals UK
Manchester City Council,Highways Services,Purchase of stores for re-distribution,20.04.2017,5100915340,"1,211.72",P.F. Cusack (Tools Supplies) Ltd
Manchester City Council,Highways Services,Hire of Equipment,20.04.2017,5100915284,931.32,United Utilities Plc
Manchester City Council,Highways Services,Electricity,20.04.2017,1905560628,793.60,Scottish & Southern Energy Plc
Manchester City Council,Highways Services,Electricity,20.04.2017,1905560979,689.99,Scottish & Southern Energy Plc
Manchester City Council,Highways Services,Hire of Equipment,20.04.2017,5100915283,628.47,United Utilities Plc
Manchester City Council,Highways Services,Private Finance and Public Private partnership initiatives,20.04.2017,5100915100,"-3,556.68",Amey Highways Lighting (Manchester)
Manchester City Council,Insurance Fund,Officials Indemnity Insurance Premium,20.04.2017,5100915129,"2,090.00",Aon Ltd
Manchester City Council,Insurance Fund,Officials Indemnity Insurance Premium,20.04.2017,5100915131,"2,090.00",Aon Ltd
Manchester City Council,Insurance Fund,Officials Indemnity Insurance Premium,20.04.2017,5100915122,"1,316.69",Aon Ltd
Manchester City Council,Insurance Fund,Officials Indemnity Insurance Premium,20.04.2017,5100915207,"1,316.69",Aon Ltd
Manchester City Council,Mersey Valley Joint Committee,Electricity,20.04.2017,1905560952,"1,439.48",Scottish & Southern Energy Plc
Manchester City Council,Manchester Leisure,Professional fees,21.04.2017,5100915575,"67,560.00",Wythenshawe Forum Trust Ltd
Manchester City Council,Manchester Leisure,Special Events,21.04.2017,5100915307,"55,000.00",Walk The Plank Ltd
Manchester City Council,Manchester Leisure,Equipment,21.04.2017,5100914974,"16,695.00",Cromwell polythene limited
Manchester City Council,Manchester Leisure,Special Events,21.04.2017,5100915306,"11,935.00",Walk The Plank Ltd
Manchester City Council,Manchester Leisure,Professional fees,21.04.2017,5100915051,"3,125.00",Greater Manchester Community
Manchester City Council,Manchester Leisure,Professional fees,21.04.2017,5100915366,"2,677.50",Marketing Manchester
Manchester City Council,Manchester Leisure,Agency staff provision,21.04.2017,5100915186,"1,964.97",Eastlands Trust Limited
Manchester City Council,Manchester Leisure,Payments for services,21.04.2017,5100915580,"1,891.94",Kinetic Insight Ltd
Manchester City Council,Manchester Leisure,Goods purchased for resale in Council outlets,21.04.2017,1905562100,"1,733.87",OBJECTRY
Manchester City Council,Manchester Leisure,Equipment,21.04.2017,5100913679,948.28,Wessex Pictures
Manchester City Council,Manchester Leisure,Professional fees,21.04.2017,5100915494,921.50,Daly Drains Ltd
Manchester City Council,Manchester Leisure,Goods purchased for resale in Council outlets,21.04.2017,1905555660,798.00,Lazy Lizards
Manchester City Council,Manchester Leisure,Payments to Sub-Contractors,21.04.2017,5100915538,585.00,Fast Hire UK
Manchester City Council,Manchester Leisure,Building Materials for direct delivery,21.04.2017,5100915251,548.87,Landscape Supply Company
Manchester City Council,Manchester Leisure,Building Materials for direct delivery,21.04.2017,5100915391,-548.87,Landscape Supply Company
Manchester City Council,Manchester Leisure,Professional fees,21.04.2017,5100915369,"-2,409.75",Marketing Manchester
Manchester City Council,Hospitality + Trading Services,Hire of Machinery,21.04.2017,5100915534,"14,398.10",H & C Plant Hire Ltd
Manchester City Council,Hospitality + Trading Services,Vehicle Fuel Costs,21.04.2017,5100915164,"14,197.40",Carlton Fuels Ltd
Manchester City Council,Hospitality + Trading Services,Vehicle Fuel Costs,21.04.2017,5100915345,"14,187.00",Carlton Fuels Ltd
Manchester City Council,Hospitality + Trading Services,Hire of Machinery,21.04.2017,5100915536,"10,921.44",Fast Hire UK
Manchester City Council,Hospitality + Trading Services,Hire of Machinery,21.04.2017,5100915516,"8,661.00",Fast Hire UK
Manchester City Council,Hospitality + Trading Services,Courier Costs,21.04.2017,5100915384,"3,332.00",Scalamander Business Services Ltd
Manchester City Council,Hospitality + Trading Services,Catering Provisions,21.04.2017,1905561605,888.63,Brake Bros Foodservice Ltd
Manchester City Council,Hospitality + Trading Services,Catering Provisions,21.04.2017,1905561573,721.56,Brake Bros Foodservice Ltd
Manchester City Council,Hospitality + Trading Services,Catering Provisions,21.04.2017,1905561576,665.04,Brake Bros Foodservice Ltd
Manchester City Council,Hospitality + Trading Services,Catering Provisions,21.04.2017,1905561508,636.51,Brake Bros Foodservice Ltd
Manchester City Council,Hospitality + Trading Services,Catering Provisions,21.04.2017,1905561591,627.15,Brake Bros Foodservice Ltd
Manchester City Council,Hospitality + Trading Services,Catering Provisions,21.04.2017,1905561510,607.90,Brake Bros Foodservice Ltd
Manchester City Council,Hospitality + Trading Services,Catering Provisions,21.04.2017,1905561609,594.28,Brake Bros Foodservice Ltd
Manchester City Council,Hospitality + Trading Services,Catering Provisions,21.04.2017,1905561575,582.68,Brake Bros Foodservice Ltd
Manchester City Council,Hospitality + Trading Services,Catering Provisions,21.04.2017,1905561574,553.17,Brake Bros Foodservice Ltd
Manchester City Council,Hospitality + Trading Services,Vehicle Fuel Costs,21.04.2017,5100915495,"-14,187.00",Carlton Fuels Ltd
Manchester City Council,Adult Social Care,Bed and Breakfast Accommodation Expenditure,21.04.2017,5100915357,"79,332.57",Accommodation Links Ltd
Manchester City Council,Adult Social Care,Bed and Breakfast Accommodation Expenditure,21.04.2017,5100915573,"7,217.00",Redacted Personal Information
Manchester City Council,Adult Social Care,Third party payments relating to Voluntary Organisations,21.04.2017,5100915353,"6,245.75",Great Places Housing Association
Manchester City Council,Adult Social Care,Third party payments relating to Voluntary Organisations,21.04.2017,5100915353,"3,712.00",Great Places Housing Association
Manchester City Council,Adult Social Care,Supporting People Payments,21.04.2017,5100915374,"3,611.13",Contact Hostel
Manchester City Council,Adult Social Care,Supporting People Payments,21.04.2017,5100915395,"2,309.22",Copperdale Trust
Manchester City Council,Adult Social Care,Security,21.04.2017,5100915443,"1,866.40",WADSWORTH SECURITY PRODUCTS
Manchester City Council,Adult Social Care,Rents,21.04.2017,5100915411,"1,771.50",Kids Around the Clock @ WHP
Manchester City Council,Adult Social Care,Equipment,21.04.2017,5100915543,"1,600.00",Drive Devilbiss Healthcare Ltd
Manchester City Council,Adult Social Care,Contract Cleaning Internal,21.04.2017,5100915562,"1,409.13",The Manchester College
Manchester City Council,Adult Social Care,Professional fees,21.04.2017,5100915310,"1,408.00",Forensic Testing Service Ltd
Manchester City Council,Adult Social Care,Equipment,21.04.2017,5100915564,"1,280.40",Drive Devilbiss Healthcare Ltd
Manchester City Council,Adult Social Care,Rates,21.04.2017,5100915412,"1,209.00",Kids Around the Clock @ WHP
Manchester City Council,Adult Social Care,Third party payments relating to Voluntary Organisations,21.04.2017,5100915385,"1,064.63",Indian Senior Citizens Centre
Manchester City Council,Adult Social Care,Third party payments relating to Voluntary Organisations,21.04.2017,5100915481,"1,034.76",The Guinness Partnership Ltd
Manchester City Council,Adult Social Care,Third party payments relating to Voluntary Organisations,21.04.2017,5100915291,"1,034.08",Federation of Jewish Services
Manchester City Council,Adult Social Care,Third party payments relating to Voluntary Organisations,21.04.2017,5100915481,972.67,The Guinness Partnership Ltd
Manchester City Council,Adult Social Care,Third party payments relating to Voluntary Organisations,21.04.2017,5100915497,912.14,Places for People Living +
Manchester City Council,Adult Social Care,Third party payments relating to Voluntary Organisations,21.04.2017,5100915481,790.70,The Guinness Partnership Ltd
Manchester City Council,Adult Social Care,Third party payments relating to Voluntary Organisations,21.04.2017,5100915481,785.74,The Guinness Partnership Ltd
Manchester City Council,Adult Social Care,Third party payments relating to Voluntary Organisations,21.04.2017,5100915430,750.00,Simply Cycling - Wyth Wheelers
Manchester City Council,Adult Social Care,Third party payments relating to Voluntary Organisations,21.04.2017,5100915497,699.60,Places for People Living +
Manchester City Council,Adult Social Care,Third party payments relating to Voluntary Organisations,21.04.2017,5100915481,695.78,The Guinness Partnership Ltd
Manchester City Council,Adult Social Care,"Clothes, Uniform and Laundry",21.04.2017,5100915437,531.00,Alliance Disposables Ltd
Manchester City Council,Corporate Services,Long Term Debtors,21.04.2017,5100915570,"2,263,142.85",W B Developments (Salford) Ltd
Manchester City Council,Corporate Services,Discounted Car Parking,21.04.2017,1905553651,"2,060.00",National Car Parks Ltd Season Ticke
Manchester City Council,Corporate Services,Charges for Services,21.04.2017,1700070333,"-3,000.00",HM Revenue & Customs
Manchester City Council,Housing Revenue Account,Professional fees,21.04.2017,5100915314,"29,677.86",Northwards Housing Limited
Manchester City Council,Housing Revenue Account,Council Dwelling Adaptations,21.04.2017,5100915571,"1,337.07",IG Doors Ltd
Manchester City Council,Housing Revenue Account,Council Dwelling Adaptations,21.04.2017,5100915574,885.10,IG Doors Ltd
Manchester City Council,Chief Executives,Works and associated costs for Land and Buildings,21.04.2017,5100915237,"876,139.75",Vinci Construction UK Ltd
Manchester City Council,Chief Executives,Advertising,21.04.2017,5100915387,"12,000.00",Trinity Mirror NW2 Ltd
Manchester City Council,Chief Executives,Agency staff provision,21.04.2017,5100914348,"8,502.33",P S Recruitment Specialists Ltd
Manchester City Council,Chief Executives,Agency staff provision,21.04.2017,5100915492,"8,050.15",Caritas Recruitment
Manchester City Council,Chief Executives,Advertising,21.04.2017,5100915166,"8,000.00",Trinity Mirror NW2 Ltd
Manchester City Council,Chief Executives,Advertising,21.04.2017,5100915133,"8,000.00",Trinity Mirror NW2 Ltd
Manchester City Council,Chief Executives,Agency staff provision,21.04.2017,5100914355,"7,266.83",P S Recruitment Specialists Ltd
Manchester City Council,Chief Executives,Agency staff provision,21.04.2017,5100915491,"6,724.00",Caritas Recruitment
Manchester City Council,Chief Executives,Agency staff provision,21.04.2017,5100915433,"3,331.30",Semester Recruitment Ltd
Manchester City Council,Chief Executives,Mobilephone Charges,21.04.2017,1905553612,"2,980.00",EE / Orange
Manchester City Council,Chief Executives,Printing,21.04.2017,5100914992,"2,690.00",Browns CTP Ltd
Manchester City Council,Chief Executives,I T Provision,21.04.2017,5100915047,"2,450.00",Jigsaw Systems Limited
Manchester City Council,Chief Executives,Mobilephone Charges,21.04.2017,1905540161,"1,490.00",EE / Orange
Manchester City Council,Chief Executives,Data Links,21.04.2017,1905530455,"1,397.50",BT PLC
Manchester City Council,Chief Executives,Mobilephone Charges,21.04.2017,1905553610,"1,043.00",EE / Orange
Manchester City Council,Chief Executives,Landline Telephone Charges,21.04.2017,1905555543,884.09,Daisy Communications Ltd
Manchester City Council,Chief Executives,Mobilephone Charges,21.04.2017,1905553608,745.00,EE / Orange
Manchester City Council,Chief Executives,Legal Fees,21.04.2017,5100915367,500.00,Kings Chambers
Manchester City Council,Chief Executives,Mobilephone Charges,21.04.2017,1700069920,-700.00,EE / Orange
Manchester City Council,Chief Executives,Mobilephone Charges,21.04.2017,1700070381,"-1,000.00",EE / Orange
Manchester City Council,Chief Executives,Agency staff provision,21.04.2017,5100915490,"-3,232.95",Caritas Recruitment
Manchester City Council,Chief Executives,Agency staff provision,21.04.2017,5100915488,"-6,380.35",Caritas Recruitment
Manchester City Council,Chief Executives,Agency staff provision,21.04.2017,5100915489,"-10,541.19",Caritas Recruitment
Manchester City Council,Regeneration Finance,Professional fees,21.04.2017,5100915012,"5,367.40",Atkins Limited
Manchester City Council,Regeneration Finance,Consultants Fees,21.04.2017,5100915420,"4,050.00",Erica Bolton & Jane Quinn Ltd
Manchester City Council,Regeneration Finance,I T Provision,21.04.2017,5100914959,"1,827.04",Computacenter (UK) Ltd
Manchester City Council,Regeneration Finance,Storage Costs,21.04.2017,5100915403,746.04,Data Space Limited
Manchester City Council,Regeneration Finance,Storage Costs,21.04.2017,5100915405,552.10,Data Space Limited
Manchester City Council,Regeneration Finance,Storage Costs,21.04.2017,5100915505,517.42,Data Space Limited
Manchester City Council,Regeneration Finance,Storage Costs,21.04.2017,5100915504,-517.42,Data Space Limited
Manchester City Council,Regeneration Finance,Storage Costs,21.04.2017,5100915400,-662.52,Data Space Limited
Manchester City Council,Regeneration Finance,Storage Costs,21.04.2017,5100915399,-895.25,Data Space Limited
Manchester City Council,Highways Services,Rents,21.04.2017,5100915638,"399,622.13",Savills (UK) Ltd
Manchester City Council,Highways Services,Payments to Sub-Contractors,21.04.2017,5100914937,"3,981.00",Rosgal Ltd
Manchester City Council,Highways Services,Building Materials for direct delivery,21.04.2017,1905562076,"2,686.40",Benchmark Building Supplies Ltd
Manchester City Council,Highways Services,Building Materials for direct delivery,21.04.2017,1905562077,"2,686.40",Benchmark Building Supplies Ltd
Manchester City Council,Highways Services,Building Materials for direct delivery,21.04.2017,1905562081,"1,370.40",Benchmark Building Supplies Ltd
Manchester City Council,Highways Services,Building Materials for direct delivery,21.04.2017,1905562080,"1,343.20",Benchmark Building Supplies Ltd
Manchester City Council,Highways Services,Hire of Machinery,21.04.2017,5100915401,"1,103.75",R & M Developments Ltd
Manchester City Council,Highways Services,Hire of Machinery,21.04.2017,5100915402,"1,103.75",R & M Developments Ltd
Manchester City Council,Highways Services,Hire of Machinery,21.04.2017,5100915383,"1,038.50",R & M Developments Ltd
Manchester City Council,Highways Services,Hire of Machinery,21.04.2017,5100915397,"1,038.50",R & M Developments Ltd
Manchester City Council,Highways Services,Hire of Machinery,21.04.2017,5100915392,"1,012.50",R & M Developments Ltd
Manchester City Council,Highways Services,Building Materials for direct delivery,21.04.2017,5100915545,661.02,Benchmark Building Supplies Ltd
Manchester City Council,Highways Services,Payments to Sub-Contractors,21.04.2017,5100915355,519.30,Kenny Bros (Civil Eng) Ltd
Manchester City Council,Highways Services,Building Materials for direct delivery,21.04.2017,1905562083,514.48,Benchmark Building Supplies Ltd
Manchester City Council,Highways Services,Rents,21.04.2017,5100915640,"-333,018.44",Savills (UK) Ltd
Manchester City Council,Insurance Fund,Insurance,21.04.2017,5100915513,"6,176.73",Catholic Church Insurance Assoc.
Manchester City Council,GMIST (Greater Mcr Integrated),I T Provision,21.04.2017,5100914956,"4,500.00",Limehouse Software Ltd
Manchester City Council,GMIST (Greater Mcr Integrated),Agency staff provision,21.04.2017,5100915519,"3,635.84",Pennine Care NHS Trust
Manchester City Council,Manchester Leisure,Levies,24.04.2017,1905564176,"4,124,300.00",GMWDA (LEVY)
Manchester City Council,Manchester Leisure,Grant and subscriptions awarded,24.04.2017,5100915208,"500,000.00",Eastlands Trust Limited
Manchester City Council,Manchester Leisure,Payments for services,24.04.2017,5100915582,"41,831.90",Kinetic Insight Ltd
Manchester City Council,Manchester Leisure,Labour Charges,24.04.2017,5100915823,"13,674.04",Rochdale Mbc
Manchester City Council,Manchester Leisure,Agency staff provision,24.04.2017,5100915184,"8,964.96",Eastlands Trust Limited
Manchester City Council,Manchester Leisure,Professional fees,24.04.2017,5100915068,"8,000.00",Film and Video Umbrella
Manchester City Council,Manchester Leisure,I T Provision,24.04.2017,5100915294,"3,605.00",Kinetic Solutions Ltd
Manchester City Council,Manchester Leisure,Building Materials for direct delivery,24.04.2017,5100915228,762.32,Landscape Supply Company
Manchester City Council,Manchester Leisure,Grant and subscriptions awarded,24.04.2017,5100915664,500.00,Warrington Cultural Trust
Manchester City Council,Manchester Leisure,Grant and subscriptions awarded,24.04.2017,5100915665,500.00,Warrington Cultural Trust
Manchester City Council,Hospitality + Trading Services,Vehicle Fuel Costs,24.04.2017,5100915373,"14,099.04",Carlton Fuels Ltd
Manchester City Council,Hospitality + Trading Services,I T Provision,24.04.2017,5100915301,"9,125.95",KPR Midlink Ltd
Manchester City Council,Hospitality + Trading Services,Funeral and coroner related services,24.04.2017,5100915722,"6,387.50",The Manchester College
Manchester City Council,Hospitality + Trading Services,Vehicle Fuel Costs,24.04.2017,5100915371,"4,746.00",Carlton Fuels Ltd
Manchester City Council,Hospitality + Trading Services,Hire of Machinery,24.04.2017,5100915658,"1,103.75",R & M Developments Ltd
Manchester City Council,Hospitality + Trading Services,Hire of Machinery,24.04.2017,5100915661,"1,103.75",R & M Developments Ltd
Manchester City Council,Hospitality + Trading Services,Professional fees,24.04.2017,5100915725,"1,000.00",Association For Public
Manchester City Council,Hospitality + Trading Services,Grant Payments,24.04.2017,5100915662,795.00,Nabma
Manchester City Council,Hospitality + Trading Services,Bank Charges,24.04.2017,1905564149,782.53,Cardnet Merchant Services
Manchester City Council,Environment and Operations,Construction Works,24.04.2017,5100915216,"59,793.75",Dowhigh Ltd
Manchester City Council,Environment and Operations,Construction Works,24.04.2017,5100915218,"34,810.37",Dowhigh Ltd
Manchester City Council,Environment and Operations,Construction Works,24.04.2017,5100915498,"25,091.37",Dowhigh Ltd
Manchester City Council,Environment and Operations,Construction Works,24.04.2017,5100915215,"24,030.36",Dowhigh Ltd
Manchester City Council,Environment and Operations,Construction Works,24.04.2017,5100915214,"22,697.08",Dowhigh Ltd
Manchester City Council,Environment and Operations,Construction Works,24.04.2017,5100915219,"10,415.29",Dowhigh Ltd
Manchester City Council,Environment and Operations,Professional fees,24.04.2017,5100915806,595.00,Solution Talk LLP
Manchester City Council,Adult Social Care,Payments for services,24.04.2017,5100915718,"306,886.87",Manchester College
Manchester City Council,Adult Social Care,Payments for services,24.04.2017,5100915824,"217,545.12",Future Directions CIC
Manchester City Council,Adult Social Care,Private Finance and Public Private partnership initiatives,24.04.2017,5100915770,"74,785.80",NU3PS
Manchester City Council,Adult Social Care,Third party payments relating to Voluntary Organisations,24.04.2017,5100915666,"73,750.00",Man. Citizens Advice Bureaux
Manchester City Council,Adult Social Care,Payments for services,24.04.2017,5100915652,"40,000.00",Diagrama Foundation
Manchester City Council,Adult Social Care,Carer Support Payments ,24.04.2017,5100913130,"28,109.28",Carewatch Care Service
Manchester City Council,Adult Social Care,Other Establishments Third Party Payments,24.04.2017,5100913635,"26,665.43",Care Concepts Ltd
Manchester City Council,Adult Social Care,Legal Fees,24.04.2017,1905564190,"17,145.00",Liberata
Manchester City Council,Adult Social Care,Bed and Breakfast Accommodation Expenditure,24.04.2017,5100915380,"17,004.00",Redacted Personal Information
Manchester City Council,Adult Social Care,Bed and Breakfast Accommodation Expenditure,24.04.2017,5100915629,"14,761.00",G & A Taylor Hotels Ltd
Manchester City Council,Adult Social Care,Bed and Breakfast Accommodation Expenditure,24.04.2017,5100915598,"13,503.50",G & A Taylor Hotels Ltd
Manchester City Council,Adult Social Care,Supporting People Payments,24.04.2017,5100915585,"11,360.37",St.Vincent'S Housing Association
Manchester City Council,Adult Social Care,Bed and Breakfast Accommodation Expenditure,24.04.2017,5100915590,"9,660.00",Redacted Personal Information
Manchester City Council,Adult Social Care,Bed and Breakfast Accommodation Expenditure,24.04.2017,5100915592,"9,200.00",Redacted Personal Information
Manchester City Council,Adult Social Care,Legal Fees,24.04.2017,1905521205,"8,735.00",Simpson Millar LLP
Manchester City Council,Adult Social Care,Payments for services,24.04.2017,5100915821,"8,369.18",Future Directions CIC
Manchester City Council,Adult Social Care,Legal Fees,24.04.2017,1905564187,"8,030.00",Liberata
Manchester City Council,Adult Social Care,Equipment,24.04.2017,5100915175,"4,950.00",Mangar International Ltd
Manchester City Council,Adult Social Care,Third party payments relating to Voluntary Organisations,24.04.2017,5100915636,"4,441.19",Tung Sing (Orient) Housing Assoc.Lt
Manchester City Council,Adult Social Care,Legal Fees,24.04.2017,1905564188,"4,375.00",Liberata
Manchester City Council,Adult Social Care,Third party payments relating to Voluntary Organisations,24.04.2017,5100915639,"2,403.72",Wai Yin Society
Manchester City Council,Adult Social Care,Legal Fees,24.04.2017,1905564189,"1,720.00",Liberata
Manchester City Council,Adult Social Care,Third party payments to Health Authority,24.04.2017,1905560353,"1,670.55",Bridgewater Community Healthcare
Manchester City Council,Adult Social Care,Legal Fees,24.04.2017,1905564193,"1,421.00",Liberata
Manchester City Council,Adult Social Care,I T Provision,24.04.2017,5100915286,"1,370.28",Computacenter (UK) Ltd
Manchester City Council,Adult Social Care,Professional fees,24.04.2017,5100915800,"1,338.00",Cambridge Policy Consultants Ltd
Manchester City Council,Adult Social Care,Funeral and coroner related services,24.04.2017,5100915763,"1,237.00",Funeral Prtnrs t/a Michael Kennedy
Manchester City Council,Adult Social Care,Home Care ,24.04.2017,5100915605,"1,050.70",Jelly Babies Nursery
Manchester City Council,Adult Social Care,Third party payments relating to Voluntary Organisations,24.04.2017,5100915819,"1,003.81",Manchester & District Housing Assoc
Manchester City Council,Adult Social Care,Third party payments relating to Voluntary Organisations,24.04.2017,5100915819,"1,003.51",Manchester & District Housing Assoc
Manchester City Council,Adult Social Care,Supporting People Payments,24.04.2017,5100915559,991.74,Manchester Settlement
Manchester City Council,Adult Social Care,Internal Repairs and Maintenance for buildings,24.04.2017,1905562087,959.84,Manchester Letting
Manchester City Council,Adult Social Care,Legal Fees,24.04.2017,1905553621,831.50,Clyde & Co Claims LLP
Manchester City Council,Adult Social Care,Third party payments relating to Voluntary Organisations,24.04.2017,5100915587,817.89,St.Vincent'S Housing Association
Manchester City Council,Adult Social Care,Rents,24.04.2017,1905554484,800.00,Amco Management
Manchester City Council,Adult Social Care,Third party payments relating to Voluntary Organisations,24.04.2017,5100915282,766.76,Afro Carribean Care Group
Manchester City Council,Adult Social Care,Third party payments relating to Voluntary Organisations,24.04.2017,5100915819,760.13,Manchester & District Housing Assoc
Manchester City Council,Adult Social Care,Rents,24.04.2017,1905554485,750.00,Manchester Letting
Manchester City Council,Adult Social Care,Rents,24.04.2017,1905554487,750.00,Manchester Letting
Manchester City Council,Adult Social Care,Equipment,24.04.2017,5100915743,720.00,NRS Healthcare
Manchester City Council,Adult Social Care,Equipment,24.04.2017,5100915796,612.00,Morris & Alexander Ltd
Manchester City Council,Adult Social Care,Legal Fees,24.04.2017,1905564192,510.00,Liberata
Manchester City Council,Adult Social Care,Transport Coach Hire,24.04.2017,5100915668,502.74,Redacted Personal Information
Manchester City Council,Corporate Services,Cash Collection,24.04.2017,1905564149,"19,849.51",Cardnet Merchant Services
Manchester City Council,Corporate Services,Professional fees,24.04.2017,5100915646,"18,700.00",Pierre Angulaire Limited
Manchester City Council,Corporate Services,Professional fees,24.04.2017,5100915649,"17,850.00",Pierre Angulaire Limited
Manchester City Council,Corporate Services,Professional fees,24.04.2017,5100915647,"16,150.00",Pierre Angulaire Limited
Manchester City Council,Corporate Services,Works and associated costs for Land and Buildings,24.04.2017,5100914376,"15,200.00",Redacted Personal Information
Manchester City Council,Corporate Services,Works and associated costs for Land and Buildings,24.04.2017,5100914379,"9,166.00",Pierre Angulaire Limited
Manchester City Council,Corporate Services,I T Provision,24.04.2017,5100915285,"8,492.90",Computacenter (UK) Ltd
Manchester City Council,Corporate Services,Postage,24.04.2017,5100915235,"1,203.29",Royal Mail Group Plc
Manchester City Council,Corporate Services,Travel Season Ticket Loan Scheme,24.04.2017,5100915698,"1,075.40",Transport for Greater Manchester
Manchester City Council,Corporate Services,Travel Season Ticket Loan Scheme,24.04.2017,5100915698,900.00,Transport for Greater Manchester
Manchester City Council,Corporate Services,Travel Season Ticket Loan Scheme,24.04.2017,5100915589,747.00,Transport for Greater Manchester
Manchester City Council,Corporate Services,Travel Season Ticket Loan Scheme,24.04.2017,5100915589,646.00,Transport for Greater Manchester
Manchester City Council,Corporate Services,Travel Season Ticket Loan Scheme,24.04.2017,5100915589,646.00,Transport for Greater Manchester
Manchester City Council,Corporate Services,Travel Season Ticket Loan Scheme,24.04.2017,5100915589,646.00,Transport for Greater Manchester
Manchester City Council,Corporate Services,Travel Season Ticket Loan Scheme,24.04.2017,5100915589,646.00,Transport for Greater Manchester
Manchester City Council,Corporate Services,Travel Season Ticket Loan Scheme,24.04.2017,5100915589,646.00,Transport for Greater Manchester
Manchester City Council,Corporate Services,Travel Season Ticket Loan Scheme,24.04.2017,5100915698,646.00,Transport for Greater Manchester
Manchester City Council,Corporate Services,Travel Season Ticket Loan Scheme,24.04.2017,5100915699,646.00,Transport for Greater Manchester
Manchester City Council,Corporate Services,Travel Season Ticket Loan Scheme,24.04.2017,5100915698,558.00,Transport for Greater Manchester
Manchester City Council,Corporate Services,Travel Season Ticket Loan Scheme,24.04.2017,5100915589,522.00,Transport for Greater Manchester
Manchester City Council,Corporate Services,Travel Season Ticket Loan Scheme,24.04.2017,5100915698,522.00,Transport for Greater Manchester
Manchester City Council,Corporate Services,Travel Season Ticket Loan Scheme,24.04.2017,5100915699,522.00,Transport for Greater Manchester
Manchester City Council,Housing General Fund,Council Dwellings - Demolition,24.04.2017,5100915524,"17,420.00",Cruden Group Ltd
Manchester City Council,Housing General Fund,Capital Receipts,24.04.2017,1905538775,"13,075.00",Redrow Homes Lancashire
Manchester City Council,Housing General Fund,Surplus property Fees,24.04.2017,1905548100,"2,300.00",Redacted Personal Information
Manchester City Council,Housing Revenue Account,Professional fees,24.04.2017,5100915174,"103,000.00",Your Employment Service CIC (YES)
Manchester City Council,Housing Revenue Account,Northwards Management Fee,24.04.2017,5100914087,"27,472.50",Northwards Housing Limited
Manchester City Council,Housing Revenue Account,Council Dwelling Adaptations,24.04.2017,5100915724,"20,397.62",Wrekin Windows
Manchester City Council,Housing Revenue Account,Council Dwelling Adaptations,24.04.2017,5100915688,"12,834.45",SIG Roofing Supplies
Manchester City Council,Housing Revenue Account,Council Dwelling Adaptations,24.04.2017,5100915695,"12,472.12",SIG Roofing Supplies
Manchester City Council,Housing Revenue Account,Council Dwelling Adaptations,24.04.2017,5100915739,"11,976.64",Canopies UK
Manchester City Council,Housing Revenue Account,Council Dwelling Adaptations,24.04.2017,5100915752,"10,205.33",IG Doors Ltd
Manchester City Council,Housing Revenue Account,Council Dwelling Adaptations,24.04.2017,5100915645,"7,927.23",SIG Roofing Supplies
Manchester City Council,Housing Revenue Account,Council Dwelling Adaptations,24.04.2017,5100915734,"7,684.00",Manchester Working Ltd
Manchester City Council,Housing Revenue Account,Council Dwelling Adaptations,24.04.2017,5100915723,"6,708.45",IG Doors Ltd
Manchester City Council,Housing Revenue Account,Council Dwelling Adaptations,24.04.2017,5100915644,"6,561.00",SIG Roofing Supplies
Manchester City Council,Housing Revenue Account,Council Dwelling Fees,24.04.2017,5100915635,"6,150.07",Northwards Housing Limited
Manchester City Council,Housing Revenue Account,Council Dwelling Adaptations,24.04.2017,5100915729,"5,779.45",Wrekin Windows
Manchester City Council,Housing Revenue Account,Council Dwelling Adaptations,24.04.2017,5100915714,"5,163.80",SIG Roofing Supplies
Manchester City Council,Housing Revenue Account,Council Dwelling Adaptations,24.04.2017,5100915737,"4,104.85",Wrekin Windows
Manchester City Council,Housing Revenue Account,Council Dwelling Adaptations,24.04.2017,5100915747,"3,829.67",Wrekin Windows
Manchester City Council,Housing Revenue Account,Council Dwelling Adaptations,24.04.2017,5100915704,"3,642.62",SIG Roofing Supplies
Manchester City Council,Housing Revenue Account,Council Dwelling Adaptations,24.04.2017,5100915709,"3,047.51",SIG Roofing Supplies
Manchester City Council,Housing Revenue Account,Council Dwelling Adaptations,24.04.2017,5100915759,"2,681.41",IG Doors Ltd
Manchester City Council,Housing Revenue Account,Council Dwelling Adaptations,24.04.2017,5100915708,"2,435.53",SIG Roofing Supplies
Manchester City Council,Housing Revenue Account,Council Dwelling Adaptations,24.04.2017,5100915687,"2,279.41",SIG Roofing Supplies
Manchester City Council,Housing Revenue Account,Council Dwelling Adaptations,24.04.2017,5100915696,"2,192.76",SIG Roofing Supplies
Manchester City Council,Housing Revenue Account,Council Dwelling Adaptations,24.04.2017,5100915693,"1,844.35",SIG Roofing Supplies
Manchester City Council,Housing Revenue Account,Council Dwelling Adaptations,24.04.2017,5100915730,"1,756.78",IG Doors Ltd
Manchester City Council,Housing Revenue Account,Council Dwelling Adaptations,24.04.2017,5100915712,"1,720.71",SIG Roofing Supplies
Manchester City Council,Housing Revenue Account,Council Dwelling Adaptations,24.04.2017,5100915765,"1,678.70",SIG Roofing Supplies
Manchester City Council,Housing Revenue Account,Council Dwelling Adaptations,24.04.2017,5100915736,"1,577.98",Canopies UK
Manchester City Council,Housing Revenue Account,Supporting People Payments,24.04.2017,5100915633,"1,538.46",Northwards Housing Limited
Manchester City Council,Housing Revenue Account,Council Dwelling Adaptations,24.04.2017,5100915812,"1,510.44",IG Doors Ltd
Manchester City Council,Housing Revenue Account,Council Dwelling Adaptations,24.04.2017,5100915710,"1,501.07",SIG Roofing Supplies
Manchester City Council,Housing Revenue Account,Construction Works,24.04.2017,5100915213,"1,450.00",Aconex Services Limited
Manchester City Council,Housing Revenue Account,Council Dwelling Adaptations,24.04.2017,5100915741,"1,418.25",IG Doors Ltd
Manchester City Council,Housing Revenue Account,Council Dwelling Adaptations,24.04.2017,5100915736,"1,247.28",Canopies UK
Manchester City Council,Housing Revenue Account,Council Dwelling Adaptations,24.04.2017,5100915742,"1,113.25",Wrekin Windows
Manchester City Council,Housing Revenue Account,Council Dwelling Adaptations,24.04.2017,5100915691,851.29,SIG Roofing Supplies
Manchester City Council,Housing Revenue Account,Council Dwelling Adaptations,24.04.2017,5100915701,720.81,SIG Roofing Supplies
Manchester City Council,Housing Revenue Account,Council Dwelling Adaptations,24.04.2017,5100915700,639.86,SIG Roofing Supplies
Manchester City Council,Housing Revenue Account,Council Dwelling Adaptations,24.04.2017,5100915764,626.64,IG Doors Ltd
Manchester City Council,Housing Revenue Account,Council Dwelling Adaptations,24.04.2017,5100915765,593.15,SIG Roofing Supplies
Manchester City Council,Housing Revenue Account,Council Dwelling Adaptations,24.04.2017,5100915740,591.15,Wrekin Windows
Manchester City Council,Housing Revenue Account,Council Dwelling Adaptations,24.04.2017,5100915732,527.38,IG Doors Ltd
Manchester City Council,Chief Executives,Agency staff provision,24.04.2017,5100915762,"33,788.92",Barker Ross Health & Social Care
Manchester City Council,Chief Executives,Legal Fees,24.04.2017,1905564186,"19,605.00",Liberata
Manchester City Council,Chief Executives,Legal Fees,24.04.2017,1905564191,"13,090.00",Liberata
Manchester City Council,Chief Executives,Advertising,24.04.2017,5100915757,"11,730.06",Global Radio Services Ltd
Manchester City Council,Chief Executives,Agency staff provision,24.04.2017,5100915797,"9,174.37",HR GO Recruitment Healthcare
Manchester City Council,Chief Executives,Works and associated costs for Land and Buildings,24.04.2017,5100915738,"7,500.00",Deloitte & Touche Llp
Manchester City Council,Chief Executives,Advertising,24.04.2017,5100915754,"5,790.48",Global Radio Services Ltd
Manchester City Council,Chief Executives,Agency staff provision,24.04.2017,5100914609,"2,442.52",LAW Absolute
Manchester City Council,Chief Executives,Agency staff provision,24.04.2017,5100915772,"1,987.31",Bs Project Services Ltd T/A
Manchester City Council,Chief Executives,Agency staff provision,24.04.2017,5100915767,"1,793.75",Bs Project Services Ltd T/A
Manchester City Council,Chief Executives,Advertising,24.04.2017,5100915689,950.00,Redactive Publishing Limited
Manchester City Council,Chief Executives,Advertising,24.04.2017,5100915816,877.50,TES Global Ltd
Manchester City Council,Chief Executives,Advertising,24.04.2017,5100915822,877.50,TES Global Ltd
Manchester City Council,Chief Executives,Agency staff provision,24.04.2017,5100914607,700.00,Sue Hill Recruitment & Services Ltd
Manchester City Council,Regeneration Finance,Travel,24.04.2017,5100915648,"2,414.39",Manchester International Festival
Manchester City Council,Regeneration Finance,Professional fees,24.04.2017,5100915522,505.00,Tep-The Environment Partnership
Manchester City Council,Highways Services,Rents,24.04.2017,5100915642,"65,991.50",Savills (UK) Ltd
Manchester City Council,Highways Services,Hire of Equipment,24.04.2017,5100915428,"13,810.61",Parkeon Ltd
Manchester City Council,Highways Services,Data Registration Fee,24.04.2017,1905561475,"3,536.00",HMCS Traffic EC
Manchester City Council,Highways Services,Licences Purchase,24.04.2017,5100914953,"1,998.75",Mouchel Limited
Manchester City Council,Highways Services,Building Materials for direct delivery,24.04.2017,5100915616,"1,681.53",TARMAC
Manchester City Council,Highways Services,Building Materials for direct delivery,24.04.2017,5100915617,"1,583.79",TARMAC
Manchester City Council,Highways Services,Bank Charges,24.04.2017,1905564149,"1,145.93",Cardnet Merchant Services
Manchester City Council,Highways Services,Hire of Machinery,24.04.2017,5100915624,"1,038.50",R & M Developments Ltd
Manchester City Council,Highways Services,Hire of Machinery,24.04.2017,5100915625,"1,012.50",R & M Developments Ltd
Manchester City Council,Highways Services,Building Materials for direct delivery,24.04.2017,5100915622,936.54,TARMAC
Manchester City Council,Highways Services,Building Materials for direct delivery,24.04.2017,5100915671,900.00,Colas Limited
Manchester City Council,Highways Services,Building Materials for direct delivery,24.04.2017,5100915619,696.61,TARMAC
Manchester City Council,Collection Fund,Ctax - Preceptor Payments,24.04.2017,1905564175,"1,485,440.00",GMPCC (PRECEPTS)
Manchester City Council,Collection Fund,Ctax - Preceptor Payments,24.04.2017,1905564179,"548,687.00",Greater Manchester Fire & Rescue
Manchester City Council,Collection Fund,Business Rates - Preceptor Payments,24.04.2017,1905564179,"270,540.00",Greater Manchester Fire & Rescue
Manchester City Council,Insurance Fund,Insurance,24.04.2017,5100915603,"502,700.00",Aon Ltd
Manchester City Council,Insurance Fund,Insurance,24.04.2017,1905559485,"8,754.72",Zurich Municipal
Manchester City Council,GMIST (Greater Mcr Integrated),Seconded Employees,24.04.2017,5100915694,"6,975.28",GMWDA (LEVY)
Manchester City Council,GMIST (Greater Mcr Integrated),Seconded Employees,24.04.2017,5100915692,"3,487.64",GMWDA (LEVY)
Manchester City Council,Manchester Leisure,Professional fees,25.04.2017,1905564723,"10,000.00",Redacted Personal Information
Manchester City Council,Manchester Leisure,Professional fees,25.04.2017,5100915889,"8,799.00",GL Events UK Ltd
Manchester City Council,Manchester Leisure,Furniture,25.04.2017,5100915776,"4,547.00",Egan Reid Stationery Co Ltd
Manchester City Council,Manchester Leisure,Training and Development,25.04.2017,5100915837,"2,500.00",Solution Talk LLP
Manchester City Council,Manchester Leisure,Subsistence and Conference Expenses,25.04.2017,5100915943,"2,271.24",Cresta World Travel Ltd
Manchester City Council,Manchester Leisure,External repairs and maintenance for buildings,25.04.2017,5100915925,"1,567.64",Clearway Drainage Systems Ltd
Manchester City Council,Manchester Leisure,Works Health and Safety related,25.04.2017,5100915913,"1,350.00",Clearway Drainage Systems Ltd
Manchester City Council,Manchester Leisure,Works Health and Safety related,25.04.2017,5100915914,"1,350.00",Clearway Drainage Systems Ltd
Manchester City Council,Manchester Leisure,Works Health and Safety related,25.04.2017,5100915915,"1,350.00",Clearway Drainage Systems Ltd
Manchester City Council,Manchester Leisure,Works Health and Safety related,25.04.2017,5100915912,675.00,Clearway Drainage Systems Ltd
Manchester City Council,Manchester Leisure,Building Materials for direct delivery,25.04.2017,5100915846,660.00,Parker Merchanting Ltd
Manchester City Council,Manchester Leisure,Grant Payments,25.04.2017,1905535867,600.00,St Matthew with St Mary
Manchester City Council,Manchester Leisure,Building Materials for direct delivery,25.04.2017,5100915478,548.87,Landscape Supply Company
Manchester City Council,Hospitality + Trading Services,Vehicle Fuel Costs,25.04.2017,5100913968,"16,345.24",Carlton Fuels Ltd
Manchester City Council,Hospitality + Trading Services,Vehicle Fuel Costs,25.04.2017,5100915054,"14,187.00",Carlton Fuels Ltd
Manchester City Council,Hospitality + Trading Services,Vehicle Fuel Costs,25.04.2017,5100915591,"10,776.45",Carlton Fuels Ltd
Manchester City Council,Hospitality + Trading Services,Catering Provisions,25.04.2017,1905564512,"1,454.67",Brake Bros Foodservice Ltd
Manchester City Council,Hospitality + Trading Services,Catering Provisions,25.04.2017,1905564528,"1,006.62",Brake Bros Foodservice Ltd
Manchester City Council,Hospitality + Trading Services,Catering Provisions,25.04.2017,1905564476,718.49,Brake Bros Foodservice Ltd
Manchester City Council,Hospitality + Trading Services,Catering Provisions,25.04.2017,1905564558,602.14,Brake Bros Foodservice Ltd
Manchester City Council,Hospitality + Trading Services,Catering Provisions,25.04.2017,1905564545,594.83,Brake Bros Foodservice Ltd
Manchester City Council,Hospitality + Trading Services,Catering Provisions,25.04.2017,1905564485,577.91,Brake Bros Foodservice Ltd
Manchester City Council,Hospitality + Trading Services,Catering Provisions,25.04.2017,1905564627,574.01,Ralph Livesey Ltd
Manchester City Council,Hospitality + Trading Services,Catering Provisions,25.04.2017,1905564544,573.60,Ralph Livesey Ltd
Manchester City Council,Hospitality + Trading Services,Catering Provisions,25.04.2017,1905564511,516.72,Brake Bros Foodservice Ltd
Manchester City Council,Hospitality + Trading Services,Catering Provisions,25.04.2017,1905564522,508.15,Brake Bros Foodservice Ltd
Manchester City Council,Environment and Operations,Professional fees,25.04.2017,5100915838,595.00,Solution Talk LLP
Manchester City Council,Environment and Operations,Training and Development,25.04.2017,5100915483,505.00,Trading Standards Institute
Manchester City Council,Adult Social Care,Payments for services,25.04.2017,5100914447,"26,930.62",H.G. Care Services Ltd
Manchester City Council,Adult Social Care,Payments for services,25.04.2017,5100914451,"9,199.28",H.G. Care Services Ltd
Manchester City Council,Adult Social Care,Third party payments relating to Voluntary Organisations,25.04.2017,5100915833,"4,441.19",Tung Sing (Orient) Housing Assoc.Lt
Manchester City Council,Adult Social Care,Professional fees,25.04.2017,5100915123,"4,015.00",One Education Ltd
Manchester City Council,Adult Social Care,Third party payments relating to Voluntary Organisations,25.04.2017,5100915376,"3,712.50",Chorlton Good Neighbours
Manchester City Council,Adult Social Care,Transport Coach Hire,25.04.2017,5100913144,"2,560.00",Hastings Private Hire
Manchester City Council,Adult Social Care,Transport Coach Hire,25.04.2017,5100913148,"2,328.00",Hastings Private Hire
Manchester City Council,Adult Social Care,Transport Coach Hire,25.04.2017,5100913159,"2,310.00",Hastings Private Hire
Manchester City Council,Adult Social Care,Transport Coach Hire,25.04.2017,5100913142,"1,955.00",Hastings Private Hire
Manchester City Council,Adult Social Care,Transport Coach Hire,25.04.2017,5100913141,"1,952.50",Hastings Private Hire
